﻿Body Name,Body,Service Area Categorisation,Service Division Categorisation,Responsible Unit,Expenses Type,Detailed Expenses Type,Payment Date,Transaction Number,Payment Amount,Supplier Type,Supplier Name,Supplier Id
Portsmouth City Council,PCC,Highways and Transport Services,Parking Services,Regeneration,Third Party Payments,Private contractors,04/09/19,6319152,97.5,VENDOR,BOARHUNT GROUP LTD,103726
Portsmouth City Council,PCC,Highways and Transport Services,Parking Services,Regeneration,Third Party Payments,Private contractors,04/09/19,6319152,30,VENDOR,BOARHUNT GROUP LTD,103726
Portsmouth City Council,PCC,Highways and Transport Services,Parking Services,Regeneration,Third Party Payments,Private contractors,04/09/19,6319152,50,VENDOR,BOARHUNT GROUP LTD,103726
Portsmouth City Council,PCC,Highways and Transport Services,Parking Services,Regeneration,Third Party Payments,Private contractors,04/09/19,6319152,44,VENDOR,BOARHUNT GROUP LTD,103726
Portsmouth City Council,PCC,Highways and Transport Services,Parking Services,Regeneration,Third Party Payments,Private contractors,04/09/19,6319152,30,VENDOR,BOARHUNT GROUP LTD,103726
Portsmouth City Council,PCC,Highways and Transport Services,Parking Services,Regeneration,Third Party Payments,Private contractors,04/09/19,6319152,50,VENDOR,BOARHUNT GROUP LTD,103726
Portsmouth City Council,PCC,Highways and Transport Services,Parking Services,Regeneration,Third Party Payments,Private contractors,04/09/19,6319152,50,VENDOR,BOARHUNT GROUP LTD,103726
Portsmouth City Council,PCC,Highways and Transport Services,Parking Services,Regeneration,Third Party Payments,Private contractors,04/09/19,6319152,50,VENDOR,BOARHUNT GROUP LTD,103726
Portsmouth City Council,PCC,Highways and Transport Services,Parking Services,Regeneration,Third Party Payments,Private contractors,04/09/19,6319152,50,VENDOR,BOARHUNT GROUP LTD,103726
Portsmouth City Council,PCC,Highways and Transport Services,Parking Services,Regeneration,Third Party Payments,Private contractors,04/09/19,6319152,25,VENDOR,BOARHUNT GROUP LTD,103726
Portsmouth City Council,PCC,Highways and Transport Services,Parking Services,Regeneration,Third Party Payments,Private contractors,11/09/19,6320145,44,VENDOR,BOARHUNT GROUP LTD,103726
Portsmouth City Council,PCC,Highways and Transport Services,Parking Services,Regeneration,Third Party Payments,Private contractors,11/09/19,6320145,50,VENDOR,BOARHUNT GROUP LTD,103726
Portsmouth City Council,PCC,Highways and Transport Services,Parking Services,Regeneration,Third Party Payments,Private contractors,11/09/19,6320145,50,VENDOR,BOARHUNT GROUP LTD,103726
Portsmouth City Council,PCC,Highways and Transport Services,Parking Services,Regeneration,Third Party Payments,Private contractors,11/09/19,6320145,60,VENDOR,BOARHUNT GROUP LTD,103726
Portsmouth City Council,PCC,Highways and Transport Services,Parking Services,Regeneration,Third Party Payments,Private contractors,11/09/19,6320145,44,VENDOR,BOARHUNT GROUP LTD,103726
Portsmouth City Council,PCC,Highways and Transport Services,Parking Services,Regeneration,Third Party Payments,Private contractors,11/09/19,6320145,30,VENDOR,BOARHUNT GROUP LTD,103726
Portsmouth City Council,PCC,Highways and Transport Services,Parking Services,Regeneration,Third Party Payments,Private contractors,11/09/19,6320145,50,VENDOR,BOARHUNT GROUP LTD,103726
Portsmouth City Council,PCC,Highways and Transport Services,Parking Services,Regeneration,Third Party Payments,Private contractors,11/09/19,6320145,30,VENDOR,BOARHUNT GROUP LTD,103726
Portsmouth City Council,PCC,Highways and Transport Services,Parking Services,Regeneration,Third Party Payments,Private contractors,11/09/19,6320145,50,VENDOR,BOARHUNT GROUP LTD,103726
Portsmouth City Council,PCC,Highways and Transport Services,Parking Services,Regeneration,Third Party Payments,Private contractors,23/09/19,6322533,50,VENDOR,BOARHUNT GROUP LTD,103726
Portsmouth City Council,PCC,Highways and Transport Services,Parking Services,Regeneration,Third Party Payments,Private contractors,23/09/19,6322533,50,VENDOR,BOARHUNT GROUP LTD,103726
Portsmouth City Council,PCC,Highways and Transport Services,Parking Services,Regeneration,Third Party Payments,Private contractors,23/09/19,6322533,50,VENDOR,BOARHUNT GROUP LTD,103726
Portsmouth City Council,PCC,Highways and Transport Services,Parking Services,Regeneration,Third Party Payments,Private contractors,23/09/19,6322533,50,VENDOR,BOARHUNT GROUP LTD,103726
Portsmouth City Council,PCC,Highways and Transport Services,Parking Services,Regeneration,Third Party Payments,Private contractors,23/09/19,6322533,50,VENDOR,BOARHUNT GROUP LTD,103726
Portsmouth City Council,PCC,Highways and Transport Services,Parking Services,Regeneration,Third Party Payments,Private contractors,23/09/19,6322533,50,VENDOR,BOARHUNT GROUP LTD,103726
Portsmouth City Council,PCC,Highways and Transport Services,Parking Services,Regeneration,Third Party Payments,Private contractors,23/09/19,6322533,50,VENDOR,BOARHUNT GROUP LTD,103726
Portsmouth City Council,PCC,Highways and Transport Services,Parking Services,Regeneration,Third Party Payments,Private contractors,23/09/19,6322533,50,VENDOR,BOARHUNT GROUP LTD,103726
Portsmouth City Council,PCC,Highways and Transport Services,Parking Services,Regeneration,Third Party Payments,Private contractors,23/09/19,6322533,44,VENDOR,BOARHUNT GROUP LTD,103726
Portsmouth City Council,PCC,Highways and Transport Services,Parking Services,Regeneration,Third Party Payments,Private contractors,23/09/19,6322533,44,VENDOR,BOARHUNT GROUP LTD,103726
Portsmouth City Council,PCC,Highways and Transport Services,Parking Services,Regeneration,Third Party Payments,Private contractors,23/09/19,6322533,50,VENDOR,BOARHUNT GROUP LTD,103726
Portsmouth City Council,PCC,Highways and Transport Services,Parking Services,Regeneration,Third Party Payments,Private contractors,23/09/19,6322533,44,VENDOR,BOARHUNT GROUP LTD,103726
Portsmouth City Council,PCC,Highways and Transport Services,Parking Services,Regeneration,Third Party Payments,Private contractors,23/09/19,6322533,44,VENDOR,BOARHUNT GROUP LTD,103726
Portsmouth City Council,PCC,Highways and Transport Services,Parking Services,Regeneration,Third Party Payments,Private contractors,23/09/19,6322533,60,VENDOR,BOARHUNT GROUP LTD,103726
Portsmouth City Council,PCC,Highways and Transport Services,Parking Services,Regeneration,Premises-Related Expenditure,Rents,23/09/19,6322533,1600,VENDOR,BOARHUNT GROUP LTD,103726
Portsmouth City Council,PCC,Highways and Transport Services,Parking Services,Regeneration,Third Party Payments,Private contractors,25/09/19,6322829,150,VENDOR,BOARHUNT GROUP LTD,103726
Portsmouth City Council,PCC,Highways and Transport Services,Parking Services,Regeneration,Third Party Payments,Private contractors,25/09/19,6322829,617.5,VENDOR,BOARHUNT GROUP LTD,103726
Portsmouth City Council,PCC,Children's and Education Services,Special Schools,Children's Services and Education,Third Party Payments,Other establishments,05/09/19,6319733,26224,VENDOR,ST EDWARDS SCHOOL,101262
Portsmouth City Council,PCC,Children's and Education Services,Special Schools,Children's Services and Education,Third Party Payments,Other establishments,05/09/19,6319733,26634.5,VENDOR,ST EDWARDS SCHOOL,101262
Portsmouth City Council,PCC,Children's and Education Services,Special Schools,Children's Services and Education,Third Party Payments,Other establishments,05/09/19,6319733,27798,VENDOR,ST EDWARDS SCHOOL,101262
Portsmouth City Council,PCC,Children's and Education Services,Special Schools,Children's Services and Education,Third Party Payments,Other establishments,05/09/19,6319733,24241,VENDOR,ST EDWARDS SCHOOL,101262
Portsmouth City Council,PCC,Children's and Education Services,Special Schools,Children's Services and Education,Third Party Payments,Other establishments,05/09/19,6319733,20434.5,VENDOR,ST EDWARDS SCHOOL,101262
Portsmouth City Council,PCC,Children's and Education Services,Children Looked After,Children's Services and Education,Third Party Payments,Other establishments,25/09/19,6323297,6067.14,VENDOR,KEYS GROUP LIMITED,137236
Portsmouth City Council,PCC,Children's and Education Services,Children Looked After,Children's Services and Education,Third Party Payments,Other establishments,25/09/19,6323297,256.41,VENDOR,KEYS GROUP LIMITED,137236
Portsmouth City Council,PCC,Cultural and Related Services,Library Service,"Culture, Leisure & Regulatory Services",Third Party Payments,Private contractors,06/09/19,6319802,1215,SOLETRADER, DD STORYTELLER,144925
Portsmouth City Council,PCC,Children's and Education Services,Children Looked After,Children's Services and Education,Third Party Payments,Other establishments,23/09/19,6322623,18821.43,VENDOR,KEYS GROUP LIMITED,137236
Portsmouth City Council,PCC,Other,Suspense and Capital Schemes,Capital - Traffic & Transportation,Capital Charges,Capital Expenditure (WIP),02/09/19,6319008,600,VENDOR,PRODUCT DEVELOPMENT CORPORATION,134173
Portsmouth City Council,PCC,Children's and Education Services,Family Support Services,Children's Services and Education,Transport-Related Expenditure,Public transport,26/09/19,6323395,143.6,VENDOR,ATOC LTD,103839
Portsmouth City Council,PCC,Children's and Education Services,Safeguarding Children and Young Peoples Services,Children's Services and Education,Transport-Related Expenditure,Public transport,26/09/19,6323395,93.6,VENDOR,ATOC LTD,103839
Portsmouth City Council,PCC,Children's and Education Services,Family Support Services,Children's Services and Education,Transport-Related Expenditure,Public transport,26/09/19,6323395,984.05,VENDOR,ATOC LTD,103839
Portsmouth City Council,PCC,Children's and Education Services,Children Looked After,Children's Services and Education,Transport-Related Expenditure,Public transport,26/09/19,6323395,201.65,VENDOR,ATOC LTD,103839
Portsmouth City Council,PCC,Children's and Education Services,Children Looked After,Children's Services and Education,Transport-Related Expenditure,Public transport,26/09/19,6323395,29.7,VENDOR,ATOC LTD,103839
Portsmouth City Council,PCC,Children's and Education Services,Other Children and Family Services,Children's Services and Education,Transport-Related Expenditure,Public transport,26/09/19,6323395,387.5,VENDOR,ATOC LTD,103839
Portsmouth City Council,PCC,Children's and Education Services,Asylum seekers,Children's Services and Education,Transport-Related Expenditure,Public transport,26/09/19,6323395,30.8,VENDOR,ATOC LTD,103839
Portsmouth City Council,PCC,Children's and Education Services,Asylum seekers,Children's Services and Education,Transport-Related Expenditure,Public transport,26/09/19,6323395,43.5,VENDOR,ATOC LTD,103839
Portsmouth City Council,PCC,Children's and Education Services,Asylum seekers,Children's Services and Education,Transport-Related Expenditure,Public transport,26/09/19,6323395,19.3,VENDOR,ATOC LTD,103839
Portsmouth City Council,PCC,Children's and Education Services,Asylum seekers,Children's Services and Education,Transport-Related Expenditure,Public transport,26/09/19,6323395,19.3,VENDOR,ATOC LTD,103839
Portsmouth City Council,PCC,Children's and Education Services,Asylum seekers,Children's Services and Education,Transport-Related Expenditure,Public transport,26/09/19,6323395,53,VENDOR,ATOC LTD,103839
Portsmouth City Council,PCC,Children's and Education Services,Asylum seekers,Children's Services and Education,Transport-Related Expenditure,Public transport,26/09/19,6323395,19.3,VENDOR,ATOC LTD,103839
Portsmouth City Council,PCC,Children's and Education Services,Asylum seekers,Children's Services and Education,Transport-Related Expenditure,Public transport,26/09/19,6323395,19.3,VENDOR,ATOC LTD,103839
Portsmouth City Council,PCC,Children's and Education Services,Asylum seekers,Children's Services and Education,Transport-Related Expenditure,Public transport,26/09/19,6323395,19.3,VENDOR,ATOC LTD,103839
Portsmouth City Council,PCC,Children's and Education Services,Asylum seekers,Children's Services and Education,Transport-Related Expenditure,Public transport,26/09/19,6323395,19.3,VENDOR,ATOC LTD,103839
Portsmouth City Council,PCC,Children's and Education Services,Safeguarding Children and Young Peoples Services,Children's Services and Education,Transport-Related Expenditure,Public transport,26/09/19,6323395,85.4,VENDOR,ATOC LTD,103839
Portsmouth City Council,PCC,Children's and Education Services,Safeguarding Children and Young Peoples Services,Children's Services and Education,Transport-Related Expenditure,Public transport,26/09/19,6323395,60.5,VENDOR,ATOC LTD,103839
Portsmouth City Council,PCC,Children's and Education Services,Safeguarding Children and Young Peoples Services,Children's Services and Education,Transport-Related Expenditure,Public transport,26/09/19,6323395,13.1,VENDOR,ATOC LTD,103839
Portsmouth City Council,PCC,Planning Services,Business support,Regeneration,Third Party Payments,Private contractors,03/09/19,6319129,1802.96,VENDOR,TECHNOLOGY WITHIN LIMITED,143958
Portsmouth City Council,PCC,Planning Services,Business support,Regeneration,Third Party Payments,Private contractors,03/09/19,6319129,19.04,VENDOR,TECHNOLOGY WITHIN LIMITED,143958
Portsmouth City Council,PCC,Cultural and Related Services,Recreation and Sport,"Culture, Leisure & Regulatory Services",Third Party Payments,Private contractors,30/09/19,6323793,60184.6,VENDOR,NOVA INTERNATIONAL LIMITED,109265
Portsmouth City Council,PCC,Solent LEP,Business support,OTHER,Third Party Payments,Private contractors,24/09/19,6322791,25000,VENDOR,THE CHAMBER OF SHIPPING,140393
Portsmouth City Council,PCC,Children's and Education Services,Children Looked After,Children's Services and Education,Third Party Payments,Other establishments,26/09/19,6323450,26928.57,VENDOR,KEYS GROUP LIMITED,137236
Portsmouth City Council,PCC,Children's and Education Services,Children Looked After,Children's Services and Education,Third Party Payments,Other establishments,23/09/19,6322623,28785.71,VENDOR,KEYS GROUP LIMITED,137236
Portsmouth City Council,PCC,Cultural and Related Services,Open Spaces,"Culture, Leisure & Regulatory Services",Premises-Related Expenditure,Grounds maintenance costs,19/09/19,6321963,1814,VENDOR,ROSEHILL POLYMERS LTD,112397
Portsmouth City Council,PCC,Adult Social Care,Assistive Equipment & Technology,"Housing, Neighbourhood and Building Services",Supplies and Services,"Equipment, furniture and materials",09/09/19,6319986,1793.5,VENDOR,TYNETEC B/U OF LEGRAND ELECTRIC LTD,140439
Portsmouth City Council,PCC,Adult Social Care,Assistive Equipment & Technology,"Housing, Neighbourhood and Building Services",Supplies and Services,"Equipment, furniture and materials",09/09/19,6319986,182.8,VENDOR,TYNETEC B/U OF LEGRAND ELECTRIC LTD,140439
Portsmouth City Council,PCC,Support Service / Transparency Costs Unallocated,AMS,"Housing, Neighbourhood and Building Services",Supplies and Services,"Equipment, furniture and materials",10/09/19,6320084,119,VENDOR,PORTSDOWN OFFICE LTD,100059
Portsmouth City Council,PCC,Children's and Education Services,Family Support Services,Children's Services and Education,Supplies and Services,"Equipment, furniture and materials",10/09/19,6320084,4909,VENDOR,PORTSDOWN OFFICE LTD,100059
Portsmouth City Council,PCC,Support Service / Transparency Costs Unallocated,AMS,"Housing, Neighbourhood and Building Services",Supplies and Services,"Equipment, furniture and materials",09/09/19,6319957,1803.6,VENDOR,PORTSDOWN OFFICE LTD,100059
Portsmouth City Council,PCC,Support Service / Transparency Costs Unallocated,AMS,"Housing, Neighbourhood and Building Services",Supplies and Services,"Equipment, furniture and materials",26/09/19,6323476,859.96,VENDOR,PORTSDOWN OFFICE LTD,100059
Portsmouth City Council,PCC,Central Services,Coroners' Court Services,"Culture, Leisure & Regulatory Services",Supplies and Services,Services,17/09/19,6321305,125,SOLETRADER,Classified as 'personal data' (under the Data Protection Act 2018),140312
Portsmouth City Council,PCC,Other,Suspense and Capital Schemes,Capital - Traffic & Transportation,Capital Charges,Capital Expenditure (WIP),30/09/19,6323784,3070,VENDOR,HYPERION INFRASTRUCTURE CONSULTANCY,144798
Portsmouth City Council,PCC,Adult Social Care,Social Care Activities,Adult Services,Third Party Payments,Other establishments,06/09/19,6319746,9958.2,VENDOR,ACCESS CARE LTD,106309
Portsmouth City Council,PCC,Adult Social Care,Physical Support Adults (18 - 64),Adult Services,Third Party Payments,Other establishments,06/09/19,6319746,486.36,VENDOR,ACCESS CARE LTD,106309
Portsmouth City Council,PCC,Other,Suspense and Capital Schemes,Capital - Education,Capital Charges,REFCUS,02/09/19,6319001,104306,COMPANY,MOUNTJOY LIMITED,129869
Portsmouth City Council,PCC,Other,Suspense and Capital Schemes,"Capital - Health, Wellbeing & Social Care",Capital Charges,Capital Expenditure (WIP),09/09/19,6319954,24359.09,COMPANY,MOUNTJOY LIMITED,129869
Portsmouth City Council,PCC,Highways and Transport Services,"Transport Planning, Policy and Strategy",Regeneration,Supplies and Services,Communications and computing,26/09/19,6323447,1893.8,VENDOR,INSTITUTION OF CIVIL ENGINEERS,101457
Portsmouth City Council,PCC,Support Service / Transparency Costs Unallocated,Legal Services,Corporate Services,Supplies and Services,Communications and computing,26/09/19,6323447,1893.8,VENDOR,INSTITUTION OF CIVIL ENGINEERS,101457
Portsmouth City Council,PCC,Adult Social Care,Physical Support Adults (18 - 64),Adult Services,Third Party Payments,Other establishments,06/09/19,6319746,3059,VENDOR,ACCESS CARE LTD,106309
Portsmouth City Council,PCC,Cultural and Related Services,Recreation and Sport,"Culture, Leisure & Regulatory Services",Premises-Related Expenditure,Water Services,02/09/19,6318932,68.24,VENDOR,CASTLE WATER LIMITED,142798
Portsmouth City Council,PCC,Environmental and Regulatory Services,Regulatory Services,"Housing, Neighbourhood and Building Services",Premises-Related Expenditure,Water Services,02/09/19,6318932,69.93,VENDOR,CASTLE WATER LIMITED,142798
Portsmouth City Council,PCC,Housing Revenue Account,Supervision and Management,"Housing, Neighbourhood and Building Services",Premises-Related Expenditure,Water Services,02/09/19,6318932,1.11,VENDOR,CASTLE WATER LIMITED,142798
Portsmouth City Council,PCC,Cultural and Related Services,Open Spaces,"Culture, Leisure & Regulatory Services",Premises-Related Expenditure,Water Services,02/09/19,6318932,66.29,VENDOR,CASTLE WATER LIMITED,142798
Portsmouth City Council,PCC,Costs below Net Cost of Services,Trading,"Housing, Neighbourhood and Building Services",Premises-Related Expenditure,Water Services,02/09/19,6318932,1447.45,VENDOR,CASTLE WATER LIMITED,142798
Portsmouth City Council,PCC,Planning Services,Business support,Regeneration,Premises-Related Expenditure,Water Services,02/09/19,6318932,39.32,VENDOR,CASTLE WATER LIMITED,142798
Portsmouth City Council,PCC,Cultural and Related Services,Open Spaces,"Culture, Leisure & Regulatory Services",Premises-Related Expenditure,Water Services,02/09/19,6318932,396.31,VENDOR,CASTLE WATER LIMITED,142798
Portsmouth City Council,PCC,Cultural and Related Services,Open Spaces,"Culture, Leisure & Regulatory Services",Premises-Related Expenditure,Water Services,02/09/19,6318932,435,VENDOR,CASTLE WATER LIMITED,142798
Portsmouth City Council,PCC,Cultural and Related Services,Open Spaces,"Culture, Leisure & Regulatory Services",Premises-Related Expenditure,Water Services,02/09/19,6318932,6.9,VENDOR,CASTLE WATER LIMITED,142798
Portsmouth City Council,PCC,Cultural and Related Services,Open Spaces,"Culture, Leisure & Regulatory Services",Premises-Related Expenditure,Water Services,02/09/19,6318932,1.11,VENDOR,CASTLE WATER LIMITED,142798
Portsmouth City Council,PCC,Cultural and Related Services,Open Spaces,"Culture, Leisure & Regulatory Services",Premises-Related Expenditure,Water Services,02/09/19,6318932,36.54,VENDOR,CASTLE WATER LIMITED,142798
Portsmouth City Council,PCC,Cultural and Related Services,Open Spaces,"Culture, Leisure & Regulatory Services",Premises-Related Expenditure,Water Services,02/09/19,6318932,5.12,VENDOR,CASTLE WATER LIMITED,142798
Portsmouth City Council,PCC,Cultural and Related Services,Open Spaces,"Culture, Leisure & Regulatory Services",Premises-Related Expenditure,Water Services,02/09/19,6318932,1.12,VENDOR,CASTLE WATER LIMITED,142798
Portsmouth City Council,PCC,Housing Revenue Account,Special Services,"Housing, Neighbourhood and Building Services",Premises-Related Expenditure,Water Services,02/09/19,6318932,3.11,VENDOR,CASTLE WATER LIMITED,142798
Portsmouth City Council,PCC,Cultural and Related Services,Open Spaces,"Culture, Leisure & Regulatory Services",Premises-Related Expenditure,Water Services,02/09/19,6318932,1.99,VENDOR,CASTLE WATER LIMITED,142798
Portsmouth City Council,PCC,Cultural and Related Services,Open Spaces,"Culture, Leisure & Regulatory Services",Premises-Related Expenditure,Water Services,02/09/19,6318932,1.12,VENDOR,CASTLE WATER LIMITED,142798
Portsmouth City Council,PCC,Environmental and Regulatory Services,"Cemetery, Cremation and Mortuary Services","Culture, Leisure & Regulatory Services",Premises-Related Expenditure,Water Services,02/09/19,6318932,40.88,VENDOR,CASTLE WATER LIMITED,142798
Portsmouth City Council,PCC,Housing Revenue Account,Supervision and Management,"Housing, Neighbourhood and Building Services",Premises-Related Expenditure,Water Services,02/09/19,6318932,1.11,VENDOR,CASTLE WATER LIMITED,142798
Portsmouth City Council,PCC,Highways and Transport Services,"Transport Planning, Policy and Strategy",Regeneration,Premises-Related Expenditure,Water Services,02/09/19,6318932,1.11,VENDOR,CASTLE WATER LIMITED,142798
Portsmouth City Council,PCC,Housing Revenue Account,Special Services,"Housing, Neighbourhood and Building Services",Premises-Related Expenditure,Water Services,02/09/19,6318932,19.08,VENDOR,CASTLE WATER LIMITED,142798
Portsmouth City Council,PCC,Cultural and Related Services,Open Spaces,"Culture, Leisure & Regulatory Services",Premises-Related Expenditure,Water Services,02/09/19,6318932,43.81,VENDOR,CASTLE WATER LIMITED,142798
Portsmouth City Council,PCC,Cultural and Related Services,Open Spaces,"Culture, Leisure & Regulatory Services",Premises-Related Expenditure,Water Services,02/09/19,6318932,87.37,VENDOR,CASTLE WATER LIMITED,142798
Portsmouth City Council,PCC,Cultural and Related Services,Open Spaces,"Culture, Leisure & Regulatory Services",Premises-Related Expenditure,Water Services,02/09/19,6318932,160.97,VENDOR,CASTLE WATER LIMITED,142798
Portsmouth City Council,PCC,Cultural and Related Services,Open Spaces,"Culture, Leisure & Regulatory Services",Premises-Related Expenditure,Water Services,02/09/19,6318932,1766.12,VENDOR,CASTLE WATER LIMITED,142798
Portsmouth City Council,PCC,Central Services,Coroners' Court Services,"Culture, Leisure & Regulatory Services",Supplies and Services,Services,17/09/19,6321305,275.5,SOLETRADER,Classified as 'personal data' (under the Data Protection Act 2018),140312
Portsmouth City Council,PCC,Central Services,Coroners' Court Services,"Culture, Leisure & Regulatory Services",Supplies and Services,Services,17/09/19,6321305,125,SOLETRADER,Classified as 'personal data' (under the Data Protection Act 2018),140312
Portsmouth City Council,PCC,Central Services,Coroners' Court Services,"Culture, Leisure & Regulatory Services",Supplies and Services,Services,17/09/19,6321305,91.5,SOLETRADER,Classified as 'personal data' (under the Data Protection Act 2018),140312
Portsmouth City Council,PCC,Central Services,Coroners' Court Services,"Culture, Leisure & Regulatory Services",Supplies and Services,Services,17/09/19,6321305,275.5,SOLETRADER,Classified as 'personal data' (under the Data Protection Act 2018),140312
Portsmouth City Council,PCC,Children's and Education Services,Children Looked After,Children's Services and Education,Supplies and Services,Services,26/09/19,323259,1910,OTHER LOCAL AUTHORITY,OLA SCHOOLS,137525
Portsmouth City Council,PCC,Housing Revenue Account,Special Services,"Housing, Neighbourhood and Building Services",Premises-Related Expenditure,Water Services,02/09/19,6319007,249.73,VENDOR,PORTSMOUTH WATER LTD,100253
Portsmouth City Council,PCC,Housing Revenue Account,Special Services,"Housing, Neighbourhood and Building Services",Premises-Related Expenditure,Water Services,02/09/19,6319007,454.46,VENDOR,PORTSMOUTH WATER LTD,100253
Portsmouth City Council,PCC,Housing Services,Supporting People,"Housing, Neighbourhood and Building Services",Third Party Payments,Other establishments,12/09/19,6320899,34883.06,VENDOR,TWO SAINTS LTD,102584
Portsmouth City Council,PCC,Housing Services,Supporting People,"Housing, Neighbourhood and Building Services",Third Party Payments,Other establishments,12/09/19,6320899,33025,VENDOR,TWO SAINTS LTD,102584
Portsmouth City Council,PCC,Housing Services,Supporting People,"Housing, Neighbourhood and Building Services",Third Party Payments,Other establishments,12/09/19,6320899,4166.67,VENDOR,TWO SAINTS LTD,102584
Portsmouth City Council,PCC,Adult Social Care,Social Care Activities,Adult Services,Third Party Payments,Other establishments,30/09/19,6323731,9958.2,VENDOR,ACCESS CARE LTD,106309
Portsmouth City Council,PCC,Adult Social Care,Physical Support Adults (18 - 64),Adult Services,Third Party Payments,Other establishments,30/09/19,6323731,486.36,VENDOR,ACCESS CARE LTD,106309
Portsmouth City Council,PCC,Adult Social Care,Physical Support Adults (18 - 64),Adult Services,Third Party Payments,Other establishments,30/09/19,6323731,3059,VENDOR,ACCESS CARE LTD,106309
Portsmouth City Council,PCC,Adult Social Care,Mental Health Support Older People (65 - 74),Adult Services,Third Party Payments,Other establishments,23/09/19,6322524,540.16,VENDOR,ADMIRAL CARE LTD,138025
Portsmouth City Council,PCC,Adult Social Care,Mental Health Support Older People (65 - 74),Adult Services,Third Party Payments,Other establishments,23/09/19,6322524,422,VENDOR,ADMIRAL CARE LTD,138025
Portsmouth City Council,PCC,Adult Social Care,Mental Health Support Older People (65 - 74),Adult Services,Third Party Payments,Other establishments,23/09/19,6322524,118.16,VENDOR,ADMIRAL CARE LTD,138025
Portsmouth City Council,PCC,Adult Social Care,Mental Health Support Older People (65 - 74),Adult Services,Third Party Payments,Other establishments,23/09/19,6322524,67.52,VENDOR,ADMIRAL CARE LTD,138025
Portsmouth City Council,PCC,Adult Social Care,Mental Health Support Older People (65 - 74),Adult Services,Third Party Payments,Other establishments,23/09/19,6322524,1198.48,VENDOR,ADMIRAL CARE LTD,138025
Portsmouth City Council,PCC,Adult Social Care,Mental Health Support Older People (65 - 74),Adult Services,Third Party Payments,Other establishments,23/09/19,6322524,27.01,VENDOR,ADMIRAL CARE LTD,138025
Portsmouth City Council,PCC,Adult Social Care,Mental Health Support Older People (65 - 74),Adult Services,Third Party Payments,Other establishments,23/09/19,6322524,5.06,VENDOR,ADMIRAL CARE LTD,138025
Portsmouth City Council,PCC,Adult Social Care,Mental Health Support Older People (65 - 74),Adult Services,Third Party Payments,Other establishments,23/09/19,6322524,135.04,VENDOR,ADMIRAL CARE LTD,138025
Portsmouth City Council,PCC,Adult Social Care,Mental Health Support Older People (65 - 74),Adult Services,Third Party Payments,Other establishments,23/09/19,6322524,236.32,VENDOR,ADMIRAL CARE LTD,138025
Portsmouth City Council,PCC,Housing Services,Homelessness,"Housing, Neighbourhood and Building Services",Supplies and Services,Grants and subscriptions,27/09/19,6323668,725,VENDOR,PORTSMOUTH LETTINGS PROPERTY MANAGEMENT,140978
Portsmouth City Council,PCC,Housing Services,Homelessness,"Housing, Neighbourhood and Building Services",Supplies and Services,Grants and subscriptions,27/09/19,6323667,725,VENDOR,PORTSMOUTH LETTINGS PROPERTY MANAGEMENT,140978
Portsmouth City Council,PCC,Central Services,Coroners' Court Services,"Culture, Leisure & Regulatory Services",Supplies and Services,Services,03/09/19,323073,-88,VENDOR,DIGNITY FUNERALS LTD,117178
Portsmouth City Council,PCC,Central Services,Coroners' Court Services,"Culture, Leisure & Regulatory Services",Supplies and Services,Services,03/09/19,323073,528,VENDOR,DIGNITY FUNERALS LTD,117178
Portsmouth City Council,PCC,Central Services,Coroners' Court Services,"Culture, Leisure & Regulatory Services",Supplies and Services,Services,30/09/19,323268,440,VENDOR,DIGNITY FUNERALS LTD,117178
Portsmouth City Council,PCC,Other,Suspense and Capital Schemes,Capital - Environment & Climate Change,Capital Charges,Capital Expenditure (WIP),10/09/19,6320045,262.2,VENDOR,GOPROMOTIONAL,138709
Portsmouth City Council,PCC,Other,Suspense and Capital Schemes,Capital - Environment & Climate Change,Capital Charges,Capital Expenditure (WIP),10/09/19,6320045,277.3,VENDOR,GOPROMOTIONAL,138709
Portsmouth City Council,PCC,Adult Social Care,Mental Health Support Older People (65 - 74),Adult Services,Third Party Payments,Other establishments,23/09/19,6322524,236.32,VENDOR,ADMIRAL CARE LTD,138025
Portsmouth City Council,PCC,Adult Social Care,Mental Health Support Older People (65 - 74),Adult Services,Third Party Payments,Other establishments,23/09/19,6322524,288.4,VENDOR,ADMIRAL CARE LTD,138025
Portsmouth City Council,PCC,Adult Social Care,Mental Health Support Older People (65 - 74),Adult Services,Third Party Payments,Other establishments,23/09/19,6322524,329.6,VENDOR,ADMIRAL CARE LTD,138025
Portsmouth City Council,PCC,Adult Social Care,Physical Support Older People (85+),Adult Services,Third Party Payments,Other establishments,23/09/19,6322524,590.8,VENDOR,ADMIRAL CARE LTD,138025
Portsmouth City Council,PCC,Adult Social Care,Physical Support Older People (85+),Adult Services,Third Party Payments,Other establishments,23/09/19,6322524,472.64,VENDOR,ADMIRAL CARE LTD,138025
Portsmouth City Council,PCC,Adult Social Care,Physical Support Older People (85+),Adult Services,Third Party Payments,Other establishments,23/09/19,6322524,481.08,VENDOR,ADMIRAL CARE LTD,138025
Portsmouth City Council,PCC,Adult Social Care,Learning Disability Support  Adults (18 - 64),Adult Services,Third Party Payments,Other establishments,12/09/19,6320712,7059.3,VENDOR,AFFINITY TRUST LTD,135643
Portsmouth City Council,PCC,Adult Social Care,Learning Disability Support  Adults (18 - 64),Adult Services,Third Party Payments,Other establishments,12/09/19,6320712,8895.9,VENDOR,AFFINITY TRUST LTD,135643
Portsmouth City Council,PCC,Adult Social Care,Learning Disability Support  Adults (18 - 64),Adult Services,Third Party Payments,Other establishments,12/09/19,6320712,6521.7,VENDOR,AFFINITY TRUST LTD,135643
Portsmouth City Council,PCC,Adult Social Care,Learning Disability Support  Adults (18 - 64),Adult Services,Third Party Payments,Other establishments,12/09/19,6320712,8366.1,VENDOR,AFFINITY TRUST LTD,135643
Portsmouth City Council,PCC,Adult Social Care,Learning Disability Support  Adults (18 - 64),Adult Services,Third Party Payments,Other establishments,12/09/19,6320712,8895.9,VENDOR,AFFINITY TRUST LTD,135643
Portsmouth City Council,PCC,Adult Social Care,Learning Disability Support  Adults (18 - 64),Adult Services,Third Party Payments,Other establishments,12/09/19,6320712,6821.4,VENDOR,AFFINITY TRUST LTD,135643
Portsmouth City Council,PCC,Adult Social Care,Social Care Activities,Adult Services,Third Party Payments,Other establishments,25/09/19,6322813,6923.85,VENDOR,AFFINITY TRUST LTD,135643
Portsmouth City Council,PCC,Adult Social Care,Social Care Activities,Adult Services,Third Party Payments,Other establishments,25/09/19,6322813,4154.31,VENDOR,AFFINITY TRUST LTD,135643
Portsmouth City Council,PCC,Adult Social Care,Social Care Activities,Adult Services,Third Party Payments,Other establishments,25/09/19,6322813,6923.85,VENDOR,AFFINITY TRUST LTD,135643
Portsmouth City Council,PCC,Adult Social Care,Social Care Activities,Adult Services,Third Party Payments,Other establishments,25/09/19,6322813,4154.31,VENDOR,AFFINITY TRUST LTD,135643
Portsmouth City Council,PCC,Adult Social Care,Social Care Activities,Adult Services,Third Party Payments,Other establishments,25/09/19,6322813,6700.5,VENDOR,AFFINITY TRUST LTD,135643
Portsmouth City Council,PCC,Adult Social Care,Social Care Activities,Adult Services,Third Party Payments,Other establishments,25/09/19,6322813,4020.3,VENDOR,AFFINITY TRUST LTD,135643
Portsmouth City Council,PCC,Adult Social Care,Social Care Activities,Adult Services,Third Party Payments,Other establishments,25/09/19,6322813,5583.75,VENDOR,AFFINITY TRUST LTD,135643
Portsmouth City Council,PCC,Adult Social Care,Social Care Activities,Adult Services,Third Party Payments,Other establishments,25/09/19,6322813,3350.25,VENDOR,AFFINITY TRUST LTD,135643
Portsmouth City Council,PCC,Adult Social Care,Social Care Activities,Adult Services,Third Party Payments,Other establishments,25/09/19,6322813,6700.5,VENDOR,AFFINITY TRUST LTD,135643
Portsmouth City Council,PCC,Adult Social Care,Social Care Activities,Adult Services,Third Party Payments,Other establishments,25/09/19,6322813,4020.3,VENDOR,AFFINITY TRUST LTD,135643
Portsmouth City Council,PCC,Adult Social Care,Physical Support Older People (85+),Adult Services,Third Party Payments,Other establishments,25/09/19,6322813,3350.25,VENDOR,AFFINITY TRUST LTD,135643
Portsmouth City Council,PCC,Adult Social Care,Physical Support Older People (85+),Adult Services,Third Party Payments,Other establishments,25/09/19,6322813,618.36,VENDOR,AFFINITY TRUST LTD,135643
Portsmouth City Council,PCC,Adult Social Care,Learning Disability Support  Adults (18 - 64),Adult Services,Third Party Payments,Other establishments,25/09/19,6322813,3350.25,VENDOR,AFFINITY TRUST LTD,135643
Portsmouth City Council,PCC,Adult Social Care,Learning Disability Support  Adults (18 - 64),Adult Services,Third Party Payments,Other establishments,25/09/19,6322813,618.36,VENDOR,AFFINITY TRUST LTD,135643
Portsmouth City Council,PCC,Adult Social Care,Learning Disability Support  Adults (18 - 64),Adult Services,Third Party Payments,Other establishments,25/09/19,6322813,5312.54,VENDOR,AFFINITY TRUST LTD,135643
Portsmouth City Council,PCC,Adult Social Care,Learning Disability Support  Adults (18 - 64),Adult Services,Third Party Payments,Other establishments,25/09/19,6322813,1390.5,VENDOR,AFFINITY TRUST LTD,135643
Portsmouth City Council,PCC,Adult Social Care,Learning Disability Support  Adults (18 - 64),Adult Services,Third Party Payments,Other establishments,25/09/19,6322813,5194.48,VENDOR,AFFINITY TRUST LTD,135643
Portsmouth City Council,PCC,Adult Social Care,Learning Disability Support  Adults (18 - 64),Adult Services,Third Party Payments,Other establishments,25/09/19,6322813,804.06,VENDOR,AFFINITY TRUST LTD,135643
Portsmouth City Council,PCC,Adult Social Care,Learning Disability Support  Adults (18 - 64),Adult Services,Third Party Payments,Other establishments,25/09/19,6322813,3350.25,VENDOR,AFFINITY TRUST LTD,135643
Portsmouth City Council,PCC,Adult Social Care,Learning Disability Support  Adults (18 - 64),Adult Services,Third Party Payments,Other establishments,25/09/19,6322813,618.36,VENDOR,AFFINITY TRUST LTD,135643
Portsmouth City Council,PCC,Adult Social Care,Learning Disability Support  Adults (18 - 64),Adult Services,Third Party Payments,Other establishments,25/09/19,6322813,3350.25,VENDOR,AFFINITY TRUST LTD,135643
Portsmouth City Council,PCC,Adult Social Care,Learning Disability Support  Adults (18 - 64),Adult Services,Third Party Payments,Other establishments,25/09/19,6322813,618.36,VENDOR,AFFINITY TRUST LTD,135643
Portsmouth City Council,PCC,Adult Social Care,Learning Disability Support  Adults (18 - 64),Adult Services,Third Party Payments,Other establishments,25/09/19,6322813,5194.48,VENDOR,AFFINITY TRUST LTD,135643
Portsmouth City Council,PCC,Adult Social Care,Learning Disability Support  Adults (18 - 64),Adult Services,Third Party Payments,Other establishments,25/09/19,6322813,804.06,VENDOR,AFFINITY TRUST LTD,135643
Portsmouth City Council,PCC,Adult Social Care,Learning Disability Support  Adults (18 - 64),Adult Services,Third Party Payments,Other establishments,25/09/19,6322813,-6923.85,VENDOR,AFFINITY TRUST LTD,135643
Portsmouth City Council,PCC,Adult Social Care,Learning Disability Support  Adults (18 - 64),Adult Services,Third Party Payments,Other establishments,25/09/19,6322813,-4154.31,VENDOR,AFFINITY TRUST LTD,135643
Portsmouth City Council,PCC,Adult Social Care,Learning Disability Support  Adults (18 - 64),Adult Services,Third Party Payments,Other establishments,25/09/19,6322813,-6923.85,VENDOR,AFFINITY TRUST LTD,135643
Portsmouth City Council,PCC,Adult Social Care,Learning Disability Support  Adults (18 - 64),Adult Services,Third Party Payments,Other establishments,25/09/19,6322813,-4154.31,VENDOR,AFFINITY TRUST LTD,135643
Portsmouth City Council,PCC,Adult Social Care,Learning Disability Support  Adults (18 - 64),Adult Services,Third Party Payments,Other establishments,25/09/19,6322813,-6700.5,VENDOR,AFFINITY TRUST LTD,135643
Portsmouth City Council,PCC,Adult Social Care,Learning Disability Support  Adults (18 - 64),Adult Services,Third Party Payments,Other establishments,25/09/19,6322813,-4020.3,VENDOR,AFFINITY TRUST LTD,135643
Portsmouth City Council,PCC,Adult Social Care,Learning Disability Support  Adults (18 - 64),Adult Services,Third Party Payments,Other establishments,25/09/19,6322813,-5583.75,VENDOR,AFFINITY TRUST LTD,135643
Portsmouth City Council,PCC,Adult Social Care,Learning Disability Support  Adults (18 - 64),Adult Services,Third Party Payments,Other establishments,25/09/19,6322813,-3350.25,VENDOR,AFFINITY TRUST LTD,135643
Portsmouth City Council,PCC,Adult Social Care,Learning Disability Support  Adults (18 - 64),Adult Services,Third Party Payments,Other establishments,25/09/19,6322813,3350.25,VENDOR,AFFINITY TRUST LTD,135643
Portsmouth City Council,PCC,Adult Social Care,Learning Disability Support  Adults (18 - 64),Adult Services,Third Party Payments,Other establishments,25/09/19,6322813,618.36,VENDOR,AFFINITY TRUST LTD,135643
Portsmouth City Council,PCC,Adult Social Care,Learning Disability Support  Adults (18 - 64),Adult Services,Third Party Payments,Other establishments,25/09/19,6322813,3350.25,VENDOR,AFFINITY TRUST LTD,135643
Portsmouth City Council,PCC,Adult Social Care,Learning Disability Support  Adults (18 - 64),Adult Services,Third Party Payments,Other establishments,25/09/19,6322813,618.36,VENDOR,AFFINITY TRUST LTD,135643
Portsmouth City Council,PCC,Adult Social Care,Learning Disability Support  Adults (18 - 64),Adult Services,Third Party Payments,Other establishments,25/09/19,6322813,5194.48,VENDOR,AFFINITY TRUST LTD,135643
Portsmouth City Council,PCC,Adult Social Care,Learning Disability Support  Adults (18 - 64),Adult Services,Third Party Payments,Other establishments,25/09/19,6322813,804.06,VENDOR,AFFINITY TRUST LTD,135643
Portsmouth City Council,PCC,Adult Social Care,Learning Disability Support  Adults (18 - 64),Adult Services,Third Party Payments,Other establishments,25/09/19,6322813,5194.48,VENDOR,AFFINITY TRUST LTD,135643
Portsmouth City Council,PCC,Adult Social Care,Learning Disability Support  Adults (18 - 64),Adult Services,Third Party Payments,Other establishments,25/09/19,6322813,804.06,VENDOR,AFFINITY TRUST LTD,135643
Portsmouth City Council,PCC,Adult Social Care,Learning Disability Support  Adults (18 - 64),Adult Services,Third Party Payments,Other establishments,25/09/19,6322813,3350.25,VENDOR,AFFINITY TRUST LTD,135643
Portsmouth City Council,PCC,Adult Social Care,Learning Disability Support  Adults (18 - 64),Adult Services,Third Party Payments,Other establishments,25/09/19,6322813,618.36,VENDOR,AFFINITY TRUST LTD,135643
Portsmouth City Council,PCC,Adult Social Care,Learning Disability Support  Adults (18 - 64),Adult Services,Third Party Payments,Other establishments,25/09/19,6322813,3350.25,VENDOR,AFFINITY TRUST LTD,135643
Portsmouth City Council,PCC,Adult Social Care,Learning Disability Support  Adults (18 - 64),Adult Services,Third Party Payments,Other establishments,25/09/19,6322813,618.36,VENDOR,AFFINITY TRUST LTD,135643
Portsmouth City Council,PCC,Adult Social Care,Learning Disability Support  Adults (18 - 64),Adult Services,Third Party Payments,Other establishments,25/09/19,6322813,3350.25,VENDOR,AFFINITY TRUST LTD,135643
Portsmouth City Council,PCC,Adult Social Care,Learning Disability Support  Adults (18 - 64),Adult Services,Third Party Payments,Other establishments,25/09/19,6322813,618.36,VENDOR,AFFINITY TRUST LTD,135643
Portsmouth City Council,PCC,Adult Social Care,Learning Disability Support  Adults (18 - 64),Adult Services,Third Party Payments,Other establishments,25/09/19,6322813,1148.66,VENDOR,AFFINITY TRUST LTD,135643
Portsmouth City Council,PCC,Adult Social Care,Learning Disability Support  Adults (18 - 64),Adult Services,Third Party Payments,Other establishments,25/09/19,6322813,3350.25,VENDOR,AFFINITY TRUST LTD,135643
Portsmouth City Council,PCC,Adult Social Care,Learning Disability Support  Adults (18 - 64),Adult Services,Third Party Payments,Other establishments,25/09/19,6322813,618.36,VENDOR,AFFINITY TRUST LTD,135643
Portsmouth City Council,PCC,Adult Social Care,Learning Disability Support  Adults (18 - 64),Adult Services,Third Party Payments,Other establishments,25/09/19,6322813,5194.48,VENDOR,AFFINITY TRUST LTD,135643
Portsmouth City Council,PCC,Adult Social Care,Learning Disability Support  Adults (18 - 64),Adult Services,Third Party Payments,Other establishments,25/09/19,6322813,804.06,VENDOR,AFFINITY TRUST LTD,135643
Portsmouth City Council,PCC,Adult Social Care,Learning Disability Support  Adults (18 - 64),Adult Services,Third Party Payments,Other establishments,25/09/19,6322813,3350.25,VENDOR,AFFINITY TRUST LTD,135643
Portsmouth City Council,PCC,Adult Social Care,Learning Disability Support  Adults (18 - 64),Adult Services,Third Party Payments,Other establishments,25/09/19,6322813,618.36,VENDOR,AFFINITY TRUST LTD,135643
Portsmouth City Council,PCC,Adult Social Care,Learning Disability Support  Adults (18 - 64),Adult Services,Third Party Payments,Other establishments,25/09/19,6322813,5312.54,VENDOR,AFFINITY TRUST LTD,135643
Portsmouth City Council,PCC,Adult Social Care,Learning Disability Support  Adults (18 - 64),Adult Services,Third Party Payments,Other establishments,25/09/19,6322813,1390.5,VENDOR,AFFINITY TRUST LTD,135643
Portsmouth City Council,PCC,Adult Social Care,Physical Support Older People (85+),Adult Services,Third Party Payments,Other establishments,05/09/19,6319681,3744.6,VENDOR,AGINCARE UK,134367
Portsmouth City Council,PCC,Adult Social Care,Physical Support Older People (85+),Adult Services,Third Party Payments,Other establishments,12/09/19,6320713,2748.3,VENDOR,AGINCARE UK,134367
Portsmouth City Council,PCC,Adult Social Care,Physical Support Older People (85+),Adult Services,Third Party Payments,Other establishments,12/09/19,6320713,4714.5,VENDOR,AGINCARE UK,134367
Portsmouth City Council,PCC,Adult Social Care,Learning Disability Support  Adults (18 - 64),Adult Services,Third Party Payments,Other establishments,12/09/19,6320714,7293.9,VENDOR,AITCH CARE HOMES (LONDON) LIMITED,125606
Portsmouth City Council,PCC,Adult Social Care,Learning Disability Support  Adults (18 - 64),Adult Services,Third Party Payments,Other establishments,12/09/19,6320714,7608,VENDOR,AITCH CARE HOMES (LONDON) LIMITED,125606
Portsmouth City Council,PCC,Adult Social Care,Learning Disability Support  Adults (18 - 64),Adult Services,Third Party Payments,Other establishments,12/09/19,6320714,8305.2,VENDOR,AITCH CARE HOMES (LONDON) LIMITED,125606
Portsmouth City Council,PCC,Adult Social Care,Learning Disability Support  Adults (18 - 64),Adult Services,Third Party Payments,Other establishments,12/09/19,6320715,6567.6,VENDOR,ALBANY FARM CARE (HAMPSHIRE) LTD,140215
Portsmouth City Council,PCC,Adult Social Care,Mental Health Support Adults (18 - 64),Adult Services,Third Party Payments,Other establishments,12/09/19,6320715,2792.4,VENDOR,ALBANY FARM CARE (HAMPSHIRE) LTD,140215
Portsmouth City Council,PCC,Adult Social Care,Support with Memory and Cognition Older People (85+),Adult Services,Third Party Payments,Other establishments,12/09/19,6320717,3857.1,VENDOR,ALEXANDRA ROSE RESIDENTIAL CARE HOME,101952
Portsmouth City Council,PCC,Adult Social Care,Support with Memory and Cognition Older People (85+),Adult Services,Third Party Payments,Other establishments,12/09/19,6320717,1225.2,VENDOR,ALEXANDRA ROSE RESIDENTIAL CARE HOME,101952
Portsmouth City Council,PCC,Adult Social Care,Learning Disability Support  Adults (18 - 64),Adult Services,Third Party Payments,Other establishments,12/09/19,6320718,4178.7,VENDOR,ALLIED CARE LTD,123734
Portsmouth City Council,PCC,Adult Social Care,Learning Disability Support  Adults (18 - 64),Adult Services,Third Party Payments,Other establishments,17/09/19,6321249,4268.1,VENDOR,ALLIED CARE LTD,123734
Portsmouth City Council,PCC,Adult Social Care,Learning Disability Support  Adults (18 - 64),Adult Services,Third Party Payments,Other establishments,17/09/19,6321248,6122.7,VENDOR,ALLIED CARE LTD,123734
Portsmouth City Council,PCC,Adult Social Care,Learning Disability Support  Adults (18 - 64),Adult Services,Third Party Payments,Other establishments,25/09/19,6322815,1228.29,VENDOR,ALLIED CARE LTD,123734
Portsmouth City Council,PCC,Adult Social Care,Physical Support Older People (85+),Adult Services,Third Party Payments,Other establishments,26/09/19,6323388,945.28,VENDOR,ALLIED HEALTH-SERVICES LIMITED,137338
Portsmouth City Council,PCC,Adult Social Care,Physical Support Older People (85+),Adult Services,Third Party Payments,Other establishments,26/09/19,6323388,590.8,VENDOR,ALLIED HEALTH-SERVICES LIMITED,137338
Portsmouth City Council,PCC,Adult Social Care,Physical Support Older People (85+),Adult Services,Third Party Payments,Other establishments,26/09/19,6323388,135.04,VENDOR,ALLIED HEALTH-SERVICES LIMITED,137338
Portsmouth City Council,PCC,Adult Social Care,Physical Support Older People (85+),Adult Services,Third Party Payments,Other establishments,26/09/19,6323388,945.28,VENDOR,ALLIED HEALTH-SERVICES LIMITED,137338
Portsmouth City Council,PCC,Adult Social Care,Physical Support Older People (85+),Adult Services,Third Party Payments,Other establishments,26/09/19,6323388,278.52,VENDOR,ALLIED HEALTH-SERVICES LIMITED,137338
Portsmouth City Council,PCC,Adult Social Care,Physical Support Older People (85+),Adult Services,Third Party Payments,Other establishments,26/09/19,6323388,168.8,VENDOR,ALLIED HEALTH-SERVICES LIMITED,137338
Portsmouth City Council,PCC,Adult Social Care,Physical Support Older People (85+),Adult Services,Third Party Payments,Other establishments,26/09/19,6323388,1046.56,VENDOR,ALLIED HEALTH-SERVICES LIMITED,137338
Portsmouth City Council,PCC,Adult Social Care,Learning Disability Support  Adults (18 - 64),Adult Services,Transport-Related Expenditure,Direct transport costs,30/09/19,6323734,494.45,VENDOR,ALLSTAR BUSINESS SOLUTIONS LTD,135770
Portsmouth City Council,PCC,Adult Social Care,Support with Memory and Cognition Older People (85+),Adult Services,Third Party Payments,Other establishments,12/09/19,6320719,2637,VENDOR,ALTON HOUSE PARTNERSHIP,119112
Portsmouth City Council,PCC,Adult Social Care,Support with Memory and Cognition Older People (85+),Adult Services,Third Party Payments,Other establishments,12/09/19,6320719,2637,VENDOR,ALTON HOUSE PARTNERSHIP,119112
Portsmouth City Council,PCC,Adult Social Care,Physical Support Older People (85+),Adult Services,Third Party Payments,Other establishments,12/09/19,6320720,2027.2,VENDOR,ALTON MANOR CARE HOME,130289
Portsmouth City Council,PCC,Adult Social Care,Physical Support Older People (85+),Adult Services,Third Party Payments,Other establishments,12/09/19,6320720,-868.8,VENDOR,ALTON MANOR CARE HOME,130289
Portsmouth City Council,PCC,Adult Social Care,Physical Support Older People (85+),Adult Services,Third Party Payments,Other establishments,12/09/19,6320720,-1158.4,VENDOR,ALTON MANOR CARE HOME,130289
Portsmouth City Council,PCC,Adult Social Care,Physical Support Older People (85+),Adult Services,Third Party Payments,Other establishments,12/09/19,6320720,651.6,VENDOR,ALTON MANOR CARE HOME,130289
Portsmouth City Council,PCC,Adult Social Care,Physical Support Older People (85+),Adult Services,Third Party Payments,Other establishments,12/09/19,6320720,1158.4,VENDOR,ALTON MANOR CARE HOME,130289
Portsmouth City Council,PCC,Adult Social Care,Physical Support Older People (85+),Adult Services,Third Party Payments,Other establishments,12/09/19,6320720,2027.2,VENDOR,ALTON MANOR CARE HOME,130289
Portsmouth City Council,PCC,Adult Social Care,Support with Memory and Cognition Older People (85+),Adult Services,Third Party Payments,Other establishments,12/09/19,6320720,2172,VENDOR,ALTON MANOR CARE HOME,130289
Portsmouth City Council,PCC,Adult Social Care,Support with Memory and Cognition Older People (85+),Adult Services,Third Party Payments,Other establishments,12/09/19,6320720,2172,VENDOR,ALTON MANOR CARE HOME,130289
Portsmouth City Council,PCC,Adult Social Care,Support with Memory and Cognition Older People (85+),Adult Services,Third Party Payments,Other establishments,12/09/19,6320720,2172,VENDOR,ALTON MANOR CARE HOME,130289
Portsmouth City Council,PCC,Adult Social Care,Support with Memory and Cognition Older People (85+),Adult Services,Third Party Payments,Other establishments,12/09/19,6320720,2172,VENDOR,ALTON MANOR CARE HOME,130289
Portsmouth City Council,PCC,Adult Social Care,Support with Memory and Cognition Older People (85+),Adult Services,Third Party Payments,Other establishments,12/09/19,6320720,-843.92,VENDOR,ALTON MANOR CARE HOME,130289
Portsmouth City Council,PCC,Adult Social Care,Support with Memory and Cognition Older People (85+),Adult Services,Third Party Payments,Other establishments,12/09/19,6320720,2172,VENDOR,ALTON MANOR CARE HOME,130289
Portsmouth City Council,PCC,Adult Social Care,Support with Memory and Cognition Older People (85+),Adult Services,Third Party Payments,Other establishments,12/09/19,6320720,2244.4,VENDOR,ALTON MANOR CARE HOME,130289
Portsmouth City Council,PCC,Adult Social Care,Support with Memory and Cognition Older People (85+),Adult Services,Third Party Payments,Other establishments,12/09/19,6320720,1158.4,VENDOR,ALTON MANOR CARE HOME,130289
Portsmouth City Council,PCC,Adult Social Care,Support with Memory and Cognition Older People (85+),Adult Services,Third Party Payments,Other establishments,12/09/19,6320720,2172,VENDOR,ALTON MANOR CARE HOME,130289
Portsmouth City Council,PCC,Adult Social Care,Support with Memory and Cognition Older People (85+),Adult Services,Third Party Payments,Other establishments,12/09/19,6320720,2172,VENDOR,ALTON MANOR CARE HOME,130289
Portsmouth City Council,PCC,Adult Social Care,Support with Memory and Cognition Older People (85+),Adult Services,Third Party Payments,Other establishments,12/09/19,6320720,2172,VENDOR,ALTON MANOR CARE HOME,130289
Portsmouth City Council,PCC,Adult Social Care,Support with Memory and Cognition Older People (85+),Adult Services,Third Party Payments,Other establishments,12/09/19,6320720,2244.4,VENDOR,ALTON MANOR CARE HOME,130289
Portsmouth City Council,PCC,Adult Social Care,Support with Memory and Cognition Older People (85+),Adult Services,Third Party Payments,Other establishments,12/09/19,6320720,2244.4,VENDOR,ALTON MANOR CARE HOME,130289
Portsmouth City Council,PCC,Adult Social Care,Support with Memory and Cognition Older People (85+),Adult Services,Third Party Payments,Other establishments,12/09/19,6320720,2172,VENDOR,ALTON MANOR CARE HOME,130289
Portsmouth City Council,PCC,Adult Social Care,Support with Memory and Cognition Older People (85+),Adult Services,Third Party Payments,Other establishments,12/09/19,6320720,1086,VENDOR,ALTON MANOR CARE HOME,130289
Portsmouth City Council,PCC,Adult Social Care,Support with Memory and Cognition Older People (85+),Adult Services,Third Party Payments,Other establishments,12/09/19,6320720,2172,VENDOR,ALTON MANOR CARE HOME,130289
Portsmouth City Council,PCC,Adult Social Care,Support with Memory and Cognition Older People (85+),Adult Services,Third Party Payments,Other establishments,12/09/19,6320720,2172,VENDOR,ALTON MANOR CARE HOME,130289
Portsmouth City Council,PCC,Adult Social Care,Support with Memory and Cognition Older People (85+),Adult Services,Third Party Payments,Other establishments,12/09/19,6320720,2172,VENDOR,ALTON MANOR CARE HOME,130289
Portsmouth City Council,PCC,Adult Social Care,Support with Memory and Cognition Older People (85+),Adult Services,Third Party Payments,Other establishments,12/09/19,6320720,3000,VENDOR,ALTON MANOR CARE HOME,130289
Portsmouth City Council,PCC,Adult Social Care,Support with Memory and Cognition Older People (85+),Adult Services,Third Party Payments,Other establishments,12/09/19,6320720,2172,VENDOR,ALTON MANOR CARE HOME,130289
Portsmouth City Council,PCC,Adult Social Care,Support with Memory and Cognition Older People (85+),Adult Services,Third Party Payments,Other establishments,12/09/19,6320720,2172,VENDOR,ALTON MANOR CARE HOME,130289
Portsmouth City Council,PCC,Adult Social Care,Support with Memory and Cognition Older People (85+),Adult Services,Third Party Payments,Other establishments,12/09/19,6320720,2172,VENDOR,ALTON MANOR CARE HOME,130289
Portsmouth City Council,PCC,Adult Social Care,Mental Health Support Adults (18 - 64),Adult Services,Third Party Payments,Other establishments,12/09/19,6320720,2088.6,VENDOR,ALTON MANOR CARE HOME,130289
Portsmouth City Council,PCC,Adult Social Care,Information and Early Intervention,Adult Services,Third Party Payments,Other establishments,27/09/19,6323519,19965,VENDOR,APETITO LTD,100127
Portsmouth City Council,PCC,Adult Social Care,Information and Early Intervention,Adult Services,Third Party Payments,Other establishments,27/09/19,6323519,1725.75,VENDOR,APETITO LTD,100127
Portsmouth City Council,PCC,Adult Social Care,Information and Early Intervention,Adult Services,Income,Customer and client receipts,27/09/19,6323519,-19965,VENDOR,APETITO LTD,100127
Portsmouth City Council,PCC,Adult Social Care,Information and Early Intervention,Adult Services,Income,Customer and client receipts,27/09/19,6323519,-1725.75,VENDOR,APETITO LTD,100127
Portsmouth City Council,PCC,Adult Social Care,Physical Support Older People (85+),Adult Services,Third Party Payments,Other establishments,18/09/19,6321360,37.98,VENDOR,APEX PROPERTY VENTURES LTD,108437
Portsmouth City Council,PCC,Adult Social Care,Mental Health Support Older People (65 - 74),Adult Services,Third Party Payments,Other establishments,18/09/19,6321360,822.9,VENDOR,APEX PROPERTY VENTURES LTD,108437
Portsmouth City Council,PCC,Adult Social Care,Social Care Activities,Adult Services,Third Party Payments,Other establishments,18/09/19,6321360,97.06,VENDOR,APEX PROPERTY VENTURES LTD,108437
Portsmouth City Council,PCC,Adult Social Care,Social Care Activities,Adult Services,Third Party Payments,Other establishments,18/09/19,6321360,97.06,VENDOR,APEX PROPERTY VENTURES LTD,108437
Portsmouth City Council,PCC,Adult Social Care,Social Care Activities,Adult Services,Third Party Payments,Other establishments,18/09/19,6321360,8967.5,VENDOR,APEX PROPERTY VENTURES LTD,108437
Portsmouth City Council,PCC,Adult Social Care,Social Care Activities,Adult Services,Third Party Payments,Other establishments,18/09/19,6321360,2236.6,VENDOR,APEX PROPERTY VENTURES LTD,108437
Portsmouth City Council,PCC,Adult Social Care,Social Care Activities,Adult Services,Third Party Payments,Other establishments,18/09/19,6321360,143.48,VENDOR,APEX PROPERTY VENTURES LTD,108437
Portsmouth City Council,PCC,Adult Social Care,Social Care Activities,Adult Services,Third Party Payments,Other establishments,18/09/19,6321360,447.32,VENDOR,APEX PROPERTY VENTURES LTD,108437
Portsmouth City Council,PCC,Adult Social Care,Physical Support Adults (18 - 64),Adult Services,Third Party Payments,Other establishments,18/09/19,6321360,253.2,VENDOR,APEX PROPERTY VENTURES LTD,108437
Portsmouth City Council,PCC,Adult Social Care,Physical Support Adults (18 - 64),Adult Services,Third Party Payments,Other establishments,18/09/19,6321360,232.1,VENDOR,APEX PROPERTY VENTURES LTD,108437
Portsmouth City Council,PCC,Adult Social Care,Physical Support Adults (18 - 64),Adult Services,Third Party Payments,Other establishments,18/09/19,6321360,101.28,VENDOR,APEX PROPERTY VENTURES LTD,108437
Portsmouth City Council,PCC,Adult Social Care,Physical Support Adults (18 - 64),Adult Services,Third Party Payments,Other establishments,18/09/19,6321360,270.08,VENDOR,APEX PROPERTY VENTURES LTD,108437
Portsmouth City Council,PCC,Adult Social Care,Physical Support Adults (18 - 64),Adult Services,Third Party Payments,Other establishments,18/09/19,6321360,101.28,VENDOR,APEX PROPERTY VENTURES LTD,108437
Portsmouth City Council,PCC,Adult Social Care,Physical Support Adults (18 - 64),Adult Services,Third Party Payments,Other establishments,18/09/19,6321360,101.28,VENDOR,APEX PROPERTY VENTURES LTD,108437
Portsmouth City Council,PCC,Adult Social Care,Physical Support Adults (18 - 64),Adult Services,Third Party Payments,Other establishments,18/09/19,6321360,371.36,VENDOR,APEX PROPERTY VENTURES LTD,108437
Portsmouth City Council,PCC,Adult Social Care,Physical Support Adults (18 - 64),Adult Services,Third Party Payments,Other establishments,18/09/19,6321360,320.72,VENDOR,APEX PROPERTY VENTURES LTD,108437
Portsmouth City Council,PCC,Adult Social Care,Physical Support Adults (18 - 64),Adult Services,Third Party Payments,Other establishments,18/09/19,6321360,320.72,VENDOR,APEX PROPERTY VENTURES LTD,108437
Portsmouth City Council,PCC,Adult Social Care,Physical Support Adults (18 - 64),Adult Services,Third Party Payments,Other establishments,18/09/19,6321360,472.64,VENDOR,APEX PROPERTY VENTURES LTD,108437
Portsmouth City Council,PCC,Adult Social Care,Physical Support Adults (18 - 64),Adult Services,Third Party Payments,Other establishments,18/09/19,6321360,472.64,VENDOR,APEX PROPERTY VENTURES LTD,108437
Portsmouth City Council,PCC,Adult Social Care,Physical Support Adults (18 - 64),Adult Services,Third Party Payments,Other establishments,18/09/19,6321360,236.32,VENDOR,APEX PROPERTY VENTURES LTD,108437
Portsmouth City Council,PCC,Adult Social Care,Physical Support Adults (18 - 64),Adult Services,Third Party Payments,Other establishments,18/09/19,6321360,168.8,VENDOR,APEX PROPERTY VENTURES LTD,108437
Portsmouth City Council,PCC,Adult Social Care,Physical Support Adults (18 - 64),Adult Services,Third Party Payments,Other establishments,18/09/19,6321360,113.94,VENDOR,APEX PROPERTY VENTURES LTD,108437
Portsmouth City Council,PCC,Adult Social Care,Physical Support Adults (18 - 64),Adult Services,Third Party Payments,Other establishments,18/09/19,6321360,472.64,VENDOR,APEX PROPERTY VENTURES LTD,108437
Portsmouth City Council,PCC,Adult Social Care,Physical Support Adults (18 - 64),Adult Services,Third Party Payments,Other establishments,18/09/19,6321360,472.64,VENDOR,APEX PROPERTY VENTURES LTD,108437
Portsmouth City Council,PCC,Adult Social Care,Physical Support Older People (85+),Adult Services,Third Party Payments,Other establishments,18/09/19,6321360,227.88,VENDOR,APEX PROPERTY VENTURES LTD,108437
Portsmouth City Council,PCC,Adult Social Care,Physical Support Older People (85+),Adult Services,Third Party Payments,Other establishments,18/09/19,6321360,346.04,VENDOR,APEX PROPERTY VENTURES LTD,108437
Portsmouth City Council,PCC,Adult Social Care,Physical Support Older People (85+),Adult Services,Third Party Payments,Other establishments,18/09/19,6321360,92.84,VENDOR,APEX PROPERTY VENTURES LTD,108437
Portsmouth City Council,PCC,Adult Social Care,Physical Support Older People (85+),Adult Services,Third Party Payments,Other establishments,18/09/19,6321360,168.8,VENDOR,APEX PROPERTY VENTURES LTD,108437
Portsmouth City Council,PCC,Adult Social Care,Physical Support Older People (85+),Adult Services,Third Party Payments,Other establishments,18/09/19,6321360,354.48,VENDOR,APEX PROPERTY VENTURES LTD,108437
Portsmouth City Council,PCC,Adult Social Care,Physical Support Older People (85+),Adult Services,Third Party Payments,Other establishments,18/09/19,6321360,708.96,VENDOR,APEX PROPERTY VENTURES LTD,108437
Portsmouth City Council,PCC,Adult Social Care,Physical Support Older People (85+),Adult Services,Third Party Payments,Other establishments,18/09/19,6321360,590.8,VENDOR,APEX PROPERTY VENTURES LTD,108437
Portsmouth City Council,PCC,Adult Social Care,Physical Support Older People (85+),Adult Services,Third Party Payments,Other establishments,18/09/19,6321360,1038.12,VENDOR,APEX PROPERTY VENTURES LTD,108437
Portsmouth City Council,PCC,Adult Social Care,Physical Support Older People (85+),Adult Services,Third Party Payments,Other establishments,18/09/19,6321360,185.68,VENDOR,APEX PROPERTY VENTURES LTD,108437
Portsmouth City Council,PCC,Adult Social Care,Physical Support Older People (85+),Adult Services,Third Party Payments,Other establishments,18/09/19,6321360,472.64,VENDOR,APEX PROPERTY VENTURES LTD,108437
Portsmouth City Council,PCC,Adult Social Care,Physical Support Older People (85+),Adult Services,Third Party Payments,Other establishments,18/09/19,6321360,945.28,VENDOR,APEX PROPERTY VENTURES LTD,108437
Portsmouth City Council,PCC,Adult Social Care,Physical Support Older People (85+),Adult Services,Third Party Payments,Other establishments,18/09/19,6321360,945.28,VENDOR,APEX PROPERTY VENTURES LTD,108437
Portsmouth City Council,PCC,Adult Social Care,Physical Support Older People (85+),Adult Services,Third Party Payments,Other establishments,18/09/19,6321360,405.12,VENDOR,APEX PROPERTY VENTURES LTD,108437
Portsmouth City Council,PCC,Adult Social Care,Physical Support Older People (85+),Adult Services,Third Party Payments,Other establishments,18/09/19,6321360,101.28,VENDOR,APEX PROPERTY VENTURES LTD,108437
Portsmouth City Council,PCC,Adult Social Care,Physical Support Older People (85+),Adult Services,Third Party Payments,Other establishments,18/09/19,6321360,708.96,VENDOR,APEX PROPERTY VENTURES LTD,108437
Portsmouth City Council,PCC,Adult Social Care,Physical Support Older People (85+),Adult Services,Third Party Payments,Other establishments,18/09/19,6321360,92.84,VENDOR,APEX PROPERTY VENTURES LTD,108437
Portsmouth City Council,PCC,Adult Social Care,Physical Support Older People (85+),Adult Services,Third Party Payments,Other establishments,18/09/19,6321360,168.8,VENDOR,APEX PROPERTY VENTURES LTD,108437
Portsmouth City Council,PCC,Other,Suspense and Capital Schemes,Capital - Traffic & Transportation,Capital Charges,Capital Expenditure (WIP),23/09/19,6322615,33430.5,VENDOR,HISTORIC BUILDINGS RESTORATION,138335
Portsmouth City Council,PCC,Central Services,Coroners' Court Services,"Culture, Leisure & Regulatory Services",Supplies and Services,Services,17/09/19,6321305,125,SOLETRADER,Classified as 'personal data' (under the Data Protection Act 2018),140312
Portsmouth City Council,PCC,Adult Social Care,Physical Support Older People (85+),Adult Services,Third Party Payments,Other establishments,18/09/19,6321360,1181.6,VENDOR,APEX PROPERTY VENTURES LTD,108437
Portsmouth City Council,PCC,Adult Social Care,Physical Support Older People (85+),Adult Services,Third Party Payments,Other establishments,18/09/19,6321360,1181.6,VENDOR,APEX PROPERTY VENTURES LTD,108437
Portsmouth City Council,PCC,Adult Social Care,Physical Support Older People (85+),Adult Services,Third Party Payments,Other establishments,18/09/19,6321360,202.56,VENDOR,APEX PROPERTY VENTURES LTD,108437
Portsmouth City Council,PCC,Adult Social Care,Physical Support Older People (85+),Adult Services,Third Party Payments,Other establishments,18/09/19,6321360,590.8,VENDOR,APEX PROPERTY VENTURES LTD,108437
Portsmouth City Council,PCC,Adult Social Care,Physical Support Older People (85+),Adult Services,Third Party Payments,Other establishments,18/09/19,6321360,590.8,VENDOR,APEX PROPERTY VENTURES LTD,108437
Portsmouth City Council,PCC,Adult Social Care,Physical Support Older People (85+),Adult Services,Third Party Payments,Other establishments,18/09/19,6321360,147.7,VENDOR,APEX PROPERTY VENTURES LTD,108437
Portsmouth City Council,PCC,Adult Social Care,Physical Support Older People (85+),Adult Services,Third Party Payments,Other establishments,18/09/19,6321360,1152.06,VENDOR,APEX PROPERTY VENTURES LTD,108437
Portsmouth City Council,PCC,Adult Social Care,Physical Support Older People (85+),Adult Services,Third Party Payments,Other establishments,18/09/19,6321360,1164.72,VENDOR,APEX PROPERTY VENTURES LTD,108437
Portsmouth City Council,PCC,Adult Social Care,Physical Support Older People (85+),Adult Services,Third Party Payments,Other establishments,18/09/19,6321360,945.28,VENDOR,APEX PROPERTY VENTURES LTD,108437
Portsmouth City Council,PCC,Adult Social Care,Physical Support Older People (85+),Adult Services,Third Party Payments,Other establishments,18/09/19,6321360,945.28,VENDOR,APEX PROPERTY VENTURES LTD,108437
Portsmouth City Council,PCC,Adult Social Care,Physical Support Older People (85+),Adult Services,Third Party Payments,Other establishments,18/09/19,6321360,67.52,VENDOR,APEX PROPERTY VENTURES LTD,108437
Portsmouth City Council,PCC,Adult Social Care,Physical Support Older People (85+),Adult Services,Third Party Payments,Other establishments,18/09/19,6321360,354.48,VENDOR,APEX PROPERTY VENTURES LTD,108437
Portsmouth City Council,PCC,Adult Social Care,Physical Support Older People (85+),Adult Services,Third Party Payments,Other establishments,18/09/19,6321360,708.96,VENDOR,APEX PROPERTY VENTURES LTD,108437
Portsmouth City Council,PCC,Adult Social Care,Physical Support Older People (85+),Adult Services,Third Party Payments,Other establishments,18/09/19,6321360,1063.44,VENDOR,APEX PROPERTY VENTURES LTD,108437
Portsmouth City Council,PCC,Adult Social Care,Physical Support Older People (85+),Adult Services,Third Party Payments,Other establishments,18/09/19,6321360,1063.44,VENDOR,APEX PROPERTY VENTURES LTD,108437
Portsmouth City Council,PCC,Adult Social Care,Physical Support Older People (85+),Adult Services,Third Party Payments,Other establishments,18/09/19,6321360,236.32,VENDOR,APEX PROPERTY VENTURES LTD,108437
Portsmouth City Council,PCC,Adult Social Care,Physical Support Older People (85+),Adult Services,Third Party Payments,Other establishments,18/09/19,6321360,236.32,VENDOR,APEX PROPERTY VENTURES LTD,108437
Portsmouth City Council,PCC,Adult Social Care,Physical Support Older People (85+),Adult Services,Third Party Payments,Other establishments,18/09/19,6321360,16.88,VENDOR,APEX PROPERTY VENTURES LTD,108437
Portsmouth City Council,PCC,Adult Social Care,Physical Support Older People (85+),Adult Services,Third Party Payments,Other establishments,18/09/19,6321360,708.96,VENDOR,APEX PROPERTY VENTURES LTD,108437
Portsmouth City Council,PCC,Adult Social Care,Physical Support Older People (85+),Adult Services,Third Party Payments,Other establishments,18/09/19,6321360,708.96,VENDOR,APEX PROPERTY VENTURES LTD,108437
Portsmouth City Council,PCC,Adult Social Care,Physical Support Older People (85+),Adult Services,Third Party Payments,Other establishments,18/09/19,6321360,135.04,VENDOR,APEX PROPERTY VENTURES LTD,108437
Portsmouth City Council,PCC,Adult Social Care,Physical Support Older People (85+),Adult Services,Third Party Payments,Other establishments,18/09/19,6321360,236.32,VENDOR,APEX PROPERTY VENTURES LTD,108437
Portsmouth City Council,PCC,Adult Social Care,Physical Support Older People (85+),Adult Services,Third Party Payments,Other establishments,18/09/19,6321360,236.32,VENDOR,APEX PROPERTY VENTURES LTD,108437
Portsmouth City Council,PCC,Adult Social Care,Physical Support Older People (85+),Adult Services,Third Party Payments,Other establishments,18/09/19,6321360,354.48,VENDOR,APEX PROPERTY VENTURES LTD,108437
Portsmouth City Council,PCC,Adult Social Care,Physical Support Older People (85+),Adult Services,Third Party Payments,Other establishments,18/09/19,6321360,1063.44,VENDOR,APEX PROPERTY VENTURES LTD,108437
Portsmouth City Council,PCC,Adult Social Care,Physical Support Older People (85+),Adult Services,Third Party Payments,Other establishments,18/09/19,6321360,1063.44,VENDOR,APEX PROPERTY VENTURES LTD,108437
Portsmouth City Council,PCC,Adult Social Care,Physical Support Older People (85+),Adult Services,Third Party Payments,Other establishments,18/09/19,6321360,590.8,VENDOR,APEX PROPERTY VENTURES LTD,108437
Portsmouth City Council,PCC,Adult Social Care,Physical Support Older People (85+),Adult Services,Third Party Payments,Other establishments,18/09/19,6321360,67.52,VENDOR,APEX PROPERTY VENTURES LTD,108437
Portsmouth City Council,PCC,Adult Social Care,Physical Support Older People (85+),Adult Services,Third Party Payments,Other establishments,18/09/19,6321360,236.32,VENDOR,APEX PROPERTY VENTURES LTD,108437
Portsmouth City Council,PCC,Adult Social Care,Physical Support Older People (85+),Adult Services,Third Party Payments,Other establishments,18/09/19,6321360,472.64,VENDOR,APEX PROPERTY VENTURES LTD,108437
Portsmouth City Council,PCC,Adult Social Care,Physical Support Older People (85+),Adult Services,Third Party Payments,Other establishments,18/09/19,6321360,227.88,VENDOR,APEX PROPERTY VENTURES LTD,108437
Portsmouth City Council,PCC,Adult Social Care,Physical Support Older People (85+),Adult Services,Third Party Payments,Other establishments,18/09/19,6321360,405.12,VENDOR,APEX PROPERTY VENTURES LTD,108437
Portsmouth City Council,PCC,Adult Social Care,Physical Support Older People (85+),Adult Services,Third Party Payments,Other establishments,18/09/19,6321360,1291.32,VENDOR,APEX PROPERTY VENTURES LTD,108437
Portsmouth City Council,PCC,Adult Social Care,Physical Support Older People (85+),Adult Services,Third Party Payments,Other establishments,18/09/19,6321360,1291.32,VENDOR,APEX PROPERTY VENTURES LTD,108437
Portsmouth City Council,PCC,Adult Social Care,Physical Support Older People (85+),Adult Services,Third Party Payments,Other establishments,18/09/19,6321360,101.28,VENDOR,APEX PROPERTY VENTURES LTD,108437
Portsmouth City Council,PCC,Adult Social Care,Physical Support Older People (85+),Adult Services,Third Party Payments,Other establishments,18/09/19,6321360,160.36,VENDOR,APEX PROPERTY VENTURES LTD,108437
Portsmouth City Council,PCC,Adult Social Care,Physical Support Older People (85+),Adult Services,Third Party Payments,Other establishments,18/09/19,6321360,700.52,VENDOR,APEX PROPERTY VENTURES LTD,108437
Portsmouth City Council,PCC,Adult Social Care,Physical Support Older People (85+),Adult Services,Third Party Payments,Other establishments,18/09/19,6321360,286.96,VENDOR,APEX PROPERTY VENTURES LTD,108437
Portsmouth City Council,PCC,Adult Social Care,Physical Support Older People (85+),Adult Services,Third Party Payments,Other establishments,18/09/19,6321360,236.32,VENDOR,APEX PROPERTY VENTURES LTD,108437
Portsmouth City Council,PCC,Adult Social Care,Physical Support Older People (85+),Adult Services,Third Party Payments,Other establishments,18/09/19,6321360,590.8,VENDOR,APEX PROPERTY VENTURES LTD,108437
Portsmouth City Council,PCC,Adult Social Care,Physical Support Older People (85+),Adult Services,Third Party Payments,Other establishments,18/09/19,6321360,67.52,VENDOR,APEX PROPERTY VENTURES LTD,108437
Portsmouth City Council,PCC,Adult Social Care,Physical Support Older People (85+),Adult Services,Third Party Payments,Other establishments,18/09/19,6321360,827.12,VENDOR,APEX PROPERTY VENTURES LTD,108437
Portsmouth City Council,PCC,Adult Social Care,Physical Support Older People (85+),Adult Services,Third Party Payments,Other establishments,18/09/19,6321360,827.12,VENDOR,APEX PROPERTY VENTURES LTD,108437
Portsmouth City Council,PCC,Adult Social Care,Physical Support Older People (85+),Adult Services,Third Party Payments,Other establishments,18/09/19,6321360,708.96,VENDOR,APEX PROPERTY VENTURES LTD,108437
Portsmouth City Council,PCC,Adult Social Care,Physical Support Older People (85+),Adult Services,Third Party Payments,Other establishments,18/09/19,6321360,236.32,VENDOR,APEX PROPERTY VENTURES LTD,108437
Portsmouth City Council,PCC,Adult Social Care,Physical Support Older People (85+),Adult Services,Third Party Payments,Other establishments,18/09/19,6321360,991.7,VENDOR,APEX PROPERTY VENTURES LTD,108437
Portsmouth City Council,PCC,Adult Social Care,Physical Support Older People (85+),Adult Services,Third Party Payments,Other establishments,18/09/19,6321360,1088.76,VENDOR,APEX PROPERTY VENTURES LTD,108437
Portsmouth City Council,PCC,Adult Social Care,Physical Support Older People (85+),Adult Services,Third Party Payments,Other establishments,18/09/19,6321360,1055,VENDOR,APEX PROPERTY VENTURES LTD,108437
Portsmouth City Council,PCC,Adult Social Care,Physical Support Older People (85+),Adult Services,Third Party Payments,Other establishments,18/09/19,6321360,1055,VENDOR,APEX PROPERTY VENTURES LTD,108437
Portsmouth City Council,PCC,Adult Social Care,Physical Support Older People (85+),Adult Services,Third Party Payments,Other establishments,18/09/19,6321360,827.12,VENDOR,APEX PROPERTY VENTURES LTD,108437
Portsmouth City Council,PCC,Adult Social Care,Physical Support Older People (85+),Adult Services,Third Party Payments,Other establishments,18/09/19,6321360,827.12,VENDOR,APEX PROPERTY VENTURES LTD,108437
Portsmouth City Council,PCC,Adult Social Care,Physical Support Older People (85+),Adult Services,Third Party Payments,Other establishments,18/09/19,6321360,67.52,VENDOR,APEX PROPERTY VENTURES LTD,108437
Portsmouth City Council,PCC,Adult Social Care,Physical Support Older People (85+),Adult Services,Third Party Payments,Other establishments,18/09/19,6321360,236.32,VENDOR,APEX PROPERTY VENTURES LTD,108437
Portsmouth City Council,PCC,Adult Social Care,Physical Support Older People (85+),Adult Services,Third Party Payments,Other establishments,18/09/19,6321360,354.48,VENDOR,APEX PROPERTY VENTURES LTD,108437
Portsmouth City Council,PCC,Adult Social Care,Physical Support Older People (85+),Adult Services,Third Party Payments,Other establishments,18/09/19,6321360,236.32,VENDOR,APEX PROPERTY VENTURES LTD,108437
Portsmouth City Council,PCC,Adult Social Care,Physical Support Older People (85+),Adult Services,Third Party Payments,Other establishments,18/09/19,6321360,354.48,VENDOR,APEX PROPERTY VENTURES LTD,108437
Portsmouth City Council,PCC,Adult Social Care,Physical Support Older People (85+),Adult Services,Third Party Payments,Other establishments,18/09/19,6321360,738.5,VENDOR,APEX PROPERTY VENTURES LTD,108437
Portsmouth City Council,PCC,Adult Social Care,Physical Support Older People (85+),Adult Services,Third Party Payments,Other establishments,18/09/19,6321360,506.4,VENDOR,APEX PROPERTY VENTURES LTD,108437
Portsmouth City Council,PCC,Adult Social Care,Physical Support Older People (85+),Adult Services,Third Party Payments,Other establishments,18/09/19,6321360,354.48,VENDOR,APEX PROPERTY VENTURES LTD,108437
Portsmouth City Council,PCC,Adult Social Care,Physical Support Older People (85+),Adult Services,Third Party Payments,Other establishments,18/09/19,6321360,135.04,VENDOR,APEX PROPERTY VENTURES LTD,108437
Portsmouth City Council,PCC,Adult Social Care,Physical Support Older People (85+),Adult Services,Third Party Payments,Other establishments,18/09/19,6321360,835.56,VENDOR,APEX PROPERTY VENTURES LTD,108437
Portsmouth City Council,PCC,Adult Social Care,Physical Support Older People (85+),Adult Services,Third Party Payments,Other establishments,18/09/19,6321360,375.58,VENDOR,APEX PROPERTY VENTURES LTD,108437
Portsmouth City Council,PCC,Adult Social Care,Physical Support Older People (85+),Adult Services,Third Party Payments,Other establishments,18/09/19,6321360,177.24,VENDOR,APEX PROPERTY VENTURES LTD,108437
Portsmouth City Council,PCC,Adult Social Care,Physical Support Older People (85+),Adult Services,Third Party Payments,Other establishments,18/09/19,6321360,438.88,VENDOR,APEX PROPERTY VENTURES LTD,108437
Portsmouth City Council,PCC,Adult Social Care,Physical Support Older People (85+),Adult Services,Third Party Payments,Other establishments,18/09/19,6321360,1063.44,VENDOR,APEX PROPERTY VENTURES LTD,108437
Portsmouth City Council,PCC,Adult Social Care,Physical Support Older People (85+),Adult Services,Third Party Payments,Other establishments,18/09/19,6321360,1063.44,VENDOR,APEX PROPERTY VENTURES LTD,108437
Portsmouth City Council,PCC,Adult Social Care,Physical Support Older People (85+),Adult Services,Third Party Payments,Other establishments,18/09/19,6321360,354.48,VENDOR,APEX PROPERTY VENTURES LTD,108437
Portsmouth City Council,PCC,Adult Social Care,Physical Support Older People (85+),Adult Services,Third Party Payments,Other establishments,18/09/19,6321360,827.12,VENDOR,APEX PROPERTY VENTURES LTD,108437
Portsmouth City Council,PCC,Adult Social Care,Physical Support Older People (85+),Adult Services,Third Party Payments,Other establishments,18/09/19,6321360,827.12,VENDOR,APEX PROPERTY VENTURES LTD,108437
Portsmouth City Council,PCC,Adult Social Care,Physical Support Older People (85+),Adult Services,Third Party Payments,Other establishments,18/09/19,6321360,1063.44,VENDOR,APEX PROPERTY VENTURES LTD,108437
Portsmouth City Council,PCC,Adult Social Care,Physical Support Older People (85+),Adult Services,Third Party Payments,Other establishments,18/09/19,6321360,101.28,VENDOR,APEX PROPERTY VENTURES LTD,108437
Portsmouth City Council,PCC,Adult Social Care,Physical Support Older People (85+),Adult Services,Third Party Payments,Other establishments,18/09/19,6321360,827.12,VENDOR,APEX PROPERTY VENTURES LTD,108437
Portsmouth City Council,PCC,Adult Social Care,Physical Support Older People (85+),Adult Services,Third Party Payments,Other establishments,18/09/19,6321360,945.28,VENDOR,APEX PROPERTY VENTURES LTD,108437
Portsmouth City Council,PCC,Adult Social Care,Physical Support Older People (85+),Adult Services,Third Party Payments,Other establishments,18/09/19,6321360,945.28,VENDOR,APEX PROPERTY VENTURES LTD,108437
Portsmouth City Council,PCC,Adult Social Care,Physical Support Older People (85+),Adult Services,Third Party Payments,Other establishments,18/09/19,6321360,1063.44,VENDOR,APEX PROPERTY VENTURES LTD,108437
Portsmouth City Council,PCC,Adult Social Care,Physical Support Older People (85+),Adult Services,Third Party Payments,Other establishments,18/09/19,6321360,1063.44,VENDOR,APEX PROPERTY VENTURES LTD,108437
Portsmouth City Council,PCC,Adult Social Care,Physical Support Older People (85+),Adult Services,Third Party Payments,Other establishments,18/09/19,6321360,101.28,VENDOR,APEX PROPERTY VENTURES LTD,108437
Portsmouth City Council,PCC,Adult Social Care,Physical Support Older People (85+),Adult Services,Third Party Payments,Other establishments,18/09/19,6321360,1641.58,VENDOR,APEX PROPERTY VENTURES LTD,108437
Portsmouth City Council,PCC,Adult Social Care,Physical Support Older People (85+),Adult Services,Third Party Payments,Other establishments,18/09/19,6321360,168.8,VENDOR,APEX PROPERTY VENTURES LTD,108437
Portsmouth City Council,PCC,Adult Social Care,Physical Support Older People (85+),Adult Services,Third Party Payments,Other establishments,18/09/19,6321360,945.28,VENDOR,APEX PROPERTY VENTURES LTD,108437
Portsmouth City Council,PCC,Adult Social Care,Physical Support Older People (85+),Adult Services,Third Party Payments,Other establishments,18/09/19,6321360,945.28,VENDOR,APEX PROPERTY VENTURES LTD,108437
Portsmouth City Council,PCC,Adult Social Care,Physical Support Older People (85+),Adult Services,Third Party Payments,Other establishments,18/09/19,6321360,236.32,VENDOR,APEX PROPERTY VENTURES LTD,108437
Portsmouth City Council,PCC,Adult Social Care,Physical Support Older People (85+),Adult Services,Third Party Payments,Other establishments,18/09/19,6321360,168.8,VENDOR,APEX PROPERTY VENTURES LTD,108437
Portsmouth City Council,PCC,Adult Social Care,Physical Support Older People (85+),Adult Services,Third Party Payments,Other establishments,18/09/19,6321360,384.02,VENDOR,APEX PROPERTY VENTURES LTD,108437
Portsmouth City Council,PCC,Adult Social Care,Physical Support Older People (85+),Adult Services,Third Party Payments,Other establishments,18/09/19,6321360,392.46,VENDOR,APEX PROPERTY VENTURES LTD,108437
Portsmouth City Council,PCC,Adult Social Care,Physical Support Older People (85+),Adult Services,Third Party Payments,Other establishments,18/09/19,6321360,67.52,VENDOR,APEX PROPERTY VENTURES LTD,108437
Portsmouth City Council,PCC,Adult Social Care,Physical Support Older People (85+),Adult Services,Third Party Payments,Other establishments,18/09/19,6321360,590.8,VENDOR,APEX PROPERTY VENTURES LTD,108437
Portsmouth City Council,PCC,Adult Social Care,Physical Support Older People (85+),Adult Services,Third Party Payments,Other establishments,18/09/19,6321360,1181.6,VENDOR,APEX PROPERTY VENTURES LTD,108437
Portsmouth City Council,PCC,Adult Social Care,Physical Support Older People (85+),Adult Services,Third Party Payments,Other establishments,18/09/19,6321360,1181.6,VENDOR,APEX PROPERTY VENTURES LTD,108437
Portsmouth City Council,PCC,Adult Social Care,Physical Support Older People (85+),Adult Services,Third Party Payments,Other establishments,18/09/19,6321360,827.12,VENDOR,APEX PROPERTY VENTURES LTD,108437
Portsmouth City Council,PCC,Adult Social Care,Physical Support Older People (85+),Adult Services,Third Party Payments,Other establishments,18/09/19,6321360,827.12,VENDOR,APEX PROPERTY VENTURES LTD,108437
Portsmouth City Council,PCC,Adult Social Care,Physical Support Older People (85+),Adult Services,Third Party Payments,Other establishments,18/09/19,6321360,329.16,VENDOR,APEX PROPERTY VENTURES LTD,108437
Portsmouth City Council,PCC,Adult Social Care,Physical Support Older People (85+),Adult Services,Third Party Payments,Other establishments,18/09/19,6321360,25.32,VENDOR,APEX PROPERTY VENTURES LTD,108437
Portsmouth City Council,PCC,Adult Social Care,Physical Support Older People (85+),Adult Services,Third Party Payments,Other establishments,18/09/19,6321360,236.32,VENDOR,APEX PROPERTY VENTURES LTD,108437
Portsmouth City Council,PCC,Adult Social Care,Physical Support Older People (85+),Adult Services,Third Party Payments,Other establishments,18/09/19,6321360,236.32,VENDOR,APEX PROPERTY VENTURES LTD,108437
Portsmouth City Council,PCC,Adult Social Care,Physical Support Older People (85+),Adult Services,Third Party Payments,Other establishments,18/09/19,6321360,236.32,VENDOR,APEX PROPERTY VENTURES LTD,108437
Portsmouth City Council,PCC,Adult Social Care,Physical Support Older People (85+),Adult Services,Third Party Payments,Other establishments,18/09/19,6321360,708.96,VENDOR,APEX PROPERTY VENTURES LTD,108437
Portsmouth City Council,PCC,Adult Social Care,Physical Support Older People (85+),Adult Services,Third Party Payments,Other establishments,18/09/19,6321360,708.96,VENDOR,APEX PROPERTY VENTURES LTD,108437
Portsmouth City Council,PCC,Adult Social Care,Physical Support Older People (85+),Adult Services,Third Party Payments,Other establishments,18/09/19,6321360,827.12,VENDOR,APEX PROPERTY VENTURES LTD,108437
Portsmouth City Council,PCC,Adult Social Care,Physical Support Older People (85+),Adult Services,Third Party Payments,Other establishments,18/09/19,6321360,236.32,VENDOR,APEX PROPERTY VENTURES LTD,108437
Portsmouth City Council,PCC,Adult Social Care,Physical Support Older People (85+),Adult Services,Third Party Payments,Other establishments,18/09/19,6321360,16.88,VENDOR,APEX PROPERTY VENTURES LTD,108437
Portsmouth City Council,PCC,Adult Social Care,Physical Support Older People (85+),Adult Services,Third Party Payments,Other establishments,18/09/19,6321360,236.32,VENDOR,APEX PROPERTY VENTURES LTD,108437
Portsmouth City Council,PCC,Adult Social Care,Physical Support Older People (85+),Adult Services,Third Party Payments,Other establishments,18/09/19,6321360,236.32,VENDOR,APEX PROPERTY VENTURES LTD,108437
Portsmouth City Council,PCC,Adult Social Care,Physical Support Older People (85+),Adult Services,Third Party Payments,Other establishments,18/09/19,6321360,1063.44,VENDOR,APEX PROPERTY VENTURES LTD,108437
Portsmouth City Council,PCC,Adult Social Care,Physical Support Older People (85+),Adult Services,Third Party Payments,Other establishments,18/09/19,6321360,1063.44,VENDOR,APEX PROPERTY VENTURES LTD,108437
Portsmouth City Council,PCC,Adult Social Care,Physical Support Older People (85+),Adult Services,Third Party Payments,Other establishments,18/09/19,6321360,202.56,VENDOR,APEX PROPERTY VENTURES LTD,108437
Portsmouth City Council,PCC,Adult Social Care,Physical Support Older People (85+),Adult Services,Third Party Payments,Other establishments,18/09/19,6321360,1063.44,VENDOR,APEX PROPERTY VENTURES LTD,108437
Portsmouth City Council,PCC,Adult Social Care,Physical Support Older People (85+),Adult Services,Third Party Payments,Other establishments,18/09/19,6321360,202.56,VENDOR,APEX PROPERTY VENTURES LTD,108437
Portsmouth City Council,PCC,Adult Social Care,Physical Support Older People (85+),Adult Services,Third Party Payments,Other establishments,18/09/19,6321360,396.68,VENDOR,APEX PROPERTY VENTURES LTD,108437
Portsmouth City Council,PCC,Adult Social Care,Physical Support Older People (85+),Adult Services,Third Party Payments,Other establishments,18/09/19,6321360,936.84,VENDOR,APEX PROPERTY VENTURES LTD,108437
Portsmouth City Council,PCC,Adult Social Care,Physical Support Older People (85+),Adult Services,Third Party Payments,Other establishments,18/09/19,6321360,936.84,VENDOR,APEX PROPERTY VENTURES LTD,108437
Portsmouth City Council,PCC,Adult Social Care,Physical Support Older People (85+),Adult Services,Third Party Payments,Other establishments,18/09/19,6321360,708.96,VENDOR,APEX PROPERTY VENTURES LTD,108437
Portsmouth City Council,PCC,Adult Social Care,Physical Support Older People (85+),Adult Services,Third Party Payments,Other establishments,18/09/19,6321360,1063.44,VENDOR,APEX PROPERTY VENTURES LTD,108437
Portsmouth City Council,PCC,Adult Social Care,Physical Support Older People (85+),Adult Services,Third Party Payments,Other establishments,18/09/19,6321360,1063.44,VENDOR,APEX PROPERTY VENTURES LTD,108437
Portsmouth City Council,PCC,Adult Social Care,Physical Support Older People (85+),Adult Services,Third Party Payments,Other establishments,18/09/19,6321360,827.12,VENDOR,APEX PROPERTY VENTURES LTD,108437
Portsmouth City Council,PCC,Adult Social Care,Physical Support Older People (85+),Adult Services,Third Party Payments,Other establishments,18/09/19,6321360,417.78,VENDOR,APEX PROPERTY VENTURES LTD,108437
Portsmouth City Council,PCC,Adult Social Care,Learning Disability Support  Adults (18 - 64),Adult Services,Third Party Payments,Other establishments,18/09/19,6321360,303.84,VENDOR,APEX PROPERTY VENTURES LTD,108437
Portsmouth City Council,PCC,Adult Social Care,Learning Disability Support  Adults (18 - 64),Adult Services,Third Party Payments,Other establishments,18/09/19,6321360,236.32,VENDOR,APEX PROPERTY VENTURES LTD,108437
Portsmouth City Council,PCC,Adult Social Care,Learning Disability Support  Adults (18 - 64),Adult Services,Third Party Payments,Other establishments,18/09/19,6321360,497.96,VENDOR,APEX PROPERTY VENTURES LTD,108437
Portsmouth City Council,PCC,Adult Social Care,Learning Disability Support  Adults (18 - 64),Adult Services,Third Party Payments,Other establishments,18/09/19,6321360,497.96,VENDOR,APEX PROPERTY VENTURES LTD,108437
Portsmouth City Council,PCC,Adult Social Care,Learning Disability Support  Adults (18 - 64),Adult Services,Third Party Payments,Other establishments,18/09/19,6321360,303.84,VENDOR,APEX PROPERTY VENTURES LTD,108437
Portsmouth City Council,PCC,Adult Social Care,Learning Disability Support  Adults (18 - 64),Adult Services,Third Party Payments,Other establishments,18/09/19,6321360,160.36,VENDOR,APEX PROPERTY VENTURES LTD,108437
Portsmouth City Council,PCC,Adult Social Care,Social Support - Support for Carer,Adult Services,Third Party Payments,Other establishments,18/09/19,6321360,116.16,VENDOR,APEX PROPERTY VENTURES LTD,108437
Portsmouth City Council,PCC,Adult Social Care,Social Support - Support for Carer,Adult Services,Third Party Payments,Other establishments,18/09/19,6321360,319.44,VENDOR,APEX PROPERTY VENTURES LTD,108437
Portsmouth City Council,PCC,Adult Social Care,Social Support - Support for Carer,Adult Services,Third Party Payments,Other establishments,18/09/19,6321360,232.32,VENDOR,APEX PROPERTY VENTURES LTD,108437
Portsmouth City Council,PCC,Adult Social Care,Social Support - Support for Carer,Adult Services,Third Party Payments,Other establishments,18/09/19,6321360,174.24,VENDOR,APEX PROPERTY VENTURES LTD,108437
Portsmouth City Council,PCC,Adult Social Care,Social Support - Support for Carer,Adult Services,Third Party Payments,Other establishments,18/09/19,6321360,348.48,VENDOR,APEX PROPERTY VENTURES LTD,108437
Portsmouth City Council,PCC,Adult Social Care,Social Care Activities,Adult Services,Third Party Payments,Other establishments,05/09/19,6319682,288.48,VENDOR,APPLETREE SUPPORT LTD,126285
Portsmouth City Council,PCC,Adult Social Care,Social Care Activities,Adult Services,Third Party Payments,Other establishments,05/09/19,6319682,2812.68,VENDOR,APPLETREE SUPPORT LTD,126285
Portsmouth City Council,PCC,Adult Social Care,Learning Disability Support  Adults (18 - 64),Adult Services,Third Party Payments,Other establishments,05/09/19,6319682,1081.8,VENDOR,APPLETREE SUPPORT LTD,126285
Portsmouth City Council,PCC,Adult Social Care,Learning Disability Support  Adults (18 - 64),Adult Services,Transport-Related Expenditure,Public transport,10/09/19,6320002,2271.3,VENDOR,AQUA CARS LIMITED,100011
Portsmouth City Council,PCC,Adult Social Care,Learning Disability Support  Adults (18 - 64),Adult Services,Transport-Related Expenditure,Public transport,10/09/19,6320002,2275.9,VENDOR,AQUA CARS LIMITED,100011
Portsmouth City Council,PCC,Adult Social Care,Learning Disability Support  Adults (18 - 64),Adult Services,Transport-Related Expenditure,Public transport,02/09/19,6318919,1908.6,VENDOR,AQUA CARS LIMITED,100011
Portsmouth City Council,PCC,Adult Social Care,Social Care Activities,Adult Services,Transport-Related Expenditure,Direct transport costs,02/09/19,6318919,36.9,VENDOR,AQUA CARS LIMITED,100011
Portsmouth City Council,PCC,Adult Social Care,Social Care Activities,Adult Services,Transport-Related Expenditure,Direct transport costs,02/09/19,6318919,34.2,VENDOR,AQUA CARS LIMITED,100011
Portsmouth City Council,PCC,Adult Social Care,Social Care Activities,Adult Services,Transport-Related Expenditure,Direct transport costs,02/09/19,6318919,5.5,VENDOR,AQUA CARS LIMITED,100011
Portsmouth City Council,PCC,Adult Social Care,Commissioning & service delivery,Adult Services,Transport-Related Expenditure,Direct transport costs,02/09/19,6318919,18.5,VENDOR,AQUA CARS LIMITED,100011
Portsmouth City Council,PCC,Adult Social Care,Learning Disability Support  Adults (18 - 64),Adult Services,Transport-Related Expenditure,Public transport,09/09/19,6319868,2144.9,VENDOR,AQUA CARS LIMITED,100011
Portsmouth City Council,PCC,Adult Social Care,Social Care Activities,Adult Services,Transport-Related Expenditure,Direct transport costs,09/09/19,6319868,47.6,VENDOR,AQUA CARS LIMITED,100011
Portsmouth City Council,PCC,Adult Social Care,Learning Disability Support  Adults (18 - 64),Adult Services,Transport-Related Expenditure,Public transport,16/09/19,6321119,2170.6,VENDOR,AQUA CARS LIMITED,100011
Portsmouth City Council,PCC,Adult Social Care,Social Care Activities,Adult Services,Transport-Related Expenditure,Direct transport costs,16/09/19,6321119,32.4,VENDOR,AQUA CARS LIMITED,100011
Portsmouth City Council,PCC,Adult Social Care,Learning Disability Support  Adults (18 - 64),Adult Services,Transport-Related Expenditure,Public transport,25/09/19,6322820,2062.1,VENDOR,AQUA CARS LIMITED,100011
Portsmouth City Council,PCC,Adult Social Care,Learning Disability Support  Adults (18 - 64),Adult Services,Transport-Related Expenditure,Public transport,30/09/19,6323736,118.6,VENDOR,AQUA CARS LIMITED,100011
Portsmouth City Council,PCC,Adult Social Care,Learning Disability Support  Adults (18 - 64),Adult Services,Third Party Payments,Other establishments,12/09/19,6320725,9708,VENDOR,ASPENS CHARITIES,119343
Portsmouth City Council,PCC,Adult Social Care,Learning Disability Support  Adults (18 - 64),Adult Services,Third Party Payments,Other establishments,12/09/19,6320726,8997.3,VENDOR,ASSURE HEALTH CARE GROUP,140779
Portsmouth City Council,PCC,Adult Social Care,Learning Disability Support  Adults (18 - 64),Adult Services,Third Party Payments,Other establishments,12/09/19,6320726,7098,VENDOR,ASSURE HEALTH CARE GROUP,140779
Portsmouth City Council,PCC,Adult Social Care,Social Care Activities,Adult Services,Third Party Payments,Other establishments,02/09/19,6318920,11343.36,VENDOR,ASTER CARE LTD,130238
Portsmouth City Council,PCC,Adult Social Care,Social Care Activities,Adult Services,Third Party Payments,Other establishments,02/09/19,6318920,11343.36,VENDOR,ASTER CARE LTD,130238
Portsmouth City Council,PCC,Adult Social Care,Social Care Activities,Adult Services,Third Party Payments,Other establishments,02/09/19,6318920,5671.68,VENDOR,ASTER CARE LTD,130238
Portsmouth City Council,PCC,Adult Social Care,Social Care Activities,Adult Services,Third Party Payments,Other establishments,27/09/19,6323524,11343.36,VENDOR,ASTER CARE LTD,130238
Portsmouth City Council,PCC,Adult Social Care,Social Care Activities,Adult Services,Third Party Payments,Other establishments,27/09/19,6323524,11343.36,VENDOR,ASTER CARE LTD,130238
Portsmouth City Council,PCC,Adult Social Care,Social Care Activities,Adult Services,Third Party Payments,Other establishments,27/09/19,6323524,5671.68,VENDOR,ASTER CARE LTD,130238
Portsmouth City Council,PCC,Adult Social Care,Physical Support Older People (85+),Adult Services,Third Party Payments,Other establishments,12/09/19,6320727,2670.6,VENDOR,ATHENA CARE HOMES (UK) LIMITED,144812
Portsmouth City Council,PCC,Adult Social Care,Learning Disability Support  Adults (18 - 64),Adult Services,Third Party Payments,Other establishments,12/09/19,6320729,1854,VENDOR,AUCKLAND CARE LTD,100984
Portsmouth City Council,PCC,Adult Social Care,Learning Disability Support  Adults (18 - 64),Adult Services,Third Party Payments,Other establishments,12/09/19,6320729,4821,VENDOR,AUCKLAND CARE LTD,100984
Portsmouth City Council,PCC,Adult Social Care,Mental Health Support Adults (18 - 64),Adult Services,Third Party Payments,Other establishments,25/09/19,6322822,3536.49,VENDOR,AUCKLAND CARE LTD,100984
Portsmouth City Council,PCC,Adult Social Care,Social Care Activities,Adult Services,Third Party Payments,Other establishments,12/09/19,6320730,15348.9,VENDOR,AUTISM HAMPSHIRE,139112
Portsmouth City Council,PCC,Adult Social Care,Learning Disability Support  Adults (18 - 64),Adult Services,Third Party Payments,Other establishments,12/09/19,6320730,5772.3,VENDOR,AUTISM HAMPSHIRE,139112
Portsmouth City Council,PCC,Adult Social Care,Learning Disability Support  Adults (18 - 64),Adult Services,Third Party Payments,Other establishments,12/09/19,6320730,5524.5,VENDOR,AUTISM HAMPSHIRE,139112
Portsmouth City Council,PCC,Adult Social Care,Learning Disability Support  Adults (18 - 64),Adult Services,Third Party Payments,Other establishments,12/09/19,6320730,8629.5,VENDOR,AUTISM HAMPSHIRE,139112
Portsmouth City Council,PCC,Housing Revenue Account,Special Services,"Housing, Neighbourhood and Building Services",Premises-Related Expenditure,Water Services,20/09/19,6322006,10407.65,VENDOR,CASTLE WATER LIMITED,142798
Portsmouth City Council,PCC,Planning Services,Business support,Regeneration,Third Party Payments,Private contractors,06/09/19,6319826,140,SOLETRADER,M J RITCHIE DECOR AND GUTTERING SERVICES,126505
Portsmouth City Council,PCC,Planning Services,Business support,Regeneration,Third Party Payments,Private contractors,06/09/19,6319826,60,SOLETRADER,M J RITCHIE DECOR AND GUTTERING SERVICES,126505
Portsmouth City Council,PCC,Planning Services,Business support,Regeneration,Third Party Payments,Private contractors,06/09/19,6319826,300,SOLETRADER,M J RITCHIE DECOR AND GUTTERING SERVICES,126505
Portsmouth City Council,PCC,Planning Services,Business support,Regeneration,Third Party Payments,Private contractors,06/09/19,6319826,90,SOLETRADER,M J RITCHIE DECOR AND GUTTERING SERVICES,126505
Portsmouth City Council,PCC,Other,Suspense and Capital Schemes,Capital - Housing General Fund,Capital Charges,REFCUS,25/09/19,6323378,4999.68,VENDOR,WICOR BUILDING SERVICES LIMITED,144144
Portsmouth City Council,PCC,Housing Services,Private Sector Housing Renewal,"Housing, Neighbourhood and Building Services",Income,Other grants reimbursements and contributions,25/09/19,6323378,-446.4,VENDOR,WICOR BUILDING SERVICES LIMITED,144144
Portsmouth City Council,PCC,Children's and Education Services,Other Education and Community Budget,Regeneration,Premises-Related Expenditure,"Repairs, alterations and maintenance of buildings",16/09/19,6321180,500,SOLETRADER,M J RITCHIE DECOR AND GUTTERING SERVICES,126505
Portsmouth City Council,PCC,Children's and Education Services,Other Education and Community Budget,Regeneration,Premises-Related Expenditure,"Repairs, alterations and maintenance of buildings",16/09/19,6321180,150,SOLETRADER,M J RITCHIE DECOR AND GUTTERING SERVICES,126505
Portsmouth City Council,PCC,Planning Services,Business support,Regeneration,Third Party Payments,Private contractors,16/09/19,6321180,265,SOLETRADER,M J RITCHIE DECOR AND GUTTERING SERVICES,126505
Portsmouth City Council,PCC,Planning Services,Business support,Regeneration,Third Party Payments,Private contractors,16/09/19,6321180,35,SOLETRADER,M J RITCHIE DECOR AND GUTTERING SERVICES,126505
Portsmouth City Council,PCC,Children's and Education Services,Children Looked After,Children's Services and Education,Third Party Payments,Other establishments,23/09/19,6322525,28000,VENDOR,ADVANCED ADOLESCENT CARE SOLUTIONS LTD,145305
Portsmouth City Council,PCC,Children's and Education Services,Children Looked After,Children's Services and Education,Third Party Payments,Other establishments,23/09/19,6322525,397.8,VENDOR,ADVANCED ADOLESCENT CARE SOLUTIONS LTD,145305
Portsmouth City Council,PCC,Central Services,Coroners' Court Services,"Culture, Leisure & Regulatory Services",Supplies and Services,Services,17/09/19,6321305,3031.6,SOLETRADER,Classified as 'personal data' (under the Data Protection Act 2018),140312
Portsmouth City Council,PCC,Cultural and Related Services,Library Service,"Culture, Leisure & Regulatory Services",Supplies and Services,"Equipment, furniture and materials",09/09/19,6319945,826,VENDOR,LONDIS NEWSMARKET,141197
Portsmouth City Council,PCC,Adult Social Care,Learning Disability Support  Adults (18 - 64),Adult Services,Third Party Payments,Other establishments,04/09/19,6319146,1510.52,VENDOR,AUTISM HAMPSHIRE,139112
Portsmouth City Council,PCC,Housing Services,Homelessness,"Housing, Neighbourhood and Building Services",Third Party Payments,Private contractors,12/09/19,6320710,255,VENDOR,A VAN PORTSMOUTH LIMITED,138694
Portsmouth City Council,PCC,Central Services,Coroners' Court Services,"Culture, Leisure & Regulatory Services",Supplies and Services,Services,17/09/19,6321305,2236.5,SOLETRADER,Classified as 'personal data' (under the Data Protection Act 2018),140312
Portsmouth City Council,PCC,Adult Social Care,Support with Memory and Cognition Older People (85+),Adult Services,Third Party Payments,Other establishments,12/09/19,6320731,1501.5,VENDOR,AUTUMN VALE REST HOME,100551
Portsmouth City Council,PCC,Central Services,Coroners' Court Services,"Culture, Leisure & Regulatory Services",Supplies and Services,Services,17/09/19,6321305,1077.2,SOLETRADER,Classified as 'personal data' (under the Data Protection Act 2018),140312
Portsmouth City Council,PCC,Central Services,Elections,Corporate Services,Supplies and Services,"Printing, stationery and general office expenses",11/09/19,6320254,1582.92,VENDOR,ROYAL MAIL,100182
Portsmouth City Council,PCC,Cultural and Related Services,Library Service,"Culture, Leisure & Regulatory Services",Third Party Payments,Private contractors,06/09/19,6319811,513.15,SOLETRADER,Classified as 'personal data' (under the Data Protection Act 2018),144399
Portsmouth City Council,PCC,Housing Services,Homelessness,"Housing, Neighbourhood and Building Services",Third Party Payments,Private contractors,12/09/19,6320710,55,VENDOR,A VAN PORTSMOUTH LIMITED,138694
Portsmouth City Council,PCC,Children's and Education Services,Children Looked After,Children's Services and Education,Third Party Payments,Other establishments,24/09/19,6322730,5460.96,VENDOR,INTEGRATED SERVICES PROGRAMME,136360
Portsmouth City Council,PCC,Children's and Education Services,Children Looked After,Children's Services and Education,Third Party Payments,Other establishments,24/09/19,6322730,5460.96,VENDOR,INTEGRATED SERVICES PROGRAMME,136360
Portsmouth City Council,PCC,Children's and Education Services,Children Looked After,Children's Services and Education,Third Party Payments,Other establishments,24/09/19,6322730,5460.96,VENDOR,INTEGRATED SERVICES PROGRAMME,136360
Portsmouth City Council,PCC,Children's and Education Services,Children Looked After,Children's Services and Education,Third Party Payments,Other establishments,26/09/19,6323470,3720,VENDOR,ORANGE GROVE FOSTERCARE LIMITED,140168
Portsmouth City Council,PCC,Adult Social Care,Support with Memory and Cognition Older People (85+),Adult Services,Third Party Payments,Other establishments,12/09/19,6320731,2303.7,VENDOR,AUTUMN VALE REST HOME,100551
Portsmouth City Council,PCC,Other,Suspense and Capital Schemes,Capital - Housing RA,Capital Charges,Capital Expenditure (WIP),06/09/19,6319825,572,VENDOR,M J H REMOVALS LTD,105441
Portsmouth City Council,PCC,Housing Services,Homelessness,"Housing, Neighbourhood and Building Services",Third Party Payments,Private contractors,13/09/19,6321087,340,VENDOR,M J H REMOVALS LTD,105441
Portsmouth City Council,PCC,Housing Services,Homelessness,"Housing, Neighbourhood and Building Services",Third Party Payments,Private contractors,13/09/19,6321087,370,VENDOR,M J H REMOVALS LTD,105441
Portsmouth City Council,PCC,Housing Services,Private Sector Housing Renewal,"Housing, Neighbourhood and Building Services",Supplies and Services,Grants and subscriptions,18/09/19,6321812,2055.29,COMPANY,L DEVINE AND CO LIMITED,111002
Portsmouth City Council,PCC,Other,Suspense and Capital Schemes,Capital - Housing General Fund,Capital Charges,REFCUS,18/09/19,6321812,6179.71,COMPANY,L DEVINE AND CO LIMITED,111002
Portsmouth City Council,PCC,Adult Social Care,Mental Health Support Adults (18 - 64),Adult Services,Third Party Payments,Other establishments,12/09/19,6320731,3531.6,VENDOR,AUTUMN VALE REST HOME,100551
Portsmouth City Council,PCC,Adult Social Care,Mental Health Support Adults (18 - 64),Adult Services,Third Party Payments,Other establishments,12/09/19,6320731,2056.8,VENDOR,AUTUMN VALE REST HOME,100551
Portsmouth City Council,PCC,Adult Social Care,Mental Health Support Adults (18 - 64),Adult Services,Third Party Payments,Other establishments,12/09/19,6320731,3375.9,VENDOR,AUTUMN VALE REST HOME,100551
Portsmouth City Council,PCC,Adult Social Care,Mental Health Support Adults (18 - 64),Adult Services,Third Party Payments,Other establishments,12/09/19,6320731,2230.8,VENDOR,AUTUMN VALE REST HOME,100551
Portsmouth City Council,PCC,Adult Social Care,Mental Health Support Adults (18 - 64),Adult Services,Third Party Payments,Other establishments,12/09/19,6320731,3244.5,VENDOR,AUTUMN VALE REST HOME,100551
Portsmouth City Council,PCC,Adult Social Care,Mental Health Support Adults (18 - 64),Adult Services,Third Party Payments,Other establishments,12/09/19,6320731,2472,VENDOR,AUTUMN VALE REST HOME,100551
Portsmouth City Council,PCC,Adult Social Care,Mental Health Support Adults (18 - 64),Adult Services,Third Party Payments,Other establishments,12/09/19,6320731,3151.8,VENDOR,AUTUMN VALE REST HOME,100551
Portsmouth City Council,PCC,Adult Social Care,Mental Health Support Adults (18 - 64),Adult Services,Third Party Payments,Other establishments,12/09/19,6320731,2390.1,VENDOR,AUTUMN VALE REST HOME,100551
Portsmouth City Council,PCC,Adult Social Care,Support with Memory and Cognition Older People (85+),Adult Services,Third Party Payments,Other establishments,12/09/19,6320732,2244.4,VENDOR,AVENUE CARE (FAREHAM) LIMITED,125285
Portsmouth City Council,PCC,Adult Social Care,Physical Support Adults (18 - 64),Adult Services,Third Party Payments,Other establishments,18/09/19,6321364,346.04,VENDOR,B S CARE LTD,100114
Portsmouth City Council,PCC,Adult Social Care,Mental Health Support Older People (65 - 74),Adult Services,Third Party Payments,Other establishments,18/09/19,6321364,75.96,VENDOR,B S CARE LTD,100114
Portsmouth City Council,PCC,Adult Social Care,Mental Health Support Older People (65 - 74),Adult Services,Third Party Payments,Other establishments,18/09/19,6321364,725.84,VENDOR,B S CARE LTD,100114
Portsmouth City Council,PCC,Adult Social Care,Social Care Activities,Adult Services,Third Party Payments,Other establishments,18/09/19,6321364,1063.44,VENDOR,B S CARE LTD,100114
Portsmouth City Council,PCC,Adult Social Care,Social Care Activities,Adult Services,Third Party Payments,Other establishments,18/09/19,6321364,1063.44,VENDOR,B S CARE LTD,100114
Portsmouth City Council,PCC,Adult Social Care,Social Care Activities,Adult Services,Third Party Payments,Other establishments,18/09/19,6321364,1046.56,VENDOR,B S CARE LTD,100114
Portsmouth City Council,PCC,Adult Social Care,Social Care Activities,Adult Services,Third Party Payments,Other establishments,18/09/19,6321364,116.16,VENDOR,B S CARE LTD,100114
Portsmouth City Council,PCC,Adult Social Care,Social Care Activities,Adult Services,Third Party Payments,Other establishments,18/09/19,6321364,628.78,VENDOR,B S CARE LTD,100114
Portsmouth City Council,PCC,Adult Social Care,Social Care Activities,Adult Services,Third Party Payments,Other establishments,18/09/19,6321364,704.74,VENDOR,B S CARE LTD,100114
Portsmouth City Council,PCC,Corporate and Democratic Core,Corporate Management,Corporate Services,Supplies and Services,"Printing, stationery and general office expenses",06/09/19,6319806,114.4,VENDOR,EASTRIO 1 LTD,144641
Portsmouth City Council,PCC,Support Service / Transparency Costs Unallocated,AMS,Regeneration,Supplies and Services,Services,17/09/19,6321261,4876.1,VENDOR,BEVAN BRITTAN LLP,108894
Portsmouth City Council,PCC,Adult Social Care,Social Care Activities,Adult Services,Third Party Payments,Other establishments,18/09/19,6321364,1063.44,VENDOR,B S CARE LTD,100114
Portsmouth City Council,PCC,Adult Social Care,Social Care Activities,Adult Services,Third Party Payments,Other establishments,18/09/19,6321364,1063.44,VENDOR,B S CARE LTD,100114
Portsmouth City Council,PCC,Adult Social Care,Physical Support Adults (18 - 64),Adult Services,Third Party Payments,Other establishments,18/09/19,6321364,278.52,VENDOR,B S CARE LTD,100114
Portsmouth City Council,PCC,Adult Social Care,Physical Support Adults (18 - 64),Adult Services,Third Party Payments,Other establishments,18/09/19,6321364,776.48,VENDOR,B S CARE LTD,100114
Portsmouth City Council,PCC,Adult Social Care,Physical Support Adults (18 - 64),Adult Services,Third Party Payments,Other establishments,18/09/19,6321364,784.92,VENDOR,B S CARE LTD,100114
Portsmouth City Council,PCC,Central Services,Coroners' Court Services,"Culture, Leisure & Regulatory Services",Supplies and Services,Services,04/09/19,6319655,797.01,VENDOR,SOUTHAMPTON UNIVERSITY HOSPITALS,107921
Portsmouth City Council,PCC,Children's and Education Services,Safeguarding Children and Young Peoples Services,Children's Services and Education,Third Party Payments,Other establishments,18/09/19,6321843,4903.97,VENDOR,SAKURA CARE LIMITED,144940
Portsmouth City Council,PCC,Children's and Education Services,Children Looked After,Children's Services and Education,Third Party Payments,Other establishments,18/09/19,6321843,7714.2,VENDOR,SAKURA CARE LIMITED,144940
Portsmouth City Council,PCC,Children's and Education Services,Asylum seekers,Children's Services and Education,Third Party Payments,Other establishments,18/09/19,6321843,5776.16,VENDOR,SAKURA CARE LIMITED,144940
Portsmouth City Council,PCC,Corporate and Democratic Core,Corporate Management,Corporate Services,Supplies and Services,"Printing, stationery and general office expenses",06/09/19,6319806,85.8,VENDOR,EASTRIO 1 LTD,144641
Portsmouth City Council,PCC,Corporate and Democratic Core,Corporate Management,Corporate Services,Supplies and Services,"Printing, stationery and general office expenses",06/09/19,6319806,100.1,VENDOR,EASTRIO 1 LTD,144641
Portsmouth City Council,PCC,Corporate and Democratic Core,Corporate Management,Corporate Services,Supplies and Services,"Printing, stationery and general office expenses",06/09/19,6319806,85.8,VENDOR,EASTRIO 1 LTD,144641
Portsmouth City Council,PCC,Corporate and Democratic Core,Corporate Management,Corporate Services,Supplies and Services,"Printing, stationery and general office expenses",06/09/19,6319806,100.1,VENDOR,EASTRIO 1 LTD,144641
Portsmouth City Council,PCC,Corporate and Democratic Core,Corporate Management,Corporate Services,Supplies and Services,"Printing, stationery and general office expenses",06/09/19,6319806,157.3,VENDOR,EASTRIO 1 LTD,144641
Portsmouth City Council,PCC,Support Service / Transparency Costs Unallocated,AMS,"Housing, Neighbourhood and Building Services",Premises-Related Expenditure,Energy costs,12/09/19,6320869,3946.14,COMPANY,SIEMENS PLC,106546
Portsmouth City Council,PCC,Support Service / Transparency Costs Unallocated,Personnel,Corporate Services,Employees,Direct employee expenses,06/09/19,6319762,55945.54,VENDOR,COMENSURA LTD,140265
Portsmouth City Council,PCC,Support Service / Transparency Costs Unallocated,Personnel,Corporate Services,Employees,Direct employee expenses,13/09/19,6321066,61073.71,VENDOR,COMENSURA LTD,140265
Portsmouth City Council,PCC,Support Service / Transparency Costs Unallocated,Personnel,Corporate Services,Employees,Direct employee expenses,20/09/19,6322007,43420.41,VENDOR,COMENSURA LTD,140265
Portsmouth City Council,PCC,Support Service / Transparency Costs Unallocated,Personnel,Corporate Services,Employees,Direct employee expenses,27/09/19,6323555,46903.44,VENDOR,COMENSURA LTD,140265
Portsmouth City Council,PCC,Corporate and Democratic Core,Corporate Management,Corporate Services,Supplies and Services,"Printing, stationery and general office expenses",06/09/19,6319806,643.5,VENDOR,EASTRIO 1 LTD,144641
Portsmouth City Council,PCC,Corporate and Democratic Core,Corporate Management,Corporate Services,Supplies and Services,"Printing, stationery and general office expenses",18/09/19,6321388,343.2,VENDOR,EASTRIO 1 LTD,144641
Portsmouth City Council,PCC,Adult Social Care,Physical Support Adults (18 - 64),Adult Services,Third Party Payments,Other establishments,18/09/19,6321364,354.48,VENDOR,B S CARE LTD,100114
Portsmouth City Council,PCC,Adult Social Care,Physical Support Adults (18 - 64),Adult Services,Third Party Payments,Other establishments,18/09/19,6321364,751.16,VENDOR,B S CARE LTD,100114
Portsmouth City Council,PCC,Adult Social Care,Physical Support Adults (18 - 64),Adult Services,Third Party Payments,Other establishments,18/09/19,6321364,751.16,VENDOR,B S CARE LTD,100114
Portsmouth City Council,PCC,Adult Social Care,Physical Support Adults (18 - 64),Adult Services,Third Party Payments,Other establishments,18/09/19,6321364,316.5,VENDOR,B S CARE LTD,100114
Portsmouth City Council,PCC,Support Service / Transparency Costs Unallocated,AMS,Regeneration,Supplies and Services,Communications and computing,11/09/19,6320160,432.86,VENDOR,CIVICA UK LTD,104001
Portsmouth City Council,PCC,Highways and Transport Services,"Transport Planning, Policy and Strategy",Regeneration,Supplies and Services,Communications and computing,11/09/19,6320160,432.86,VENDOR,CIVICA UK LTD,104001
Portsmouth City Council,PCC,Support Service / Transparency Costs Unallocated,Personnel,Corporate Services,Employees,Direct employee expenses,17/09/19,6321338,45.45,VENDOR,THE OYSTER PARTNERSHIP,120530
Portsmouth City Council,PCC,Support Service / Transparency Costs Unallocated,Personnel,Corporate Services,Employees,Direct employee expenses,17/09/19,6321338,1110,VENDOR,THE OYSTER PARTNERSHIP,120530
Portsmouth City Council,PCC,Support Service / Transparency Costs Unallocated,Personnel,Corporate Services,Employees,Direct employee expenses,11/09/19,6320290,1110,VENDOR,THE OYSTER PARTNERSHIP,120530
Portsmouth City Council,PCC,Support Service / Transparency Costs Unallocated,Personnel,Corporate Services,Employees,Direct employee expenses,11/09/19,6320290,32.85,VENDOR,THE OYSTER PARTNERSHIP,120530
Portsmouth City Council,PCC,Costs below Net Cost of Services,Trading,Regeneration,Supplies and Services,Services,17/09/19,6321338,2232.34,VENDOR,THE OYSTER PARTNERSHIP,120530
Portsmouth City Council,PCC,Support Service / Transparency Costs Unallocated,Personnel,Corporate Services,Employees,Direct employee expenses,17/09/19,6321338,1110,VENDOR,THE OYSTER PARTNERSHIP,120530
Portsmouth City Council,PCC,Support Service / Transparency Costs Unallocated,Personnel,Corporate Services,Employees,Direct employee expenses,17/09/19,6321338,22.5,VENDOR,THE OYSTER PARTNERSHIP,120530
Portsmouth City Council,PCC,Costs below Net Cost of Services,Trading,Regeneration,Supplies and Services,Services,17/09/19,6321338,2761.59,VENDOR,THE OYSTER PARTNERSHIP,120530
Portsmouth City Council,PCC,Support Service / Transparency Costs Unallocated,Personnel,Corporate Services,Employees,Direct employee expenses,24/09/19,6322796,1258,VENDOR,THE OYSTER PARTNERSHIP,120530
Portsmouth City Council,PCC,Support Service / Transparency Costs Unallocated,Personnel,Corporate Services,Employees,Direct employee expenses,24/09/19,6322796,8.1,VENDOR,THE OYSTER PARTNERSHIP,120530
Portsmouth City Council,PCC,Support Service / Transparency Costs Unallocated,AMS,"Housing, Neighbourhood and Building Services",Supplies and Services,"Equipment, furniture and materials",24/09/19,6322797,25,VENDOR,THE RECYCLED ASSETS COMPANY,139365
Portsmouth City Council,PCC,Support Service / Transparency Costs Unallocated,AMS,"Housing, Neighbourhood and Building Services",Supplies and Services,"Equipment, furniture and materials",24/09/19,6322797,775,VENDOR,THE RECYCLED ASSETS COMPANY,139365
Portsmouth City Council,PCC,Support Service / Transparency Costs Unallocated,AMS,"Housing, Neighbourhood and Building Services",Supplies and Services,"Equipment, furniture and materials",24/09/19,6322797,110,VENDOR,THE RECYCLED ASSETS COMPANY,139365
Portsmouth City Council,PCC,Adult Social Care,Physical Support Adults (18 - 64),Adult Services,Third Party Payments,Other establishments,18/09/19,6321364,227.88,VENDOR,B S CARE LTD,100114
Portsmouth City Council,PCC,Adult Social Care,Physical Support Adults (18 - 64),Adult Services,Third Party Payments,Other establishments,18/09/19,6321364,253.2,VENDOR,B S CARE LTD,100114
Portsmouth City Council,PCC,Adult Social Care,Physical Support Adults (18 - 64),Adult Services,Third Party Payments,Other establishments,18/09/19,6321364,8.44,VENDOR,B S CARE LTD,100114
Portsmouth City Council,PCC,Adult Social Care,Physical Support Adults (18 - 64),Adult Services,Third Party Payments,Other establishments,18/09/19,6321364,472.64,VENDOR,B S CARE LTD,100114
Portsmouth City Council,PCC,Children's and Education Services,Family Support Services,Children's Services and Education,Supplies and Services,"Equipment, furniture and materials",20/09/19,6322082,585,VENDOR,THE RECYCLED ASSETS COMPANY,139365
Portsmouth City Council,PCC,Children's and Education Services,Family Support Services,Children's Services and Education,Supplies and Services,"Printing, stationery and general office expenses",20/09/19,6322082,12.5,VENDOR,THE RECYCLED ASSETS COMPANY,139365
Portsmouth City Council,PCC,Children's and Education Services,Other Education and Community Budget,Children's Services and Education,Supplies and Services,Miscellaneous expenses,13/09/19,6321108,1000,VENDOR,UNLOC LEARNING LIMITED,137515
Portsmouth City Council,PCC,Children's and Education Services,Other Education and Community Budget,Children's Services and Education,Supplies and Services,Miscellaneous expenses,13/09/19,6321108,1000,VENDOR,UNLOC LEARNING LIMITED,137515
Portsmouth City Council,PCC,Children's and Education Services,Other Education and Community Budget,Children's Services and Education,Supplies and Services,Miscellaneous expenses,13/09/19,6321108,1000,VENDOR,UNLOC LEARNING LIMITED,137515
Portsmouth City Council,PCC,Children's and Education Services,Other Education and Community Budget,Children's Services and Education,Supplies and Services,Miscellaneous expenses,13/09/19,6321108,1000,VENDOR,UNLOC LEARNING LIMITED,137515
Portsmouth City Council,PCC,Cultural and Related Services,Library Service,"Culture, Leisure & Regulatory Services",Supplies and Services,"Equipment, furniture and materials",11/09/19,6320256,625,VENDOR,SCIENCE THEATRE,144197
Portsmouth City Council,PCC,Corporate and Democratic Core,Corporate Management,Corporate Services,Supplies and Services,"Printing, stationery and general office expenses",18/09/19,6321388,414.7,VENDOR,EASTRIO 1 LTD,144641
Portsmouth City Council,PCC,Other,Suspense and Capital Schemes,Capital - Environment & Climate Change,Capital Charges,Capital Expenditure (WIP),27/09/19,6323623,58796.18,VENDOR,HASKONINGDHV UK LIMITED,109400
Portsmouth City Council,PCC,Corporate and Democratic Core,Corporate Management,Corporate Services,Supplies and Services,"Printing, stationery and general office expenses",18/09/19,6321388,185.9,VENDOR,EASTRIO 1 LTD,144641
Portsmouth City Council,PCC,Corporate and Democratic Core,Corporate Management,Corporate Services,Supplies and Services,"Printing, stationery and general office expenses",18/09/19,6321388,314.6,VENDOR,EASTRIO 1 LTD,144641
Portsmouth City Council,PCC,Corporate and Democratic Core,Corporate Management,Corporate Services,Supplies and Services,"Printing, stationery and general office expenses",18/09/19,6321388,643.5,VENDOR,EASTRIO 1 LTD,144641
Portsmouth City Council,PCC,Corporate and Democratic Core,Corporate Management,Corporate Services,Supplies and Services,"Printing, stationery and general office expenses",18/09/19,6321388,114.4,VENDOR,EASTRIO 1 LTD,144641
Portsmouth City Council,PCC,Children's and Education Services,Safeguarding Children and Young Peoples Services,Children's Services and Education,Third Party Payments,Other establishments,13/09/19,6321109,1111.6,VENDOR,URBAN SKY HOUSING LTD,144497
Portsmouth City Council,PCC,Solent LEP,Business support,OTHER,Supplies and Services,Miscellaneous expenses,27/09/19,6323604,397.83,VENDOR,EASTRIO 1 LTD,144641
Portsmouth City Council,PCC,Children's and Education Services,Children Looked After,Children's Services and Education,Third Party Payments,Other establishments,27/09/19,6323634,6500,VENDOR,INTERCOUNTRY ADOPTION CENTRE,108770
Portsmouth City Council,PCC,Other,Suspense and Capital Schemes,Capital - Housing RA,Capital Charges,Capital Expenditure (WIP),12/09/19,6320847,570,VENDOR,PORTSMOUTH.COM REMOVALS LTD,137147
Portsmouth City Council,PCC,Support Service / Transparency Costs Unallocated,Procurement,Finance & Revenues,Supplies and Services,Communications and computing,03/09/19,6319086,3000,VENDOR,IN-TEND LTD,121323
Portsmouth City Council,PCC,Adult Social Care,Physical Support Older People (85+),Adult Services,Third Party Payments,Other establishments,18/09/19,6321364,219.44,VENDOR,B S CARE LTD,100114
Portsmouth City Council,PCC,Adult Social Care,Physical Support Older People (85+),Adult Services,Third Party Payments,Other establishments,18/09/19,6321364,1097.2,VENDOR,B S CARE LTD,100114
Portsmouth City Council,PCC,Adult Social Care,Physical Support Older People (85+),Adult Services,Third Party Payments,Other establishments,18/09/19,6321364,1097.2,VENDOR,B S CARE LTD,100114
Portsmouth City Council,PCC,Planning Services,Business support,Regeneration,Third Party Payments,Private contractors,09/09/19,6319930,2085.75,COMPANY,HAMPSHIRE COMMERCIAL REFURBISHMENT LTD,139067
Portsmouth City Council,PCC,Planning Services,Business support,Regeneration,Third Party Payments,Private contractors,09/09/19,6319930,2200,COMPANY,HAMPSHIRE COMMERCIAL REFURBISHMENT LTD,139067
Portsmouth City Council,PCC,Housing Revenue Account,Repairs and Maintenance,"Housing, Neighbourhood and Building Services",Premises-Related Expenditure,"Repairs, alterations and maintenance of buildings",05/09/19,6319698,647.4,VENDOR,ECEAU LTD,142965
Portsmouth City Council,PCC,Central Services,Elections,Corporate Services,Supplies and Services,"Printing, stationery and general office expenses",27/09/19,6323612,11803.27,VENDOR,FINANCIAL DATA MANANGEMENT PLC,102246
Portsmouth City Council,PCC,Corporate and Democratic Core,Corporate Management,Corporate Services,Supplies and Services,"Printing, stationery and general office expenses",27/09/19,6323604,143,VENDOR,EASTRIO 1 LTD,144641
Portsmouth City Council,PCC,Corporate and Democratic Core,Corporate Management,Corporate Services,Supplies and Services,"Printing, stationery and general office expenses",27/09/19,6323604,128.7,VENDOR,EASTRIO 1 LTD,144641
Portsmouth City Council,PCC,Corporate and Democratic Core,Corporate Management,Corporate Services,Supplies and Services,"Printing, stationery and general office expenses",27/09/19,6323604,100.1,VENDOR,EASTRIO 1 LTD,144641
Portsmouth City Council,PCC,Planning Services,Business support,Regeneration,Third Party Payments,Private contractors,02/09/19,6318978,1137,COMPANY,HAMPSHIRE COMMERCIAL REFURBISHMENT LTD,139067
Portsmouth City Council,PCC,Planning Services,Business support,Regeneration,Third Party Payments,Private contractors,02/09/19,6318978,1277.93,COMPANY,HAMPSHIRE COMMERCIAL REFURBISHMENT LTD,139067
Portsmouth City Council,PCC,Corporate and Democratic Core,Corporate Management,Corporate Services,Supplies and Services,"Printing, stationery and general office expenses",27/09/19,6323604,214.5,VENDOR,EASTRIO 1 LTD,144641
Portsmouth City Council,PCC,Environmental and Regulatory Services,Regulatory Services,"Culture, Leisure & Regulatory Services",Supplies and Services,Services,03/09/19,6319135,750,SOLETRADER,Classified as 'personal data' (under the Data Protection Act 2018),139889
Portsmouth City Council,PCC,Planning Services,Business support,Regeneration,Premises-Related Expenditure,"Repairs, alterations and maintenance of buildings",04/09/19,6319652,20.16,VENDOR,SIX DEGREES TECHNOLOGY GROUP LTD,137034
Portsmouth City Council,PCC,Planning Services,Business support,Regeneration,Premises-Related Expenditure,"Repairs, alterations and maintenance of buildings",04/09/19,6319652,37.32,VENDOR,SIX DEGREES TECHNOLOGY GROUP LTD,137034
Portsmouth City Council,PCC,Cultural and Related Services,Recreation and Sport,"Culture, Leisure & Regulatory Services",Premises-Related Expenditure,"Repairs, alterations and maintenance of buildings",04/09/19,6319652,37.32,VENDOR,SIX DEGREES TECHNOLOGY GROUP LTD,137034
Portsmouth City Council,PCC,Support Service / Transparency Costs Unallocated,LLM,"Housing, Neighbourhood and Building Services",Premises-Related Expenditure,"Repairs, alterations and maintenance of buildings",04/09/19,6319652,57.48,VENDOR,SIX DEGREES TECHNOLOGY GROUP LTD,137034
Portsmouth City Council,PCC,Support Service / Transparency Costs Unallocated,LLM,"Housing, Neighbourhood and Building Services",Premises-Related Expenditure,"Repairs, alterations and maintenance of buildings",04/09/19,6319652,18.66,VENDOR,SIX DEGREES TECHNOLOGY GROUP LTD,137034
Portsmouth City Council,PCC,Support Service / Transparency Costs Unallocated,LLM,"Housing, Neighbourhood and Building Services",Premises-Related Expenditure,"Repairs, alterations and maintenance of buildings",04/09/19,6319652,18.66,VENDOR,SIX DEGREES TECHNOLOGY GROUP LTD,137034
Portsmouth City Council,PCC,Support Service / Transparency Costs Unallocated,LLM,"Housing, Neighbourhood and Building Services",Premises-Related Expenditure,"Repairs, alterations and maintenance of buildings",04/09/19,6319652,18.66,VENDOR,SIX DEGREES TECHNOLOGY GROUP LTD,137034
Portsmouth City Council,PCC,Support Service / Transparency Costs Unallocated,LLM,"Housing, Neighbourhood and Building Services",Premises-Related Expenditure,"Repairs, alterations and maintenance of buildings",04/09/19,6319652,40.32,VENDOR,SIX DEGREES TECHNOLOGY GROUP LTD,137034
Portsmouth City Council,PCC,Support Service / Transparency Costs Unallocated,LLM,"Housing, Neighbourhood and Building Services",Premises-Related Expenditure,"Repairs, alterations and maintenance of buildings",04/09/19,6319652,40.32,VENDOR,SIX DEGREES TECHNOLOGY GROUP LTD,137034
Portsmouth City Council,PCC,Support Service / Transparency Costs Unallocated,LLM,"Housing, Neighbourhood and Building Services",Premises-Related Expenditure,"Repairs, alterations and maintenance of buildings",04/09/19,6319652,20.16,VENDOR,SIX DEGREES TECHNOLOGY GROUP LTD,137034
Portsmouth City Council,PCC,Support Service / Transparency Costs Unallocated,LLM,"Housing, Neighbourhood and Building Services",Premises-Related Expenditure,"Repairs, alterations and maintenance of buildings",04/09/19,6319652,20.16,VENDOR,SIX DEGREES TECHNOLOGY GROUP LTD,137034
Portsmouth City Council,PCC,Support Service / Transparency Costs Unallocated,LLM,"Housing, Neighbourhood and Building Services",Premises-Related Expenditure,"Repairs, alterations and maintenance of buildings",04/09/19,6319652,20.16,VENDOR,SIX DEGREES TECHNOLOGY GROUP LTD,137034
Portsmouth City Council,PCC,Support Service / Transparency Costs Unallocated,LLM,"Housing, Neighbourhood and Building Services",Premises-Related Expenditure,"Repairs, alterations and maintenance of buildings",04/09/19,6319652,18.66,VENDOR,SIX DEGREES TECHNOLOGY GROUP LTD,137034
Portsmouth City Council,PCC,Support Service / Transparency Costs Unallocated,LLM,"Housing, Neighbourhood and Building Services",Premises-Related Expenditure,"Repairs, alterations and maintenance of buildings",04/09/19,6319652,18.66,VENDOR,SIX DEGREES TECHNOLOGY GROUP LTD,137034
Portsmouth City Council,PCC,Housing Revenue Account,Repairs and Maintenance,"Housing, Neighbourhood and Building Services",Premises-Related Expenditure,"Repairs, alterations and maintenance of buildings",04/09/19,6319652,1500,VENDOR,SIX DEGREES TECHNOLOGY GROUP LTD,137034
Portsmouth City Council,PCC,Other,Suspense and Capital Schemes,"Housing, Neighbourhood and Building Services",Third Party Payments,Private contractors,26/09/19,6323442,450000,OTHER LOCAL AUTHORITY,HAMPSHIRE COUNTY COUNCIL,100030
Portsmouth City Council,PCC,Children's and Education Services,Special Schools,Children's Services and Education,Third Party Payments,Other establishments,20/09/19,6322040,4671.43,VENDOR,HILLCREST CHILDRENS SERVICES LIMITED,117913
Portsmouth City Council,PCC,Cultural and Related Services,Culture and Heritage,"Culture, Leisure & Regulatory Services",Supplies and Services,Services,02/09/19,6318935,1122,VENDOR,CONSTANTINE LTD,119820
Portsmouth City Council,PCC,Corporate and Democratic Core,Corporate Management,Corporate Services,Supplies and Services,"Printing, stationery and general office expenses",27/09/19,6323604,171.6,VENDOR,EASTRIO 1 LTD,144641
Portsmouth City Council,PCC,Corporate and Democratic Core,Corporate Management,Corporate Services,Supplies and Services,"Printing, stationery and general office expenses",27/09/19,6323604,114.4,VENDOR,EASTRIO 1 LTD,144641
Portsmouth City Council,PCC,Housing Revenue Account,Repairs and Maintenance,"Housing, Neighbourhood and Building Services",Premises-Related Expenditure,"Repairs, alterations and maintenance of buildings",05/09/19,6319698,338,VENDOR,ECEAU LTD,142965
Portsmouth City Council,PCC,Housing Revenue Account,Repairs and Maintenance,"Housing, Neighbourhood and Building Services",Premises-Related Expenditure,"Repairs, alterations and maintenance of buildings",05/09/19,6319698,338,VENDOR,ECEAU LTD,142965
Portsmouth City Council,PCC,Housing Revenue Account,Repairs and Maintenance,"Housing, Neighbourhood and Building Services",Premises-Related Expenditure,"Repairs, alterations and maintenance of buildings",05/09/19,6319698,49.8,VENDOR,ECEAU LTD,142965
Portsmouth City Council,PCC,Housing Revenue Account,Repairs and Maintenance,"Housing, Neighbourhood and Building Services",Premises-Related Expenditure,"Repairs, alterations and maintenance of buildings",05/09/19,6319698,-49.8,VENDOR,ECEAU LTD,142965
Portsmouth City Council,PCC,Housing Revenue Account,Repairs and Maintenance,"Housing, Neighbourhood and Building Services",Premises-Related Expenditure,"Repairs, alterations and maintenance of buildings",12/09/19,6320788,215.8,VENDOR,ECEAU LTD,142965
Portsmouth City Council,PCC,Housing Revenue Account,Repairs and Maintenance,"Housing, Neighbourhood and Building Services",Premises-Related Expenditure,"Repairs, alterations and maintenance of buildings",12/09/19,6320788,215.8,VENDOR,ECEAU LTD,142965
Portsmouth City Council,PCC,Housing Revenue Account,Repairs and Maintenance,"Housing, Neighbourhood and Building Services",Premises-Related Expenditure,"Repairs, alterations and maintenance of buildings",12/09/19,6320788,553.8,VENDOR,ECEAU LTD,142965
Portsmouth City Council,PCC,Housing Revenue Account,Repairs and Maintenance,"Housing, Neighbourhood and Building Services",Premises-Related Expenditure,"Repairs, alterations and maintenance of buildings",12/09/19,6320788,215.8,VENDOR,ECEAU LTD,142965
Portsmouth City Council,PCC,Housing Revenue Account,Supervision and Management,"Housing, Neighbourhood and Building Services",Supplies and Services,Services,27/09/19,6323525,1950,SOLETRADER,Classified as 'personal data' (under the Data Protection Act 2018),145268
Portsmouth City Council,PCC,Costs below Net Cost of Services,Trading,"Housing, Neighbourhood and Building Services",Third Party Payments,Private contractors,18/09/19,6321394,1100,VENDOR,FOREMOST TREESURGEONS LIMITED,128311
Portsmouth City Council,PCC,Housing Services,Homelessness,"Housing, Neighbourhood and Building Services",Premises-Related Expenditure,Rents,25/09/19,6322843,1830,SOLETRADER,Classified as 'personal data' (under the Data Protection Act 2018),139708
Portsmouth City Council,PCC,Costs below Net Cost of Services,Trading,Finance & Revenues,Supplies and Services,Services,11/09/19,6320309,10555.98,VENDOR,ZURICH INSURANCE PLC,102966
Portsmouth City Council,PCC,Costs below Net Cost of Services,Trading,Finance & Revenues,Supplies and Services,Services,11/09/19,6320309,9260.07,VENDOR,ZURICH INSURANCE PLC,102966
Portsmouth City Council,PCC,Costs below Net Cost of Services,Trading,Finance & Revenues,Supplies and Services,Services,11/09/19,6320309,26109.73,VENDOR,ZURICH INSURANCE PLC,102966
Portsmouth City Council,PCC,Costs below Net Cost of Services,Trading,Finance & Revenues,Supplies and Services,Services,16/09/19,6321233,280,VENDOR,ZURICH INSURANCE PLC,102966
Portsmouth City Council,PCC,Children's and Education Services,Asylum seekers,Children's Services and Education,Third Party Payments,Other establishments,20/09/19,6322033,3573.73,VENDOR,FAMILY FIRST FOSTERING,144272
Portsmouth City Council,PCC,Cultural and Related Services,Allocation of Management & Admin,"Culture, Leisure & Regulatory Services",Third Party Payments,Private contractors,16/09/19,6321127,2550,VENDOR,Classified as 'personal data' (under the Data Protection Act 2018),126209
Portsmouth City Council,PCC,Adult Social Care,Physical Support Older People (85+),Adult Services,Third Party Payments,Other establishments,18/09/19,6321364,135.04,VENDOR,B S CARE LTD,100114
Portsmouth City Council,PCC,Support Service / Transparency Costs Unallocated,Information Services,Corporate Services,Supplies and Services,Communications and computing,26/09/19,6323446,1560,VENDOR,HUNGRY RAPTOR LTD T/A SME SUPPLIES,143884
Portsmouth City Council,PCC,Highways and Transport Services,"Airports, Harbours and Toll Facilities",Portsmouth International Port,Employees,Indirect employee expenses,13/09/19,6321021,5100,VENDOR,SEAWAYS EUROPE LTD,139832
Portsmouth City Council,PCC,Other,Suspense and Capital Schemes,Capital - Housing General Fund,Capital Charges,REFCUS,25/09/19,6323294,326.52,VENDOR,KEMP BUILDERS,135362
Portsmouth City Council,PCC,Other,Suspense and Capital Schemes,Capital - Housing General Fund,Capital Charges,REFCUS,25/09/19,6323294,11603.14,VENDOR,KEMP BUILDERS,135362
Portsmouth City Council,PCC,Highways and Transport Services,"Airports, Harbours and Toll Facilities",Portsmouth International Port,Transport-Related Expenditure,Direct transport costs,26/09/19,6323486,12898.57,VENDOR,SGS UNITED KINGDOM LTD,105507
Portsmouth City Council,PCC,Highways and Transport Services,"Airports, Harbours and Toll Facilities",Portsmouth International Port,Transport-Related Expenditure,Direct transport costs,26/09/19,6323486,-88.12,VENDOR,SGS UNITED KINGDOM LTD,105507
Portsmouth City Council,PCC,Cultural and Related Services,Culture and Heritage,"Culture, Leisure & Regulatory Services",Supplies and Services,"Equipment, furniture and materials",04/09/19,6319657,110,VENDOR,STRATFORD-UPON-AVON BUTTERFLY FARM LTD,100888
Portsmouth City Council,PCC,Highways and Transport Services,Parking Services,Regeneration,Supplies and Services,"Printing, stationery and general office expenses",09/09/19,6319952,461,VENDOR,MCAARP HOLDINGS T/A INTEGRITY PRINT LTD,144547
Portsmouth City Council,PCC,Highways and Transport Services,Parking Services,Regeneration,Supplies and Services,"Printing, stationery and general office expenses",23/09/19,6322628,4599.36,VENDOR,MCAARP HOLDINGS T/A INTEGRITY PRINT LTD,144547
Portsmouth City Council,PCC,Highways and Transport Services,Parking Services,Regeneration,Supplies and Services,"Printing, stationery and general office expenses",26/09/19,6323459,905,VENDOR,MCAARP HOLDINGS T/A INTEGRITY PRINT LTD,144547
Portsmouth City Council,PCC,Children's and Education Services,Other Education and Community Budget,Children's Services and Education,Employees,Indirect employee expenses,27/09/19,6323679,64,VENDOR,RMC EMEA LIMITED,122070
Portsmouth City Council,PCC,Support Service / Transparency Costs Unallocated,Personnel,Corporate Services,Employees,Indirect employee expenses,27/09/19,6323679,127.98,VENDOR,RMC EMEA LIMITED,122070
Portsmouth City Council,PCC,Support Service / Transparency Costs Unallocated,Personnel,Corporate Services,Employees,Indirect employee expenses,27/09/19,6323679,64,VENDOR,RMC EMEA LIMITED,122070
Portsmouth City Council,PCC,Support Service / Transparency Costs Unallocated,Personnel,Corporate Services,Employees,Indirect employee expenses,27/09/19,6323679,-64,VENDOR,RMC EMEA LIMITED,122070
Portsmouth City Council,PCC,Housing Revenue Account,Supervision and Management,"Housing, Neighbourhood and Building Services",Employees,Indirect employee expenses,27/09/19,6323679,127.98,VENDOR,RMC EMEA LIMITED,122070
Portsmouth City Council,PCC,Planning Services,Business support,Regeneration,Employees,Indirect employee expenses,27/09/19,6323679,240,VENDOR,RMC EMEA LIMITED,122070
Portsmouth City Council,PCC,Adult Social Care,Physical Support Older People (85+),Adult Services,Third Party Payments,Other establishments,18/09/19,6321364,413.56,VENDOR,B S CARE LTD,100114
Portsmouth City Council,PCC,Adult Social Care,Physical Support Older People (85+),Adult Services,Third Party Payments,Other establishments,18/09/19,6321364,590.8,VENDOR,B S CARE LTD,100114
Portsmouth City Council,PCC,Planning Services,Business support,Regeneration,Employees,Indirect employee expenses,27/09/19,6323679,48,VENDOR,RMC EMEA LIMITED,122070
Portsmouth City Council,PCC,Cultural and Related Services,Allocation of Management & Admin,Corporate Services,Employees,Indirect employee expenses,27/09/19,6323679,120,VENDOR,RMC EMEA LIMITED,122070
Portsmouth City Council,PCC,Children's and Education Services,Other Children and Family Services,Children's Services and Education,Employees,Indirect employee expenses,27/09/19,6323679,48,VENDOR,RMC EMEA LIMITED,122070
Portsmouth City Council,PCC,Support Service / Transparency Costs Unallocated,Personnel,Corporate Services,Employees,Indirect employee expenses,27/09/19,6323679,64,VENDOR,RMC EMEA LIMITED,122070
Portsmouth City Council,PCC,Support Service / Transparency Costs Unallocated,Personnel,Corporate Services,Employees,Indirect employee expenses,27/09/19,6323679,48,VENDOR,RMC EMEA LIMITED,122070
Portsmouth City Council,PCC,Children's and Education Services,Asylum seekers,Children's Services and Education,Supplies and Services,Services,26/09/19,6323445,85,SOLETRADER,Classified as 'personal data' (under the Data Protection Act 2018),144795
Portsmouth City Council,PCC,Highways and Transport Services,"Airports, Harbours and Toll Facilities",Portsmouth International Port,Premises-Related Expenditure,Cleaning and domestic supplies,26/09/19,6323468,8569.17,VENDOR,NVIRO LTD,124507
Portsmouth City Council,PCC,Highways and Transport Services,"Airports, Harbours and Toll Facilities",Portsmouth International Port,Premises-Related Expenditure,Cleaning and domestic supplies,26/09/19,6323468,8569.16,VENDOR,NVIRO LTD,124507
Portsmouth City Council,PCC,Highways and Transport Services,"Airports, Harbours and Toll Facilities",Portsmouth International Port,Premises-Related Expenditure,Cleaning and domestic supplies,26/09/19,6323468,2167,VENDOR,NVIRO LTD,124507
Portsmouth City Council,PCC,Children's and Education Services,Asylum seekers,Children's Services and Education,Supplies and Services,Services,26/09/19,6323445,55,SOLETRADER,Classified as 'personal data' (under the Data Protection Act 2018),144795
Portsmouth City Council,PCC,Cultural and Related Services,Tourism,"Culture, Leisure & Regulatory Services",Transport-Related Expenditure,Public transport,19/09/19,6321896,3,VENDOR,AQUA CARS LIMITED,100011
Portsmouth City Council,PCC,Cultural and Related Services,Culture and Heritage,"Culture, Leisure & Regulatory Services",Transport-Related Expenditure,Public transport,19/09/19,6321896,74.8,VENDOR,AQUA CARS LIMITED,100011
Portsmouth City Council,PCC,Cultural and Related Services,Culture and Heritage,"Culture, Leisure & Regulatory Services",Transport-Related Expenditure,Public transport,19/09/19,6321896,37.2,VENDOR,AQUA CARS LIMITED,100011
Portsmouth City Council,PCC,Planning Services,Business support,Regeneration,Supplies and Services,"Equipment, furniture and materials",17/09/19,6321327,101.22,VENDOR,SPANDEX LIMITED,100163
Portsmouth City Council,PCC,Planning Services,Business support,Regeneration,Supplies and Services,"Equipment, furniture and materials",17/09/19,6321327,223.86,VENDOR,SPANDEX LIMITED,100163
Portsmouth City Council,PCC,Planning Services,Business support,Regeneration,Supplies and Services,"Equipment, furniture and materials",17/09/19,6321327,99.98,VENDOR,SPANDEX LIMITED,100163
Portsmouth City Council,PCC,Planning Services,Business support,Regeneration,Supplies and Services,"Equipment, furniture and materials",17/09/19,6321327,99.98,VENDOR,SPANDEX LIMITED,100163
Portsmouth City Council,PCC,Housing Services,Homelessness,"Housing, Neighbourhood and Building Services",Premises-Related Expenditure,Rents,25/09/19,6323315,1500,SOLETRADER,Classified as 'personal data' (under the Data Protection Act 2018),138874
Portsmouth City Council,PCC,Housing Services,Homelessness,"Housing, Neighbourhood and Building Services",Premises-Related Expenditure,Rents,25/09/19,6323315,1800,SOLETRADER,Classified as 'personal data' (under the Data Protection Act 2018),138874
Portsmouth City Council,PCC,Housing Services,Homelessness,"Housing, Neighbourhood and Building Services",Premises-Related Expenditure,Rents,25/09/19,6323315,-1800,SOLETRADER,Classified as 'personal data' (under the Data Protection Act 2018),138874
Portsmouth City Council,PCC,Housing Services,Homelessness,"Housing, Neighbourhood and Building Services",Premises-Related Expenditure,Rents,25/09/19,6323289,2490,SOLETRADER,Classified as 'personal data' (under the Data Protection Act 2018),135979
Portsmouth City Council,PCC,Children's and Education Services,Asylum seekers,Children's Services and Education,Supplies and Services,Services,26/09/19,6323445,45,SOLETRADER,Classified as 'personal data' (under the Data Protection Act 2018),144795
Portsmouth City Council,PCC,Children's and Education Services,Asylum seekers,Children's Services and Education,Supplies and Services,Services,26/09/19,6323445,45,SOLETRADER,Classified as 'personal data' (under the Data Protection Act 2018),144795
Portsmouth City Council,PCC,Children's and Education Services,Asylum seekers,Children's Services and Education,Supplies and Services,Services,26/09/19,6323445,125,SOLETRADER,Classified as 'personal data' (under the Data Protection Act 2018),144795
Portsmouth City Council,PCC,Adult Social Care,Physical Support Older People (85+),Adult Services,Third Party Payments,Other establishments,18/09/19,6321364,236.32,VENDOR,B S CARE LTD,100114
Portsmouth City Council,PCC,Housing Services,Homelessness,"Housing, Neighbourhood and Building Services",Premises-Related Expenditure,Rents,18/09/19,6321795,787.75,SOLETRADER,Classified as 'personal data' (under the Data Protection Act 2018),146056
Portsmouth City Council,PCC,Housing Services,Homelessness,"Housing, Neighbourhood and Building Services",Premises-Related Expenditure,Rents,25/09/19,6323280,2220,SOLETRADER,Classified as 'personal data' (under the Data Protection Act 2018),146056
Portsmouth City Council,PCC,Children's and Education Services,Asylum seekers,Children's Services and Education,Supplies and Services,Services,26/09/19,6323445,50,SOLETRADER,Classified as 'personal data' (under the Data Protection Act 2018),144795
Portsmouth City Council,PCC,Cultural and Related Services,Culture and Heritage,"Culture, Leisure & Regulatory Services",Transport-Related Expenditure,Public transport,19/09/19,6321896,17.7,VENDOR,AQUA CARS LIMITED,100011
Portsmouth City Council,PCC,Cultural and Related Services,Culture and Heritage,"Culture, Leisure & Regulatory Services",Transport-Related Expenditure,Public transport,19/09/19,6321896,10.7,VENDOR,AQUA CARS LIMITED,100011
Portsmouth City Council,PCC,Children's and Education Services,Asylum seekers,Children's Services and Education,Supplies and Services,Services,26/09/19,6323445,85,SOLETRADER,Classified as 'personal data' (under the Data Protection Act 2018),144795
Portsmouth City Council,PCC,Adult Social Care,Physical Support Older People (85+),Adult Services,Third Party Payments,Other establishments,18/09/19,6321364,1173.16,VENDOR,B S CARE LTD,100114
Portsmouth City Council,PCC,Children's and Education Services,Asylum seekers,Children's Services and Education,Supplies and Services,Services,26/09/19,6323445,75,SOLETRADER,Classified as 'personal data' (under the Data Protection Act 2018),144795
Portsmouth City Council,PCC,Adult Social Care,Physical Support Older People (85+),Adult Services,Third Party Payments,Other establishments,18/09/19,6321364,1299.76,VENDOR,B S CARE LTD,100114
Portsmouth City Council,PCC,Cultural and Related Services,Culture and Heritage,"Culture, Leisure & Regulatory Services",Supplies and Services,"Equipment, furniture and materials",04/09/19,6319657,110,VENDOR,STRATFORD-UPON-AVON BUTTERFLY FARM LTD,100888
Portsmouth City Council,PCC,Corporate and Democratic Core,Corporate Management,Finance & Revenues,Supplies and Services,Services,06/09/19,6319839,20705,VENDOR,PRICEWATERHOUSE COOPERS,106542
Portsmouth City Council,PCC,Children's and Education Services,Asylum seekers,Children's Services and Education,Supplies and Services,Services,26/09/19,6323445,45,SOLETRADER,Classified as 'personal data' (under the Data Protection Act 2018),144795
Portsmouth City Council,PCC,Adult Social Care,Physical Support Older People (85+),Adult Services,Third Party Payments,Other establishments,18/09/19,6321364,1299.76,VENDOR,B S CARE LTD,100114
Portsmouth City Council,PCC,Children's and Education Services,Asylum seekers,Children's Services and Education,Supplies and Services,Services,26/09/19,6323445,90,SOLETRADER,Classified as 'personal data' (under the Data Protection Act 2018),144795
Portsmouth City Council,PCC,Adult Social Care,Physical Support Older People (85+),Adult Services,Third Party Payments,Other establishments,18/09/19,6321364,827.12,VENDOR,B S CARE LTD,100114
Portsmouth City Council,PCC,Adult Social Care,Physical Support Older People (85+),Adult Services,Third Party Payments,Other establishments,18/09/19,6321364,211,VENDOR,B S CARE LTD,100114
Portsmouth City Council,PCC,Adult Social Care,Physical Support Older People (85+),Adult Services,Third Party Payments,Other establishments,18/09/19,6321364,472.64,VENDOR,B S CARE LTD,100114
Portsmouth City Council,PCC,Children's and Education Services,Other Children and Family Services,Children's Services and Education,Supplies and Services,Services,13/09/19,6321092,1150,SOLETRADER,Classified as 'personal data' (under the Data Protection Act 2018),144178
Portsmouth City Council,PCC,Housing Services,Homelessness,"Housing, Neighbourhood and Building Services",Transport-Related Expenditure,Direct transport costs,02/09/19,6318919,770.3,VENDOR,AQUA CARS LIMITED,100011
Portsmouth City Council,PCC,Children's and Education Services,Asylum seekers,Children's Services and Education,Supplies and Services,Services,26/09/19,6323445,50,SOLETRADER,Classified as 'personal data' (under the Data Protection Act 2018),144795
Portsmouth City Council,PCC,Cultural and Related Services,Culture and Heritage,"Culture, Leisure & Regulatory Services",Supplies and Services,Communications and computing,12/09/19,6320722,1279.42,VENDOR,ARTIFAX SOFTWARE LTD,110961
Portsmouth City Council,PCC,Environmental and Regulatory Services,Regulatory Services,"Culture, Leisure & Regulatory Services",Third Party Payments,Private contractors,13/09/19,6320915,156,VENDOR,ADAMS MOREY LTD,100446
Portsmouth City Council,PCC,Environmental and Regulatory Services,Regulatory Services,"Culture, Leisure & Regulatory Services",Third Party Payments,Private contractors,13/09/19,6320915,884,VENDOR,ADAMS MOREY LTD,100446
Portsmouth City Council,PCC,Support Service / Transparency Costs Unallocated,Information Services,Corporate Services,Transport-Related Expenditure,Direct transport costs,02/09/19,6318919,349.6,VENDOR,AQUA CARS LIMITED,100011
Portsmouth City Council,PCC,Environmental and Regulatory Services,Regulatory Services,"Culture, Leisure & Regulatory Services",Third Party Payments,Private contractors,13/09/19,6321050,520,VENDOR,ADAMS MOREY LTD,100446
Portsmouth City Council,PCC,Environmental and Regulatory Services,Regulatory Services,"Culture, Leisure & Regulatory Services",Third Party Payments,Private contractors,13/09/19,6321050,1300,VENDOR,ADAMS MOREY LTD,100446
Portsmouth City Council,PCC,Environmental and Regulatory Services,Regulatory Services,"Culture, Leisure & Regulatory Services",Third Party Payments,Private contractors,23/09/19,6322523,312,VENDOR,ADAMS MOREY LTD,100446
Portsmouth City Council,PCC,Environmental and Regulatory Services,Regulatory Services,"Culture, Leisure & Regulatory Services",Third Party Payments,Private contractors,23/09/19,6322523,1196,VENDOR,ADAMS MOREY LTD,100446
Portsmouth City Council,PCC,Environmental and Regulatory Services,Regulatory Services,"Culture, Leisure & Regulatory Services",Third Party Payments,Private contractors,26/09/19,6323386,156,VENDOR,ADAMS MOREY LTD,100446
Portsmouth City Council,PCC,Environmental and Regulatory Services,Regulatory Services,"Culture, Leisure & Regulatory Services",Third Party Payments,Private contractors,26/09/19,6323386,572,VENDOR,ADAMS MOREY LTD,100446
Portsmouth City Council,PCC,Cultural and Related Services,Tourism,"Culture, Leisure & Regulatory Services",Transport-Related Expenditure,Public transport,25/09/19,6322820,4.4,VENDOR,AQUA CARS LIMITED,100011
Portsmouth City Council,PCC,Cultural and Related Services,Culture and Heritage,"Culture, Leisure & Regulatory Services",Transport-Related Expenditure,Public transport,25/09/19,6322820,40.3,VENDOR,AQUA CARS LIMITED,100011
Portsmouth City Council,PCC,Cultural and Related Services,Culture and Heritage,"Culture, Leisure & Regulatory Services",Transport-Related Expenditure,Public transport,25/09/19,6322820,7.4,VENDOR,AQUA CARS LIMITED,100011
Portsmouth City Council,PCC,Children's and Education Services,Children Looked After,Children's Services and Education,Transport-Related Expenditure,Direct transport costs,19/09/19,6321896,6018.7,VENDOR,AQUA CARS LIMITED,100011
Portsmouth City Council,PCC,Adult Social Care,Physical Support Older People (85+),Adult Services,Third Party Payments,Other establishments,18/09/19,6321364,236.32,VENDOR,B S CARE LTD,100114
Portsmouth City Council,PCC,Adult Social Care,Physical Support Older People (85+),Adult Services,Third Party Payments,Other establishments,18/09/19,6321364,1181.6,VENDOR,B S CARE LTD,100114
Portsmouth City Council,PCC,Adult Social Care,Physical Support Older People (85+),Adult Services,Third Party Payments,Other establishments,18/09/19,6321364,1181.6,VENDOR,B S CARE LTD,100114
Portsmouth City Council,PCC,Housing Revenue Account,Supervision and Management,"Housing, Neighbourhood and Building Services",Supplies and Services,Services,17/09/19,6321293,850,SOLETRADER,Classified as 'personal data' (under the Data Protection Act 2018),144081
Portsmouth City Council,PCC,Cultural and Related Services,Tourism,"Culture, Leisure & Regulatory Services",Third Party Payments,Private contractors,30/09/19,6323790,3250,VENDOR,MEDIAOLOGY LIMITED,139275
Portsmouth City Council,PCC,Children's and Education Services,Other Children and Family Services,Children's Services and Education,Supplies and Services,Services,16/09/19,6321169,450,SOLETRADER,Classified as 'personal data' (under the Data Protection Act 2018),134578
Portsmouth City Council,PCC,Housing Revenue Account,HRA services share of CDC,"Housing, Neighbourhood and Building Services",Supplies and Services,Services,16/09/19,6321181,500,VENDOR,MARTIN RALPH GROUP,127283
Portsmouth City Council,PCC,Housing Revenue Account,HRA services share of CDC,"Housing, Neighbourhood and Building Services",Supplies and Services,Services,26/09/19,6323458,1000,VENDOR,MARTIN RALPH GROUP,127283
Portsmouth City Council,PCC,Children's and Education Services,Other Education and Community Budget,Children's Services and Education,Supplies and Services,Services,03/09/19,6319136,2025,VENDOR,WHITELIGHT CREATIVE LIMITED,103782
Portsmouth City Council,PCC,Cultural and Related Services,Recreation and Sport,"Culture, Leisure & Regulatory Services",Third Party Payments,Private contractors,13/09/19,6320977,11086.35,COMPANY,DERWENT FLOORING LTD T/A DYNAMIK,146076
Portsmouth City Council,PCC,Adult Social Care,Physical Support Older People (85+),Adult Services,Third Party Payments,Other establishments,18/09/19,6321364,227.88,VENDOR,B S CARE LTD,100114
Portsmouth City Council,PCC,Highways and Transport Services,"Airports, Harbours and Toll Facilities",Portsmouth International Port,Third Party Payments,Private contractors,13/09/19,6321029,976.88,VENDOR,SOUTHERN MARITIME SERVICES LIMITED,120765
Portsmouth City Council,PCC,Highways and Transport Services,"Airports, Harbours and Toll Facilities",Portsmouth International Port,Third Party Payments,Private contractors,13/09/19,6321029,90,VENDOR,SOUTHERN MARITIME SERVICES LIMITED,120765
Portsmouth City Council,PCC,Adult Social Care,Physical Support Older People (85+),Adult Services,Third Party Payments,Other establishments,18/09/19,6321364,236.32,VENDOR,B S CARE LTD,100114
Portsmouth City Council,PCC,Adult Social Care,Physical Support Older People (85+),Adult Services,Third Party Payments,Other establishments,18/09/19,6321364,202.56,VENDOR,B S CARE LTD,100114
Portsmouth City Council,PCC,Adult Social Care,Physical Support Older People (85+),Adult Services,Third Party Payments,Other establishments,18/09/19,6321364,1063.44,VENDOR,B S CARE LTD,100114
Portsmouth City Council,PCC,Adult Social Care,Physical Support Older People (85+),Adult Services,Third Party Payments,Other establishments,18/09/19,6321364,970.6,VENDOR,B S CARE LTD,100114
Portsmouth City Council,PCC,Adult Social Care,Physical Support Older People (85+),Adult Services,Third Party Payments,Other establishments,18/09/19,6321364,573.92,VENDOR,B S CARE LTD,100114
Portsmouth City Council,PCC,Adult Social Care,Physical Support Older People (85+),Adult Services,Third Party Payments,Other establishments,18/09/19,6321364,236.32,VENDOR,B S CARE LTD,100114
Portsmouth City Council,PCC,Adult Social Care,Physical Support Older People (85+),Adult Services,Third Party Payments,Other establishments,18/09/19,6321364,708.96,VENDOR,B S CARE LTD,100114
Portsmouth City Council,PCC,Adult Social Care,Physical Support Older People (85+),Adult Services,Third Party Payments,Other establishments,18/09/19,6321364,1080.32,VENDOR,B S CARE LTD,100114
Portsmouth City Council,PCC,Adult Social Care,Physical Support Older People (85+),Adult Services,Third Party Payments,Other establishments,18/09/19,6321364,270.08,VENDOR,B S CARE LTD,100114
Portsmouth City Council,PCC,Adult Social Care,Physical Support Older People (85+),Adult Services,Third Party Payments,Other establishments,18/09/19,6321364,202.56,VENDOR,B S CARE LTD,100114
Portsmouth City Council,PCC,Adult Social Care,Physical Support Older People (85+),Adult Services,Third Party Payments,Other establishments,18/09/19,6321364,1215.36,VENDOR,B S CARE LTD,100114
Portsmouth City Council,PCC,Adult Social Care,Physical Support Older People (85+),Adult Services,Third Party Payments,Other establishments,18/09/19,6321364,1215.36,VENDOR,B S CARE LTD,100114
Portsmouth City Council,PCC,Adult Social Care,Physical Support Older People (85+),Adult Services,Third Party Payments,Other establishments,18/09/19,6321364,514.84,VENDOR,B S CARE LTD,100114
Portsmouth City Council,PCC,Adult Social Care,Physical Support Older People (85+),Adult Services,Third Party Payments,Other establishments,18/09/19,6321364,236.32,VENDOR,B S CARE LTD,100114
Portsmouth City Council,PCC,Adult Social Care,Physical Support Older People (85+),Adult Services,Third Party Payments,Other establishments,18/09/19,6321364,236.32,VENDOR,B S CARE LTD,100114
Portsmouth City Council,PCC,Adult Social Care,Physical Support Older People (85+),Adult Services,Third Party Payments,Other establishments,18/09/19,6321364,151.92,VENDOR,B S CARE LTD,100114
Portsmouth City Council,PCC,Adult Social Care,Physical Support Older People (85+),Adult Services,Third Party Payments,Other establishments,18/09/19,6321364,101.28,VENDOR,B S CARE LTD,100114
Portsmouth City Council,PCC,Adult Social Care,Physical Support Older People (85+),Adult Services,Third Party Payments,Other establishments,18/09/19,6321364,628.78,VENDOR,B S CARE LTD,100114
Portsmouth City Council,PCC,Support Service / Transparency Costs Unallocated,Information Services,Corporate Services,Transport-Related Expenditure,Direct transport costs,30/09/19,6323736,298.7,VENDOR,AQUA CARS LIMITED,100011
Portsmouth City Council,PCC,Adult Social Care,Physical Support Older People (85+),Adult Services,Third Party Payments,Other establishments,18/09/19,6321364,506.4,VENDOR,B S CARE LTD,100114
Portsmouth City Council,PCC,Children's and Education Services,Family Support Services,Children's Services and Education,Transport-Related Expenditure,Direct transport costs,26/09/19,6323391,26.9,VENDOR,AQUA CARS LIMITED,100011
Portsmouth City Council,PCC,Children's and Education Services,Other Education and Community Budget,Children's Services and Education,Transport-Related Expenditure,Car allowances,10/09/19,6320001,960,VENDOR,AQUA CARS LIMITED,100011
Portsmouth City Council,PCC,Children's and Education Services,Other Education and Community Budget,Children's Services and Education,Transport-Related Expenditure,Car allowances,10/09/19,6320001,240,VENDOR,AQUA CARS LIMITED,100011
Portsmouth City Council,PCC,Children's and Education Services,Other Education and Community Budget,Children's Services and Education,Transport-Related Expenditure,Car allowances,10/09/19,6320001,5,VENDOR,AQUA CARS LIMITED,100011
Portsmouth City Council,PCC,Children's and Education Services,Family Support Services,Children's Services and Education,Transport-Related Expenditure,Direct transport costs,26/09/19,6323391,392.9,VENDOR,AQUA CARS LIMITED,100011
Portsmouth City Council,PCC,Housing Revenue Account,Special Services,"Housing, Neighbourhood and Building Services",Third Party Payments,Private contractors,17/09/19,6321304,540.33,VENDOR,NETWORK SECURITY & ALARMS LTD,129167
Portsmouth City Council,PCC,Housing Services,Homelessness,"Housing, Neighbourhood and Building Services",Premises-Related Expenditure,Rents,25/09/19,6323335,1920,SOLETRADER,Classified as 'personal data' (under the Data Protection Act 2018),139696
Portsmouth City Council,PCC,Cultural and Related Services,Culture and Heritage,"Culture, Leisure & Regulatory Services",Supplies and Services,"Equipment, furniture and materials",04/09/19,6319657,110,VENDOR,STRATFORD-UPON-AVON BUTTERFLY FARM LTD,100888
Portsmouth City Council,PCC,Adult Social Care,Physical Support Older People (85+),Adult Services,Third Party Payments,Other establishments,18/09/19,6321364,236.32,VENDOR,B S CARE LTD,100114
Portsmouth City Council,PCC,Adult Social Care,Physical Support Older People (85+),Adult Services,Third Party Payments,Other establishments,18/09/19,6321364,316.5,VENDOR,B S CARE LTD,100114
Portsmouth City Council,PCC,Cultural and Related Services,Allocation of Management & Admin,Corporate Services,Supplies and Services,"Printing, stationery and general office expenses",23/09/19,6322616,2671,VENDOR,HOLBROOKS PRINTERS LTD,100893
Portsmouth City Council,PCC,Highways and Transport Services,Parking Services,Regeneration,Employees,Indirect employee expenses,27/09/19,6323517,5310,VENDOR,ALPHA PARKING LIMITED,133516
Portsmouth City Council,PCC,Adult Social Care,Physical Support Older People (85+),Adult Services,Third Party Payments,Other establishments,18/09/19,6321364,219.44,VENDOR,B S CARE LTD,100114
Portsmouth City Council,PCC,Adult Social Care,Physical Support Older People (85+),Adult Services,Third Party Payments,Other establishments,18/09/19,6321364,519.06,VENDOR,B S CARE LTD,100114
Portsmouth City Council,PCC,Adult Social Care,Physical Support Older People (85+),Adult Services,Third Party Payments,Other establishments,18/09/19,6321364,590.8,VENDOR,B S CARE LTD,100114
Portsmouth City Council,PCC,Adult Social Care,Physical Support Older People (85+),Adult Services,Third Party Payments,Other establishments,18/09/19,6321364,708.96,VENDOR,B S CARE LTD,100114
Portsmouth City Council,PCC,Adult Social Care,Physical Support Older People (85+),Adult Services,Third Party Payments,Other establishments,18/09/19,6321364,945.28,VENDOR,B S CARE LTD,100114
Portsmouth City Council,PCC,Adult Social Care,Physical Support Older People (85+),Adult Services,Third Party Payments,Other establishments,18/09/19,6321364,945.28,VENDOR,B S CARE LTD,100114
Portsmouth City Council,PCC,Adult Social Care,Physical Support Older People (85+),Adult Services,Third Party Payments,Other establishments,18/09/19,6321364,248.98,VENDOR,B S CARE LTD,100114
Portsmouth City Council,PCC,Adult Social Care,Physical Support Older People (85+),Adult Services,Third Party Payments,Other establishments,18/09/19,6321364,189.9,VENDOR,B S CARE LTD,100114
Portsmouth City Council,PCC,Adult Social Care,Physical Support Older People (85+),Adult Services,Third Party Payments,Other establishments,18/09/19,6321364,92.84,VENDOR,B S CARE LTD,100114
Portsmouth City Council,PCC,Cultural and Related Services,Tourism,"Culture, Leisure & Regulatory Services",Supplies and Services,"Equipment, furniture and materials",17/09/19,6321337,759,VENDOR,THE CONTINUUM GROUP LTD,117630
Portsmouth City Council,PCC,Children's and Education Services,Other Children and Family Services,Children's Services and Education,Supplies and Services,Services,13/09/19,6321070,432,VENDOR,COURTNEY PSYCHIATRY LIMITED,137941
Portsmouth City Council,PCC,Housing Services,Homelessness,"Housing, Neighbourhood and Building Services",Premises-Related Expenditure,Rents,25/09/19,6323301,2400,SOLETRADER,Classified as 'personal data' (under the Data Protection Act 2018),137146
Portsmouth City Council,PCC,Central Services,Coroners' Court Services,"Culture, Leisure & Regulatory Services",Supplies and Services,Services,18/09/19,6321835,556.9,SOLETRADER,Classified as 'personal data' (under the Data Protection Act 2018),140278
Portsmouth City Council,PCC,Housing Revenue Account,Special Services,"Housing, Neighbourhood and Building Services",Employees,Direct employee expenses,06/09/19,6319858,1968.82,VENDOR,THE PORTSMOUTH SITTING SERVICE AND COMMUNITY CARE SERVICES LTD T/A ASSURED CARE,100201
Portsmouth City Council,PCC,Housing Revenue Account,Special Services,"Housing, Neighbourhood and Building Services",Employees,Direct employee expenses,06/09/19,6319858,1458.02,VENDOR,THE PORTSMOUTH SITTING SERVICE AND COMMUNITY CARE SERVICES LTD T/A ASSURED CARE,100201
Portsmouth City Council,PCC,Other,Suspense and Capital Schemes,Capital - Housing General Fund,Capital Charges,REFCUS,04/09/19,6319138,5990,COMPANY,ACORN MOBILITY SERVICES LTD,123288
Portsmouth City Council,PCC,Other,Suspense and Capital Schemes,Capital - Culture & City Development,Capital Charges,Capital Expenditure (WIP),18/09/19,6321836,2566.65,COMPANY,REDS BUILDERS LTD,108228
Portsmouth City Council,PCC,Other,Suspense and Capital Schemes,Capital - Education,Capital Charges,REFCUS,27/09/19,6323677,1575,COMPANY,REDS BUILDERS LTD,108228
Portsmouth City Council,PCC,Other,Suspense and Capital Schemes,Capital - Housing RA,Capital Charges,Capital Expenditure (WIP),20/09/19,6322059,75675,COMPANY,REDS BUILDERS LTD,108228
Portsmouth City Council,PCC,Other,Suspense and Capital Schemes,Capital - Education,Capital Charges,REFCUS,27/09/19,6323677,22508.9,COMPANY,REDS BUILDERS LTD,108228
Portsmouth City Council,PCC,Children's and Education Services,Family Support Services,Children's Services and Education,Third Party Payments,Other establishments,27/09/19,6323674,94.84,VENDOR,PREPAID FINANCIAL SERVICES,137139
Portsmouth City Council,PCC,Children's and Education Services,Children Looked After,Children's Services and Education,Third Party Payments,Other establishments,27/09/19,6323674,45.6,VENDOR,PREPAID FINANCIAL SERVICES,137139
Portsmouth City Council,PCC,Children's and Education Services,Other Education and Community Budget,Children's Services and Education,Third Party Payments,Other establishments,27/09/19,6323674,111.4,VENDOR,PREPAID FINANCIAL SERVICES,137139
Portsmouth City Council,PCC,Children's and Education Services,Other Education and Community Budget,Children's Services and Education,Third Party Payments,Other establishments,27/09/19,6323674,714.1,VENDOR,PREPAID FINANCIAL SERVICES,137139
Portsmouth City Council,PCC,Children's and Education Services,Other Education and Community Budget,Children's Services and Education,Third Party Payments,Other establishments,27/09/19,6323674,-9.25,VENDOR,PREPAID FINANCIAL SERVICES,137139
Portsmouth City Council,PCC,Adult Social Care,Physical Support Older People (85+),Adult Services,Third Party Payments,Other establishments,18/09/19,6321364,472.64,VENDOR,B S CARE LTD,100114
Portsmouth City Council,PCC,Adult Social Care,Physical Support Older People (85+),Adult Services,Third Party Payments,Other establishments,18/09/19,6321364,33.76,VENDOR,B S CARE LTD,100114
Portsmouth City Council,PCC,Housing Revenue Account,Special Services,"Housing, Neighbourhood and Building Services",Employees,Direct employee expenses,30/09/19,6323828,3749.08,VENDOR,THE PORTSMOUTH SITTING SERVICE AND COMMUNITY CARE SERVICES LTD T/A ASSURED CARE,100201
Portsmouth City Council,PCC,Adult Social Care,Physical Support Older People (85+),Adult Services,Third Party Payments,Other establishments,18/09/19,6321364,814.46,VENDOR,B S CARE LTD,100114
Portsmouth City Council,PCC,Adult Social Care,Physical Support Older People (85+),Adult Services,Third Party Payments,Other establishments,18/09/19,6321364,202.56,VENDOR,B S CARE LTD,100114
Portsmouth City Council,PCC,Adult Social Care,Physical Support Older People (85+),Adult Services,Third Party Payments,Other establishments,18/09/19,6321364,1097.2,VENDOR,B S CARE LTD,100114
Portsmouth City Council,PCC,Adult Social Care,Physical Support Older People (85+),Adult Services,Third Party Payments,Other establishments,18/09/19,6321364,1097.2,VENDOR,B S CARE LTD,100114
Portsmouth City Council,PCC,Adult Social Care,Physical Support Older People (85+),Adult Services,Third Party Payments,Other establishments,18/09/19,6321364,63.3,VENDOR,B S CARE LTD,100114
Portsmouth City Council,PCC,Adult Social Care,Physical Support Older People (85+),Adult Services,Third Party Payments,Other establishments,18/09/19,6321364,1063.44,VENDOR,B S CARE LTD,100114
Portsmouth City Council,PCC,Adult Social Care,Physical Support Older People (85+),Adult Services,Third Party Payments,Other establishments,18/09/19,6321364,278.52,VENDOR,B S CARE LTD,100114
Portsmouth City Council,PCC,Adult Social Care,Physical Support Older People (85+),Adult Services,Third Party Payments,Other establishments,18/09/19,6321364,253.2,VENDOR,B S CARE LTD,100114
Portsmouth City Council,PCC,Adult Social Care,Physical Support Older People (85+),Adult Services,Third Party Payments,Other establishments,18/09/19,6321364,708.96,VENDOR,B S CARE LTD,100114
Portsmouth City Council,PCC,Adult Social Care,Physical Support Older People (85+),Adult Services,Third Party Payments,Other establishments,18/09/19,6321364,422,VENDOR,B S CARE LTD,100114
Portsmouth City Council,PCC,Adult Social Care,Physical Support Older People (85+),Adult Services,Third Party Payments,Other establishments,18/09/19,6321364,1160.5,VENDOR,B S CARE LTD,100114
Portsmouth City Council,PCC,Adult Social Care,Physical Support Older People (85+),Adult Services,Third Party Payments,Other establishments,18/09/19,6321364,1295.54,VENDOR,B S CARE LTD,100114
Portsmouth City Council,PCC,Adult Social Care,Physical Support Older People (85+),Adult Services,Third Party Payments,Other establishments,18/09/19,6321364,472.64,VENDOR,B S CARE LTD,100114
Portsmouth City Council,PCC,Adult Social Care,Physical Support Older People (85+),Adult Services,Third Party Payments,Other establishments,18/09/19,6321364,708.96,VENDOR,B S CARE LTD,100114
Portsmouth City Council,PCC,Adult Social Care,Physical Support Older People (85+),Adult Services,Third Party Payments,Other establishments,18/09/19,6321364,1350.4,VENDOR,B S CARE LTD,100114
Portsmouth City Council,PCC,Adult Social Care,Physical Support Older People (85+),Adult Services,Third Party Payments,Other establishments,18/09/19,6321364,151.92,VENDOR,B S CARE LTD,100114
Portsmouth City Council,PCC,Adult Social Care,Physical Support Older People (85+),Adult Services,Third Party Payments,Other establishments,18/09/19,6321364,472.64,VENDOR,B S CARE LTD,100114
Portsmouth City Council,PCC,Adult Social Care,Physical Support Older People (85+),Adult Services,Third Party Payments,Other establishments,18/09/19,6321364,88.62,VENDOR,B S CARE LTD,100114
Portsmouth City Council,PCC,Adult Social Care,Physical Support Older People (85+),Adult Services,Third Party Payments,Other establishments,18/09/19,6321364,928.4,VENDOR,B S CARE LTD,100114
Portsmouth City Council,PCC,Adult Social Care,Physical Support Older People (85+),Adult Services,Third Party Payments,Other establishments,18/09/19,6321364,919.96,VENDOR,B S CARE LTD,100114
Portsmouth City Council,PCC,Adult Social Care,Physical Support Older People (85+),Adult Services,Third Party Payments,Other establishments,18/09/19,6321364,945.28,VENDOR,B S CARE LTD,100114
Portsmouth City Council,PCC,Adult Social Care,Physical Support Older People (85+),Adult Services,Third Party Payments,Other establishments,18/09/19,6321364,236.32,VENDOR,B S CARE LTD,100114
Portsmouth City Council,PCC,Adult Social Care,Physical Support Older People (85+),Adult Services,Third Party Payments,Other establishments,18/09/19,6321364,1173.16,VENDOR,B S CARE LTD,100114
Portsmouth City Council,PCC,Adult Social Care,Physical Support Older People (85+),Adult Services,Third Party Payments,Other establishments,18/09/19,6321364,236.32,VENDOR,B S CARE LTD,100114
Portsmouth City Council,PCC,Adult Social Care,Physical Support Older People (85+),Adult Services,Third Party Payments,Other establishments,18/09/19,6321364,59.08,VENDOR,B S CARE LTD,100114
Portsmouth City Council,PCC,Adult Social Care,Physical Support Older People (85+),Adult Services,Third Party Payments,Other establishments,18/09/19,6321364,8.44,VENDOR,B S CARE LTD,100114
Portsmouth City Council,PCC,Adult Social Care,Physical Support Older People (85+),Adult Services,Third Party Payments,Other establishments,18/09/19,6321364,472.64,VENDOR,B S CARE LTD,100114
Portsmouth City Council,PCC,Adult Social Care,Physical Support Older People (85+),Adult Services,Third Party Payments,Other establishments,18/09/19,6321364,33.76,VENDOR,B S CARE LTD,100114
Portsmouth City Council,PCC,Adult Social Care,Physical Support Older People (85+),Adult Services,Third Party Payments,Other establishments,18/09/19,6321364,540.16,VENDOR,B S CARE LTD,100114
Portsmouth City Council,PCC,Adult Social Care,Physical Support Older People (85+),Adult Services,Third Party Payments,Other establishments,18/09/19,6321364,966.38,VENDOR,B S CARE LTD,100114
Portsmouth City Council,PCC,Adult Social Care,Physical Support Older People (85+),Adult Services,Third Party Payments,Other establishments,18/09/19,6321364,244.76,VENDOR,B S CARE LTD,100114
Portsmouth City Council,PCC,Adult Social Care,Physical Support Older People (85+),Adult Services,Third Party Payments,Other establishments,18/09/19,6321364,708.96,VENDOR,B S CARE LTD,100114
Portsmouth City Council,PCC,Adult Social Care,Physical Support Older People (85+),Adult Services,Third Party Payments,Other establishments,18/09/19,6321364,472.64,VENDOR,B S CARE LTD,100114
Portsmouth City Council,PCC,Adult Social Care,Physical Support Older People (85+),Adult Services,Third Party Payments,Other establishments,18/09/19,6321364,354.48,VENDOR,B S CARE LTD,100114
Portsmouth City Council,PCC,Adult Social Care,Physical Support Older People (85+),Adult Services,Third Party Payments,Other establishments,18/09/19,6321364,455.76,VENDOR,B S CARE LTD,100114
Portsmouth City Council,PCC,Adult Social Care,Physical Support Older People (85+),Adult Services,Third Party Payments,Other establishments,18/09/19,6321364,236.32,VENDOR,B S CARE LTD,100114
Portsmouth City Council,PCC,Adult Social Care,Physical Support Older People (85+),Adult Services,Third Party Payments,Other establishments,18/09/19,6321364,227.88,VENDOR,B S CARE LTD,100114
Portsmouth City Council,PCC,Adult Social Care,Physical Support Older People (85+),Adult Services,Third Party Payments,Other establishments,18/09/19,6321364,75.96,VENDOR,B S CARE LTD,100114
Portsmouth City Council,PCC,Adult Social Care,Physical Support Older People (85+),Adult Services,Third Party Payments,Other establishments,18/09/19,6321364,700.52,VENDOR,B S CARE LTD,100114
Portsmouth City Council,PCC,Adult Social Care,Physical Support Older People (85+),Adult Services,Third Party Payments,Other establishments,18/09/19,6321364,827.12,VENDOR,B S CARE LTD,100114
Portsmouth City Council,PCC,Adult Social Care,Physical Support Older People (85+),Adult Services,Third Party Payments,Other establishments,18/09/19,6321364,303.84,VENDOR,B S CARE LTD,100114
Portsmouth City Council,PCC,Adult Social Care,Physical Support Older People (85+),Adult Services,Third Party Payments,Other establishments,18/09/19,6321364,329.16,VENDOR,B S CARE LTD,100114
Portsmouth City Council,PCC,Adult Social Care,Physical Support Older People (85+),Adult Services,Third Party Payments,Other establishments,18/09/19,6321364,42.2,VENDOR,B S CARE LTD,100114
Portsmouth City Council,PCC,Adult Social Care,Physical Support Older People (85+),Adult Services,Third Party Payments,Other establishments,18/09/19,6321364,236.32,VENDOR,B S CARE LTD,100114
Portsmouth City Council,PCC,Cultural and Related Services,Recreation and Sport,"Culture, Leisure & Regulatory Services",Employees,Indirect employee expenses,06/09/19,6319828,500,VENDOR,MCG TRAINING,137327
Portsmouth City Council,PCC,Highways and Transport Services,Parking Services,Regeneration,Supplies and Services,Communications and computing,12/09/19,6320769,3875,VENDOR,CONDUENT PARKING ENFORCEMENT SOLUTIONS LIMITED,113838
Portsmouth City Council,PCC,Highways and Transport Services,Parking Services,Regeneration,Supplies and Services,Communications and computing,12/09/19,6320769,9262.38,VENDOR,CONDUENT PARKING ENFORCEMENT SOLUTIONS LIMITED,113838
Portsmouth City Council,PCC,Highways and Transport Services,Parking Services,Regeneration,Supplies and Services,Communications and computing,12/09/19,6320769,3849.08,VENDOR,CONDUENT PARKING ENFORCEMENT SOLUTIONS LIMITED,113838
Portsmouth City Council,PCC,Highways and Transport Services,Parking Services,Regeneration,Supplies and Services,Communications and computing,12/09/19,6320769,98.52,VENDOR,CONDUENT PARKING ENFORCEMENT SOLUTIONS LIMITED,113838
Portsmouth City Council,PCC,Highways and Transport Services,Parking Services,Regeneration,Supplies and Services,Communications and computing,12/09/19,6320769,68.34,VENDOR,CONDUENT PARKING ENFORCEMENT SOLUTIONS LIMITED,113838
Portsmouth City Council,PCC,Adult Social Care,Physical Support Older People (85+),Adult Services,Third Party Payments,Other establishments,18/09/19,6321364,472.64,VENDOR,B S CARE LTD,100114
Portsmouth City Council,PCC,Adult Social Care,Physical Support Older People (85+),Adult Services,Third Party Payments,Other establishments,18/09/19,6321364,50.64,VENDOR,B S CARE LTD,100114
Portsmouth City Council,PCC,Adult Social Care,Physical Support Older People (85+),Adult Services,Third Party Payments,Other establishments,18/09/19,6321364,219.44,VENDOR,B S CARE LTD,100114
Portsmouth City Council,PCC,Adult Social Care,Physical Support Older People (85+),Adult Services,Third Party Payments,Other establishments,18/09/19,6321364,118.16,VENDOR,B S CARE LTD,100114
Portsmouth City Council,PCC,Adult Social Care,Physical Support Older People (85+),Adult Services,Third Party Payments,Other establishments,18/09/19,6321364,708.96,VENDOR,B S CARE LTD,100114
Portsmouth City Council,PCC,Adult Social Care,Physical Support Older People (85+),Adult Services,Third Party Payments,Other establishments,18/09/19,6321364,1080.32,VENDOR,B S CARE LTD,100114
Portsmouth City Council,PCC,Adult Social Care,Physical Support Older People (85+),Adult Services,Third Party Payments,Other establishments,18/09/19,6321364,472.64,VENDOR,B S CARE LTD,100114
Portsmouth City Council,PCC,Adult Social Care,Physical Support Older People (85+),Adult Services,Third Party Payments,Other establishments,18/09/19,6321364,590.8,VENDOR,B S CARE LTD,100114
Portsmouth City Council,PCC,Adult Social Care,Physical Support Older People (85+),Adult Services,Third Party Payments,Other establishments,18/09/19,6321364,590.8,VENDOR,B S CARE LTD,100114
Portsmouth City Council,PCC,Adult Social Care,Physical Support Older People (85+),Adult Services,Third Party Payments,Other establishments,18/09/19,6321364,354.48,VENDOR,B S CARE LTD,100114
Portsmouth City Council,PCC,Adult Social Care,Physical Support Older People (85+),Adult Services,Third Party Payments,Other establishments,18/09/19,6321364,8.44,VENDOR,B S CARE LTD,100114
Portsmouth City Council,PCC,Adult Social Care,Learning Disability Support  Adults (18 - 64),Adult Services,Third Party Payments,Other establishments,18/09/19,6321364,1181.6,VENDOR,B S CARE LTD,100114
Portsmouth City Council,PCC,Adult Social Care,Learning Disability Support  Adults (18 - 64),Adult Services,Third Party Payments,Other establishments,18/09/19,6321364,84.4,VENDOR,B S CARE LTD,100114
Portsmouth City Council,PCC,Adult Social Care,Social Support - Support for Carer,Adult Services,Third Party Payments,Other establishments,18/09/19,6321364,283.14,VENDOR,B S CARE LTD,100114
Portsmouth City Council,PCC,Adult Social Care,Social Support - Support for Carer,Adult Services,Third Party Payments,Other establishments,18/09/19,6321364,174.24,VENDOR,B S CARE LTD,100114
Portsmouth City Council,PCC,Adult Social Care,Social Support - Support for Carer,Adult Services,Third Party Payments,Other establishments,18/09/19,6321364,261.36,VENDOR,B S CARE LTD,100114
Portsmouth City Council,PCC,Adult Social Care,Social Support - Support for Carer,Adult Services,Third Party Payments,Other establishments,18/09/19,6321364,348.48,VENDOR,B S CARE LTD,100114
Portsmouth City Council,PCC,Adult Social Care,Social Support - Support for Carer,Adult Services,Third Party Payments,Other establishments,18/09/19,6321364,304.92,VENDOR,B S CARE LTD,100114
Portsmouth City Council,PCC,Adult Social Care,Social Support - Support for Carer,Adult Services,Third Party Payments,Other establishments,18/09/19,6321364,348.48,VENDOR,B S CARE LTD,100114
Portsmouth City Council,PCC,Adult Social Care,Support with Memory and Cognition Older People (85+),Adult Services,Third Party Payments,Other establishments,12/09/19,6320738,2637,VENDOR,BAYITH REST HOME,101832
Portsmouth City Council,PCC,Adult Social Care,Social Care Activities,Adult Services,Third Party Payments,Other establishments,12/09/19,6320739,3219.9,VENDOR,BEACONSFIELD RESIDENTIAL CARE HOME,100568
Portsmouth City Council,PCC,Adult Social Care,Learning Disability Support  Adults (18 - 64),Adult Services,Third Party Payments,Other establishments,12/09/19,6320739,3310.5,VENDOR,BEACONSFIELD RESIDENTIAL CARE HOME,100568
Portsmouth City Council,PCC,Adult Social Care,Learning Disability Support  Adults (18 - 64),Adult Services,Third Party Payments,Other establishments,12/09/19,6320739,2428.2,VENDOR,BEACONSFIELD RESIDENTIAL CARE HOME,100568
Portsmouth City Council,PCC,Adult Social Care,Mental Health Support Adults (18 - 64),Adult Services,Third Party Payments,Other establishments,12/09/19,6320739,1766.1,VENDOR,BEACONSFIELD RESIDENTIAL CARE HOME,100568
Portsmouth City Council,PCC,Adult Social Care,Mental Health Support Adults (18 - 64),Adult Services,Third Party Payments,Other establishments,12/09/19,6320739,1835.4,VENDOR,BEACONSFIELD RESIDENTIAL CARE HOME,100568
Portsmouth City Council,PCC,Adult Social Care,Mental Health Support Adults (18 - 64),Adult Services,Third Party Payments,Other establishments,12/09/19,6320739,1713.9,VENDOR,BEACONSFIELD RESIDENTIAL CARE HOME,100568
Portsmouth City Council,PCC,Adult Social Care,Mental Health Support Adults (18 - 64),Adult Services,Third Party Payments,Other establishments,12/09/19,6320739,1800.9,VENDOR,BEACONSFIELD RESIDENTIAL CARE HOME,100568
Portsmouth City Council,PCC,Adult Social Care,Mental Health Support Adults (18 - 64),Adult Services,Third Party Payments,Other establishments,12/09/19,6320739,2305.8,VENDOR,BEACONSFIELD RESIDENTIAL CARE HOME,100568
Portsmouth City Council,PCC,Adult Social Care,Mental Health Support Adults (18 - 64),Adult Services,Third Party Payments,Other establishments,12/09/19,6320739,1800.9,VENDOR,BEACONSFIELD RESIDENTIAL CARE HOME,100568
Portsmouth City Council,PCC,Adult Social Care,Mental Health Support Adults (18 - 64),Adult Services,Third Party Payments,Other establishments,12/09/19,6320739,1800.9,VENDOR,BEACONSFIELD RESIDENTIAL CARE HOME,100568
Portsmouth City Council,PCC,Adult Social Care,Mental Health Support Adults (18 - 64),Adult Services,Third Party Payments,Other establishments,12/09/19,6320739,1731.6,VENDOR,BEACONSFIELD RESIDENTIAL CARE HOME,100568
Portsmouth City Council,PCC,Adult Social Care,Mental Health Support Adults (18 - 64),Adult Services,Third Party Payments,Other establishments,12/09/19,6320739,2521.5,VENDOR,BEACONSFIELD RESIDENTIAL CARE HOME,100568
Portsmouth City Council,PCC,Adult Social Care,Mental Health Support Adults (18 - 64),Adult Services,Third Party Payments,Other establishments,12/09/19,6320739,1766.1,VENDOR,BEACONSFIELD RESIDENTIAL CARE HOME,100568
Portsmouth City Council,PCC,Adult Social Care,Mental Health Support Adults (18 - 64),Adult Services,Third Party Payments,Other establishments,12/09/19,6320739,1800.9,VENDOR,BEACONSFIELD RESIDENTIAL CARE HOME,100568
Portsmouth City Council,PCC,Adult Social Care,Mental Health Support Adults (18 - 64),Adult Services,Third Party Payments,Other establishments,12/09/19,6320739,1766.1,VENDOR,BEACONSFIELD RESIDENTIAL CARE HOME,100568
Portsmouth City Council,PCC,Adult Social Care,Mental Health Support Adults (18 - 64),Adult Services,Third Party Payments,Other establishments,12/09/19,6320739,1904.4,VENDOR,BEACONSFIELD RESIDENTIAL CARE HOME,100568
Portsmouth City Council,PCC,Adult Social Care,Mental Health Support Adults (18 - 64),Adult Services,Third Party Payments,Other establishments,12/09/19,6320739,1958.1,VENDOR,BEACONSFIELD RESIDENTIAL CARE HOME,100568
Portsmouth City Council,PCC,Adult Social Care,Mental Health Support Adults (18 - 64),Adult Services,Third Party Payments,Other establishments,12/09/19,6320739,1800.9,VENDOR,BEACONSFIELD RESIDENTIAL CARE HOME,100568
Portsmouth City Council,PCC,Adult Social Care,Mental Health Support Adults (18 - 64),Adult Services,Third Party Payments,Other establishments,12/09/19,6320739,1869.9,VENDOR,BEACONSFIELD RESIDENTIAL CARE HOME,100568
Portsmouth City Council,PCC,Adult Social Care,Social Care Activities,Adult Services,Third Party Payments,Other establishments,12/09/19,6320740,1108.59,VENDOR,BEDHAMPTON NURSING HOME,100569
Portsmouth City Council,PCC,Adult Social Care,Social Care Activities,Adult Services,Third Party Payments,Other establishments,12/09/19,6320740,11085.9,VENDOR,BEDHAMPTON NURSING HOME,100569
Portsmouth City Council,PCC,Adult Social Care,Social Care Activities,Adult Services,Third Party Payments,Other establishments,12/09/19,6320740,-2971.36,VENDOR,BEDHAMPTON NURSING HOME,100569
Portsmouth City Council,PCC,Adult Social Care,Social Care Activities,Adult Services,Third Party Payments,Other establishments,12/09/19,6320740,331.2,VENDOR,BEDHAMPTON NURSING HOME,100569
Portsmouth City Council,PCC,Adult Social Care,Social Care Activities,Adult Services,Third Party Payments,Other establishments,12/09/19,6320740,342.24,VENDOR,BEDHAMPTON NURSING HOME,100569
Portsmouth City Council,PCC,Adult Social Care,Social Care Activities,Adult Services,Third Party Payments,Other establishments,12/09/19,6320740,264.96,VENDOR,BEDHAMPTON NURSING HOME,100569
Portsmouth City Council,PCC,Adult Social Care,Social Care Activities,Adult Services,Third Party Payments,Other establishments,12/09/19,6320740,44.16,VENDOR,BEDHAMPTON NURSING HOME,100569
Portsmouth City Council,PCC,Adult Social Care,Social Care Activities,Adult Services,Third Party Payments,Other establishments,12/09/19,6320740,11390.4,VENDOR,BEDHAMPTON NURSING HOME,100569
Portsmouth City Council,PCC,Adult Social Care,Social Care Activities,Adult Services,Third Party Payments,Other establishments,12/09/19,6320740,6418.2,VENDOR,BEDHAMPTON NURSING HOME,100569
Portsmouth City Council,PCC,Adult Social Care,Social Care Activities,Adult Services,Third Party Payments,Other establishments,12/09/19,6320740,4344.9,VENDOR,BEDHAMPTON NURSING HOME,100569
Portsmouth City Council,PCC,Adult Social Care,Social Care Activities,Adult Services,Third Party Payments,Other establishments,12/09/19,6320740,4434.9,VENDOR,BEDHAMPTON NURSING HOME,100569
Portsmouth City Council,PCC,Adult Social Care,Social Care Activities,Adult Services,Third Party Payments,Other establishments,12/09/19,6320740,709.54,VENDOR,BEDHAMPTON NURSING HOME,100569
Portsmouth City Council,PCC,Adult Social Care,Social Care Activities,Adult Services,Third Party Payments,Other establishments,12/09/19,6320740,709.54,VENDOR,BEDHAMPTON NURSING HOME,100569
Portsmouth City Council,PCC,Adult Social Care,Social Care Activities,Adult Services,Third Party Payments,Other establishments,12/09/19,6320740,709.54,VENDOR,BEDHAMPTON NURSING HOME,100569
Portsmouth City Council,PCC,Adult Social Care,Social Care Activities,Adult Services,Third Party Payments,Other establishments,12/09/19,6320740,709.54,VENDOR,BEDHAMPTON NURSING HOME,100569
Portsmouth City Council,PCC,Adult Social Care,Physical Support Older People (85+),Adult Services,Third Party Payments,Other establishments,12/09/19,6320740,2682,VENDOR,BEDHAMPTON NURSING HOME,100569
Portsmouth City Council,PCC,Adult Social Care,Physical Support Older People (85+),Adult Services,Third Party Payments,Other establishments,12/09/19,6320741,3642.9,VENDOR,BETHESDA HEALTHCARE,143824
Portsmouth City Council,PCC,Adult Social Care,Support with Memory and Cognition Older People (85+),Adult Services,Third Party Payments,Other establishments,12/09/19,6320741,2172,VENDOR,BETHESDA HEALTHCARE,143824
Portsmouth City Council,PCC,Adult Social Care,Support with Memory and Cognition Older People (85+),Adult Services,Third Party Payments,Other establishments,12/09/19,6320741,-515,VENDOR,BETHESDA HEALTHCARE,143824
Portsmouth City Council,PCC,Adult Social Care,Support with Memory and Cognition Older People (85+),Adult Services,Third Party Payments,Other establishments,12/09/19,6320741,2833,VENDOR,BETHESDA HEALTHCARE,143824
Portsmouth City Council,PCC,Adult Social Care,Support with Memory and Cognition Older People (85+),Adult Services,Third Party Payments,Other establishments,12/09/19,6320741,557.16,VENDOR,BETHESDA HEALTHCARE,143824
Portsmouth City Council,PCC,Adult Social Care,Support with Memory and Cognition Older People (85+),Adult Services,Third Party Payments,Other establishments,12/09/19,6320741,2971.54,VENDOR,BETHESDA HEALTHCARE,143824
Portsmouth City Council,PCC,Adult Social Care,Support with Memory and Cognition Older People (85+),Adult Services,Third Party Payments,Other establishments,12/09/19,6320741,3428.7,VENDOR,BETHESDA HEALTHCARE,143824
Portsmouth City Council,PCC,Adult Social Care,Support with Memory and Cognition Older People (85+),Adult Services,Third Party Payments,Other establishments,12/09/19,6320741,2130.3,VENDOR,BETHESDA HEALTHCARE,143824
Portsmouth City Council,PCC,Adult Social Care,Support with Memory and Cognition Older People (85+),Adult Services,Third Party Payments,Other establishments,12/09/19,6320741,2172,VENDOR,BETHESDA HEALTHCARE,143824
Portsmouth City Council,PCC,Adult Social Care,Social Care Activities,Adult Services,Third Party Payments,Other establishments,17/09/19,6321260,3897.01,VENDOR,BETHESDA HEALTHCARE,143824
Portsmouth City Council,PCC,Adult Social Care,Social Care Activities,Adult Services,Third Party Payments,Other establishments,17/09/19,6321260,3897.01,VENDOR,BETHESDA HEALTHCARE,143824
Portsmouth City Council,PCC,Adult Social Care,Social Care Activities,Adult Services,Third Party Payments,Other establishments,17/09/19,6321260,3771.3,VENDOR,BETHESDA HEALTHCARE,143824
Portsmouth City Council,PCC,Adult Social Care,Support with Memory and Cognition Older People (65 - 74),Adult Services,Supplies and Services,Catering,19/09/19,6321899,187.67,VENDOR,BFS GROUP LTD T/A BIDFOOD,100106
Portsmouth City Council,PCC,Adult Social Care,Support with Memory and Cognition Older People (65 - 74),Adult Services,Supplies and Services,Catering,02/09/19,6318922,239.38,VENDOR,BFS GROUP LTD T/A BIDFOOD,100106
Portsmouth City Council,PCC,Adult Social Care,Support with Memory and Cognition Older People (65 - 74),Adult Services,Supplies and Services,Catering,02/09/19,6318922,230,VENDOR,BFS GROUP LTD T/A BIDFOOD,100106
Portsmouth City Council,PCC,Adult Social Care,Support with Memory and Cognition Older People (65 - 74),Adult Services,Supplies and Services,Catering,02/09/19,6318922,308.61,VENDOR,BFS GROUP LTD T/A BIDFOOD,100106
Portsmouth City Council,PCC,Adult Social Care,Support with Memory and Cognition Older People (65 - 74),Adult Services,Supplies and Services,Catering,12/09/19,6320742,278.04,VENDOR,BFS GROUP LTD T/A BIDFOOD,100106
Portsmouth City Council,PCC,Adult Social Care,Support with Memory and Cognition Older People (65 - 74),Adult Services,Supplies and Services,Catering,12/09/19,6320742,339.19,VENDOR,BFS GROUP LTD T/A BIDFOOD,100106
Portsmouth City Council,PCC,Adult Social Care,Support with Memory and Cognition Older People (65 - 74),Adult Services,Supplies and Services,Catering,12/09/19,6320742,196.01,VENDOR,BFS GROUP LTD T/A BIDFOOD,100106
Portsmouth City Council,PCC,Adult Social Care,Support with Memory and Cognition Older People (65 - 74),Adult Services,Supplies and Services,Catering,12/09/19,6320742,329.93,VENDOR,BFS GROUP LTD T/A BIDFOOD,100106
Portsmouth City Council,PCC,Adult Social Care,Physical Support Older People (65-74),Adult Services,Supplies and Services,Catering,11/09/19,6320142,101.93,VENDOR,BFS GROUP LTD T/A BIDFOOD,100106
Portsmouth City Council,PCC,Adult Social Care,Support with Memory and Cognition Older People (65 - 74),Adult Services,Supplies and Services,Catering,12/09/19,6320742,301.19,VENDOR,BFS GROUP LTD T/A BIDFOOD,100106
Portsmouth City Council,PCC,Adult Social Care,Support with Memory and Cognition Older People (65 - 74),Adult Services,Supplies and Services,Catering,27/09/19,6323536,268.15,VENDOR,BFS GROUP LTD T/A BIDFOOD,100106
Portsmouth City Council,PCC,Adult Social Care,Support with Memory and Cognition Older People (65 - 74),Adult Services,Supplies and Services,Catering,27/09/19,6323536,237.02,VENDOR,BFS GROUP LTD T/A BIDFOOD,100106
Portsmouth City Council,PCC,Adult Social Care,Support with Memory and Cognition Older People (65 - 74),Adult Services,Supplies and Services,Catering,27/09/19,6323536,249.63,VENDOR,BFS GROUP LTD T/A BIDFOOD,100106
Portsmouth City Council,PCC,Adult Social Care,Support with Memory and Cognition Older People (65 - 74),Adult Services,Supplies and Services,Catering,27/09/19,6323536,245.33,VENDOR,BFS GROUP LTD T/A BIDFOOD,100106
Portsmouth City Council,PCC,Adult Social Care,Support with Memory and Cognition Older People (65 - 74),Adult Services,Supplies and Services,Catering,27/09/19,6323536,340.07,VENDOR,BFS GROUP LTD T/A BIDFOOD,100106
Portsmouth City Council,PCC,Adult Social Care,Support with Memory and Cognition Older People (65 - 74),Adult Services,Supplies and Services,Catering,27/09/19,6323536,469.04,VENDOR,BFS GROUP LTD T/A BIDFOOD,100106
Portsmouth City Council,PCC,Adult Social Care,Support with Memory and Cognition Older People (65 - 74),Adult Services,Supplies and Services,Catering,27/09/19,6323536,317.89,VENDOR,BFS GROUP LTD T/A BIDFOOD,100106
Portsmouth City Council,PCC,Adult Social Care,Support with Memory and Cognition Older People (65 - 74),Adult Services,Supplies and Services,Catering,27/09/19,6323536,-14.22,VENDOR,BFS GROUP LTD T/A BIDFOOD,100106
Portsmouth City Council,PCC,Adult Social Care,Support with Memory and Cognition Older People (65 - 74),Adult Services,Supplies and Services,Catering,27/09/19,6323536,-5.05,VENDOR,BFS GROUP LTD T/A BIDFOOD,100106
Portsmouth City Council,PCC,Adult Social Care,Social Care Activities,Adult Services,Third Party Payments,Other establishments,12/09/19,6320743,4885.2,VENDOR,BLUEBELL NURSING HOME,100112
Portsmouth City Council,PCC,Adult Social Care,Social Care Activities,Adult Services,Third Party Payments,Other establishments,12/09/19,6320743,520,VENDOR,BLUEBELL NURSING HOME,100112
Portsmouth City Council,PCC,Adult Social Care,Social Care Activities,Adult Services,Third Party Payments,Other establishments,12/09/19,6320743,4418.7,VENDOR,BLUEBELL NURSING HOME,100112
Portsmouth City Council,PCC,Adult Social Care,Social Care Activities,Adult Services,Third Party Payments,Other establishments,12/09/19,6320743,4993.5,VENDOR,BLUEBELL NURSING HOME,100112
Portsmouth City Council,PCC,Adult Social Care,Social Care Activities,Adult Services,Third Party Payments,Other establishments,12/09/19,6320743,4480.5,VENDOR,BLUEBELL NURSING HOME,100112
Portsmouth City Council,PCC,Adult Social Care,Social Care Activities,Adult Services,Third Party Payments,Other establishments,12/09/19,6320743,4171.5,VENDOR,BLUEBELL NURSING HOME,100112
Portsmouth City Council,PCC,Adult Social Care,Social Care Activities,Adult Services,Third Party Payments,Other establishments,12/09/19,6320743,5137.5,VENDOR,BLUEBELL NURSING HOME,100112
Portsmouth City Council,PCC,Adult Social Care,Social Care Activities,Adult Services,Third Party Payments,Other establishments,12/09/19,6320743,4635,VENDOR,BLUEBELL NURSING HOME,100112
Portsmouth City Council,PCC,Adult Social Care,Social Care Activities,Adult Services,Third Party Payments,Other establishments,12/09/19,6320743,2682,VENDOR,BLUEBELL NURSING HOME,100112
Portsmouth City Council,PCC,Adult Social Care,Social Care Activities,Adult Services,Third Party Payments,Other establishments,12/09/19,6320743,5407.5,VENDOR,BLUEBELL NURSING HOME,100112
Portsmouth City Council,PCC,Adult Social Care,Social Care Activities,Adult Services,Third Party Payments,Other establishments,12/09/19,6320743,5253,VENDOR,BLUEBELL NURSING HOME,100112
Portsmouth City Council,PCC,Adult Social Care,Social Care Activities,Adult Services,Third Party Payments,Other establishments,12/09/19,6320743,709.54,VENDOR,BLUEBELL NURSING HOME,100112
Portsmouth City Council,PCC,Adult Social Care,Social Care Activities,Adult Services,Third Party Payments,Other establishments,12/09/19,6320743,709.54,VENDOR,BLUEBELL NURSING HOME,100112
Portsmouth City Council,PCC,Adult Social Care,Social Care Activities,Adult Services,Third Party Payments,Other establishments,12/09/19,6320743,709.54,VENDOR,BLUEBELL NURSING HOME,100112
Portsmouth City Council,PCC,Adult Social Care,Social Care Activities,Adult Services,Third Party Payments,Other establishments,12/09/19,6320743,709.54,VENDOR,BLUEBELL NURSING HOME,100112
Portsmouth City Council,PCC,Adult Social Care,Social Care Activities,Adult Services,Third Party Payments,Other establishments,12/09/19,6320743,709.54,VENDOR,BLUEBELL NURSING HOME,100112
Portsmouth City Council,PCC,Adult Social Care,Social Care Activities,Adult Services,Third Party Payments,Other establishments,12/09/19,6320743,709.54,VENDOR,BLUEBELL NURSING HOME,100112
Portsmouth City Council,PCC,Adult Social Care,Social Care Activities,Adult Services,Third Party Payments,Other establishments,12/09/19,6320743,473.03,VENDOR,BLUEBELL NURSING HOME,100112
Portsmouth City Council,PCC,Adult Social Care,Social Care Activities,Adult Services,Third Party Payments,Other establishments,12/09/19,6320743,709.54,VENDOR,BLUEBELL NURSING HOME,100112
Portsmouth City Council,PCC,Adult Social Care,Social Care Activities,Adult Services,Third Party Payments,Other establishments,12/09/19,6320743,709.54,VENDOR,BLUEBELL NURSING HOME,100112
Portsmouth City Council,PCC,Adult Social Care,Social Care Activities,Adult Services,Third Party Payments,Other establishments,12/09/19,6320743,709.54,VENDOR,BLUEBELL NURSING HOME,100112
Portsmouth City Council,PCC,Adult Social Care,Social Care Activities,Adult Services,Third Party Payments,Other establishments,12/09/19,6320743,709.54,VENDOR,BLUEBELL NURSING HOME,100112
Portsmouth City Council,PCC,Adult Social Care,Social Care Activities,Adult Services,Third Party Payments,Other establishments,12/09/19,6320743,709.54,VENDOR,BLUEBELL NURSING HOME,100112
Portsmouth City Council,PCC,Adult Social Care,Social Care Activities,Adult Services,Third Party Payments,Other establishments,12/09/19,6320743,709.54,VENDOR,BLUEBELL NURSING HOME,100112
Portsmouth City Council,PCC,Adult Social Care,Social Care Activities,Adult Services,Third Party Payments,Other establishments,12/09/19,6320743,709.54,VENDOR,BLUEBELL NURSING HOME,100112
Portsmouth City Council,PCC,Adult Social Care,Social Care Activities,Adult Services,Third Party Payments,Other establishments,12/09/19,6320743,709.54,VENDOR,BLUEBELL NURSING HOME,100112
Portsmouth City Council,PCC,Adult Social Care,Social Care Activities,Adult Services,Third Party Payments,Other establishments,12/09/19,6320743,-307.47,VENDOR,BLUEBELL NURSING HOME,100112
Portsmouth City Council,PCC,Adult Social Care,Social Care Activities,Adult Services,Third Party Payments,Other establishments,12/09/19,6320743,709.54,VENDOR,BLUEBELL NURSING HOME,100112
Portsmouth City Council,PCC,Adult Social Care,Social Care Activities,Adult Services,Third Party Payments,Other establishments,12/09/19,6320743,709.54,VENDOR,BLUEBELL NURSING HOME,100112
Portsmouth City Council,PCC,Adult Social Care,Social Care Activities,Adult Services,Third Party Payments,Other establishments,12/09/19,6320743,709.54,VENDOR,BLUEBELL NURSING HOME,100112
Portsmouth City Council,PCC,Adult Social Care,Social Care Activities,Adult Services,Third Party Payments,Other establishments,12/09/19,6320743,709.54,VENDOR,BLUEBELL NURSING HOME,100112
Portsmouth City Council,PCC,Adult Social Care,Social Care Activities,Adult Services,Third Party Payments,Other establishments,12/09/19,6320743,709.54,VENDOR,BLUEBELL NURSING HOME,100112
Portsmouth City Council,PCC,Adult Social Care,Social Care Activities,Adult Services,Third Party Payments,Other establishments,12/09/19,6320743,709.54,VENDOR,BLUEBELL NURSING HOME,100112
Portsmouth City Council,PCC,Adult Social Care,Social Care Activities,Adult Services,Third Party Payments,Other establishments,12/09/19,6320743,709.54,VENDOR,BLUEBELL NURSING HOME,100112
Portsmouth City Council,PCC,Adult Social Care,Social Care Activities,Adult Services,Third Party Payments,Other establishments,12/09/19,6320743,709.54,VENDOR,BLUEBELL NURSING HOME,100112
Portsmouth City Council,PCC,Adult Social Care,Social Care Activities,Adult Services,Third Party Payments,Other establishments,12/09/19,6320743,354.77,VENDOR,BLUEBELL NURSING HOME,100112
Portsmouth City Council,PCC,Adult Social Care,Social Care Activities,Adult Services,Third Party Payments,Other establishments,12/09/19,6320743,709.54,VENDOR,BLUEBELL NURSING HOME,100112
Portsmouth City Council,PCC,Adult Social Care,Social Care Activities,Adult Services,Third Party Payments,Other establishments,12/09/19,6320743,709.54,VENDOR,BLUEBELL NURSING HOME,100112
Portsmouth City Council,PCC,Adult Social Care,Social Care Activities,Adult Services,Third Party Payments,Other establishments,12/09/19,6320743,709.54,VENDOR,BLUEBELL NURSING HOME,100112
Portsmouth City Council,PCC,Adult Social Care,Social Care Activities,Adult Services,Third Party Payments,Other establishments,12/09/19,6320743,-94.61,VENDOR,BLUEBELL NURSING HOME,100112
Portsmouth City Council,PCC,Adult Social Care,Social Care Activities,Adult Services,Third Party Payments,Other establishments,12/09/19,6320743,709.54,VENDOR,BLUEBELL NURSING HOME,100112
Portsmouth City Council,PCC,Adult Social Care,Social Care Activities,Adult Services,Third Party Payments,Other establishments,12/09/19,6320743,-94.61,VENDOR,BLUEBELL NURSING HOME,100112
Portsmouth City Council,PCC,Adult Social Care,Social Care Activities,Adult Services,Third Party Payments,Other establishments,12/09/19,6320743,141.91,VENDOR,BLUEBELL NURSING HOME,100112
Portsmouth City Council,PCC,Adult Social Care,Social Care Activities,Adult Services,Third Party Payments,Other establishments,12/09/19,6320743,709.54,VENDOR,BLUEBELL NURSING HOME,100112
Portsmouth City Council,PCC,Adult Social Care,Social Care Activities,Adult Services,Third Party Payments,Other establishments,12/09/19,6320743,709.54,VENDOR,BLUEBELL NURSING HOME,100112
Portsmouth City Council,PCC,Adult Social Care,Physical Support Older People (85+),Adult Services,Third Party Payments,Other establishments,12/09/19,6320743,3210,VENDOR,BLUEBELL NURSING HOME,100112
Portsmouth City Council,PCC,Adult Social Care,Physical Support Older People (85+),Adult Services,Third Party Payments,Other establishments,12/09/19,6320743,2385.6,VENDOR,BLUEBELL NURSING HOME,100112
